Workbook

Sheet Rekapitulace stavby
A1: Export VZ | D1: List obsahuje: | K1: 1) Rekapitulace stavby | W1: 2) Rekapitulace objektů stavby a soupisů prací | BA1: 3.0 | BT1: False | BU1: False | BV1: {937a2332-5c64-4a9f-bee1-557996e42b00}
AR2: >> skryté sloupce << | BS2: 0,01 | BT2: 21
BS3: 0,01 | BT3: 15
D4: REKAPITULACE STAVBY | AS4: v --- níže se nacházejí doplnkové a pomocné údaje k sestavám --- v | BE4: Návod na vyplnění | BS4: 0,001
D5: Kód: | K5: 2017 | BE5: Měnit lze pouze buňky se žlutým podbarvením! 1) v Rekapitulaci stavby vyplňte údaje o Uchazeči (přenesou se do ostatních sestav i v jiných listech) 2) na vybraných listech vyplňte v sestavě Soupis prací ceny u položek Podrobnosti k vyplnění naleznete na poslední záložce s Pokyny pro vyplnění | BS5: 0,01
D6: Stavba: | K6: Přístavba a stavební úpravy víceúčelového objektu ve Vadíně č.p. 11 | BS6: 0,01
D7: KSO: | AK7: CC-CZ: | BS7: 0,01
D8: Místo: | K8: Vadín | AK8: Datum: | AN8: 3. 9. 2017 | BS8: 0,01
BS9: 0,01
D10: Zadavatel: | AK10: IČ: | BS10: 0,01
E11: Obec Okrouhlice | AK11: DIČ: | BS11: 0,01
BS12: 0,01
D13: Uchazeč: | AK13: IČ: | AN13: Vyplň údaj | BS13: 0,01
E14: Vyplň údaj | AK14: DIČ: | AN14: Vyplň údaj | BS14: 0,01
BS15: False
D16: Projektant: | AK16: IČ: | BS16: False
E17: Ing. Suk - EREKTA | AK17: DIČ: | BS17: True
BS18: 0,01
D19: Poznámka: | BS19: 0,01
BS20: True
D23: Cena bez DPH | AK23: =ROUND(AG51,2) -> 0
L25: Sazba daně | W25: Základ daně | AK25: Výše daně
D26: DPH | F26: základní | L26: 0.21 | W26: =ROUND(AZ51,2) -> 0 | AK26: =ROUND(AV51,2) -> 0
F27: snížená | L27: 0.15 | W27: =ROUND(BA51,2) -> 0 | AK27: =ROUND(AW51,2) -> 0
F28: zákl. přenesená | L28: 0.21 | W28: =ROUND(BB51,2) -> 0 | AK28: 0
F29: sníž. přenesená | L29: 0.15 | W29: =ROUND(BC51,2) -> 0 | AK29: 0
F30: nulová | L30: 0 | W30: =ROUND(BD51,2) -> 0 | AK30: 0
D32: Cena s DPH | T32: v | X32: CZK | AK32: =SUM(AK23:AK30) -> 0
C39: REKAPITULACE OBJEKTŮ STAVBY A SOUPISŮ PRACÍ
C41: Kód: | L41: =K5 -> 2017
C42: Stavba: | L42: =K6 -> Přístavba a stavební úpravy víceúčelového objektu ve Vadíně č.p. 11
C44: Místo: | L44: =IF(K8="","",K8) -> Vadín | AI44: Datum: | AM44: =IF(AN8= "","",AN8) -> 3. 9. 2017
C46: Zadavatel: | L46: =IF(E11= "","",E11) -> Obec Okrouhlice | AI46: Projektant: | AM46: =IF(E17="","",E17) -> Ing. Suk - EREKTA | AS46: Informatívní údaje z listů zakázek
C47: Uchazeč: | L47: =IF(E14= "Vyplň údaj","",E14) -> 
C49: Kód | I49: Objekt, Soupis prací | AG49: Cena bez DPH [CZK] | AN49: Cena s DPH [CZK] | AQ49: Typ | AS49: z toho Ostat. náklady [CZK] | AT49: DPH [CZK] | AU49: Normohodiny [h] | AV49: DPH základní [CZK] | AW49: DPH snížená [CZK] | AX49: DPH základní přenesená [CZK] | AY49: DPH snížená přenesená [CZK] | AZ49: Základna DPH základní | BA49: Základna DPH snížená | BB49: Základna DPH zákl. přenesená | BC49: Základna DPH sníž. přenesená | BD49: Základna DPH nulová
C51: Náklady stavby celkem | AG51: =ROUND(AG52+AG59,2) -> 0 | AN51: =SUM(AG51,AT51) -> 0 | AS51: =ROUND(AS52+AS59,2) -> 0 | AT51: =ROUND(SUM(AV51:AW51),2) -> 0 | AU51: =ROUND(AU52+AU59,5) -> 0 | AV51: =ROUND(AZ51*L26,2) -> 0 | AW51: =ROUND(BA51*L27,2) -> 0 | AX51: =ROUND(BB51*L26,2) -> 0 | AY51: =ROUND(BC51*L27,2) -> 0 | AZ51: =ROUND(AZ52+AZ59,2) -> 0 | BA51: =ROUND(BA52+BA59,2) -> 0 | BB51: =ROUND(BB52+BB59,2) -> 0 | BC51: =ROUND(BC52+BC59,2) -> 0 | BD51: =ROUND(BD52+BD59,2) -> 0 | BS51: D | BT51: 0 | BU51: ###NOIMPORT### | BV51: IMPORT | BW51: {937a2332-5c64-4a9f-bee1-557996e42b00} | BX51: {00000000-0000-0000-0000-000000000000}
D52: D1_01 | J52: Přístavba | AG52: =ROUND(SUM(AG53:AG58),2) -> 0 | AN52: 0 | AQ52: STA | AS52: =ROUND(SUM(AS53:AS58),2) -> 0 | AT52: 0 | AU52: =ROUND(SUM(AU53:AU58),5) -> 0 | AV52: =ROUND(AZ52*L26,2) -> 0 | AW52: =ROUND(BA52*L27,2) -> 0 | AX52: =ROUND(BB52*L26,2) -> 0 | AY52: =ROUND(BC52*L27,2) -> 0 | AZ52: =ROUND(SUM(AZ53:AZ58),2) -> 0 | BA52: =ROUND(SUM(BA53:BA58),2) -> 0 | BB52: =ROUND(SUM(BB53:BB58),2) -> 0 | BC52: =ROUND(SUM(BC53:BC58),2) -> 0 | BD52: =ROUND(SUM(BD53:BD58),2) -> 0 | BS52: D | BT52: 1 | BU52: ###NOIMPORT### | BV52: IMPORT | BW52: {247773f6-1535-444a-af13-1ef7d2c82ff3} | BX52: {937a2332-5c64-4a9f-bee1-557996e42b00} | CM52: 2
A53: / | E53: D1_01_1 | K53: Stavební | AG53: ='D1_01_1 - Stavební'!J29 -> 0 | AN53: 0 | AQ53: Soupis | AS53: 0 | AT53: 0 | AU53: ='D1_01_1 - Stavební'!P114 -> 0 | AV53: ='D1_01_1 - Stavební'!J32 -> 0 | AW53: ='D1_01_1 - Stavební'!J33 -> 0 | AX53: ='D1_01_1 - Stavební'!J34 -> 0 | AY53: ='D1_01_1 - Stavební'!J35 -> 0 | AZ53: ='D1_01_1 - Stavební'!F32 -> 0 | BA53: ='D1_01_1 - Stavební'!F33 -> 0 | BB53: ='D1_01_1 - Stavební'!F34 -> 0 | BC53: ='D1_01_1 - Stavební'!F35 -> 0 | BD53: ='D1_01_1 - Stavební'!F36 -> 0 | BT53: 2 | BV53: IMPORT | BW53: {557238ff-1fa1-4928-a73e-a431c24b416b} | BX53: {247773f6-1535-444a-af13-1ef7d2c82ff3} | CL53: 8016916
A54: / | E54: D1_01_3 | K54: Požárně bezpečnostní řešení | AG54: ='D1_01_3 - Požárně bezpečn...'!J29 -> 0 | AN54: 0 | AQ54: Soupis | AS54: 0 | AT54: 0 | AU54: ='D1_01_3 - Požárně bezpečn...'!P84 -> 0 | AV54: ='D1_01_3 - Požárně bezpečn...'!J32 -> 0 | AW54: ='D1_01_3 - Požárně bezpečn...'!J33 -> 0 | AX54: ='D1_01_3 - Požárně bezpečn...'!J34 -> 0 | AY54: ='D1_01_3 - Požárně bezpečn...'!J35 -> 0 | AZ54: ='D1_01_3 - Požárně bezpečn...'!F32 -> 0 | BA54: ='D1_01_3 - Požárně bezpečn...'!F33 -> 0 | BB54: ='D1_01_3 - Požárně bezpečn...'!F34 -> 0 | BC54: ='D1_01_3 - Požárně bezpečn...'!F35 -> 0 | BD54: ='D1_01_3 - Požárně bezpečn...'!F36 -> 0 | BT54: 2 | BV54: IMPORT | BW54: {24198582-d400-4100-9c00-a7c99712b7d3} | BX54: {247773f6-1535-444a-af13-1ef7d2c82ff3} | CL54: 8016916
A55: / | E55: D1_01_4a | K55: Vytápění | AG55: ='D1_01_4a - Vytápění'!J29 -> 0 | AN55: 0 | AQ55: Soupis | AS55: 0 | AT55: 0 | AU55: ='D1_01_4a - Vytápění'!P89 -> 0 | AV55: ='D1_01_4a - Vytápění'!J32 -> 0 | AW55: ='D1_01_4a - Vytápění'!J33 -> 0 | AX55: ='D1_01_4a - Vytápění'!J34 -> 0 | AY55: ='D1_01_4a - Vytápění'!J35 -> 0 | AZ55: ='D1_01_4a - Vytápění'!F32 -> 0 | BA55: ='D1_01_4a - Vytápění'!F33 -> 0 | BB55: ='D1_01_4a - Vytápění'!F34 -> 0 | BC55: ='D1_01_4a - Vytápění'!F35 -> 0 | BD55: ='D1_01_4a - Vytápění'!F36 -> 0 | BT55: 2 | BV55: IMPORT | BW55: {c25450a4-2472-4e18-be5d-b0969239a85d} | BX55: {247773f6-1535-444a-af13-1ef7d2c82ff3}
A56: / | E56: D1_01_4c | K56: Vzduchotechnika | AG56: ='D1_01_4c - Vzduchotechnika'!J29 -> 0 | AN56: 0 | AQ56: Soupis | AS56: 0 | AT56: 0 | AU56: ='D1_01_4c - Vzduchotechnika'!P85 -> 0 | AV56: ='D1_01_4c - Vzduchotechnika'!J32 -> 0 | AW56: ='D1_01_4c - Vzduchotechnika'!J33 -> 0 | AX56: ='D1_01_4c - Vzduchotechnika'!J34 -> 0 | AY56: ='D1_01_4c - Vzduchotechnika'!J35 -> 0 | AZ56: ='D1_01_4c - Vzduchotechnika'!F32 -> 0 | BA56: ='D1_01_4c - Vzduchotechnika'!F33 -> 0 | BB56: ='D1_01_4c - Vzduchotechnika'!F34 -> 0 | BC56: ='D1_01_4c - Vzduchotechnika'!F35 -> 0 | BD56: ='D1_01_4c - Vzduchotechnika'!F36 -> 0 | BT56: 2 | BV56: IMPORT | BW56: {08fde304-a757-422d-99b5-0c456761366e} | BX56: {247773f6-1535-444a-af13-1ef7d2c82ff3}
A57: / | E57: D1_01_4e | K57: Zdravotně technické instalace | AG57: ='D1_01_4e - Zdravotně tech...'!J29 -> 0 | AN57: 0 | AQ57: Soupis | AS57: 0 | AT57: 0 | AU57: ='D1_01_4e - Zdravotně tech...'!P90 -> 0 | AV57: ='D1_01_4e - Zdravotně tech...'!J32 -> 0 | AW57: ='D1_01_4e - Zdravotně tech...'!J33 -> 0 | AX57: ='D1_01_4e - Zdravotně tech...'!J34 -> 0 | AY57: ='D1_01_4e - Zdravotně tech...'!J35 -> 0 | AZ57: ='D1_01_4e - Zdravotně tech...'!F32 -> 0 | BA57: ='D1_01_4e - Zdravotně tech...'!F33 -> 0 | BB57: ='D1_01_4e - Zdravotně tech...'!F34 -> 0 | BC57: ='D1_01_4e - Zdravotně tech...'!F35 -> 0 | BD57: ='D1_01_4e - Zdravotně tech...'!F36 -> 0 | BT57: 2 | BV57: IMPORT | BW57: {91e630b5-a21e-4d73-9f21-0ef77766be86} | BX57: {247773f6-1535-444a-af13-1ef7d2c82ff3}
A58: / | E58: D1_01_4g | K58: Silnoproudá elektrotechnika | AG58: ='D1_01_4g - Silnoproudá el...'!J29 -> 0 | AN58: 0 | AQ58: Soupis | AS58: 0 | AT58: 0 | AU58: ='D1_01_4g - Silnoproudá el...'!P92 -> 0 | AV58: ='D1_01_4g - Silnoproudá el...'!J32 -> 0 | AW58: ='D1_01_4g - Silnoproudá el...'!J33 -> 0 | AX58: ='D1_01_4g - Silnoproudá el...'!J34 -> 0 | AY58: ='D1_01_4g - Silnoproudá el...'!J35 -> 0 | AZ58: ='D1_01_4g - Silnoproudá el...'!F32 -> 0 | BA58: ='D1_01_4g - Silnoproudá el...'!F33 -> 0 | BB58: ='D1_01_4g - Silnoproudá el...'!F34 -> 0 | BC58: ='D1_01_4g - Silnoproudá el...'!F35 -> 0 | BD58: ='D1_01_4g - Silnoproudá el...'!F36 -> 0 | BT58: 2 | BV58: IMPORT | BW58: {217ca5bb-dc22-4cf8-89d5-86d11a16be5a} | BX58: {247773f6-1535-444a-af13-1ef7d2c82ff3}
A59: / | D59: OVN | J59: Ostatní a vedlejší náklady | AG59: ='OVN - Ostatní a vedlejší ...'!J27 -> 0 | AN59: 0 | AQ59: VON | AS59: 0 | AT59: 0 | AU59: ='OVN - Ostatní a vedlejší ...'!P79 -> 0 | AV59: ='OVN - Ostatní a vedlejší ...'!J30 -> 0 | AW59: ='OVN - Ostatní a vedlejší ...'!J31 -> 0 | AX59: ='OVN - Ostatní a vedlejší ...'!J32 -> 0 | AY59: ='OVN - Ostatní a vedlejší ...'!J33 -> 0 | AZ59: ='OVN - Ostatní a vedlejší ...'!F30 -> 0 | BA59: ='OVN - Ostatní a vedlejší ...'!F31 -> 0 | BB59: ='OVN - Ostatní a vedlejší ...'!F32 -> 0 | BC59: ='OVN - Ostatní a vedlejší ...'!F33 -> 0 | BD59: ='OVN - Ostatní a vedlejší ...'!F34 -> 0 | BT59: 1 | BV59: IMPORT | BW59: {1c0a6da4-04a7-4028-8558-5eebb0c7e849} | BX59: {937a2332-5c64-4a9f-bee1-557996e42b00} | CM59: 2
H677: 8.93

Sheet D1_01_1 - Stavební
D1: List obsahuje: | F1: 1) Krycí list soupisu | G1: 2) Rekapitulace | J1: 3) Soupis prací | K1: Zpět na list: | L1: Rekapitulace stavby
L2: >> skryté sloupce << | AT2: {557238ff-1fa1-4928-a73e-a431c24b416b}
AT3: 2
D4: KRYCÍ LIST SOUPISU | M4: v --- níže se nacházejí doplnkové a pomocné údaje k sestavám --- v | AT4: False
D6: Stavba:
E7: ='Rekapitulace stavby'!K6 -> Přístavba a stavební úpravy víceúčelového objektu ve Vadíně č.p. 11
D8: Objekt:
E9: D1_01 - Přístavba
D10: Soupis:
E11: D1_01_1 - Stavební
D13: KSO: | F13: 8016916 | I13: CC-CZ:
D14: Místo: | F14: Vadín | I14: Datum: | J14: ='Rekapitulace stavby'!AN8 -> 3. 9. 2017
D16: Zadavatel: | I16: IČ:
E17: Obec Okrouhlice | I17: DIČ:
D19: Uchazeč: | I19: IČ: | J19: =IF('Rekapitulace stavby'!AN13="Vyplň údaj","",IF('Rekapitulace stavby'!AN13="","",'Rekapitulace stavby'!AN13)) -> 
E20: =IF('Rekapitulace stavby'!E14="Vyplň údaj","",IF('Rekapitulace stavby'!E14="","",'Rekapitulace stavby'!E14)) ->  | I20: DIČ: | J20: =IF('Rekapitulace stavby'!AN14="Vyplň údaj","",IF('Rekapitulace stavby'!AN14="","",'Rekapitulace stavby'!AN14)) -> 
D22: Projektant: | I22: IČ:
E23: Ing. Suk - EREKTA | I23: DIČ:
D25: Poznámka:
D29: Cena bez DPH | J29: =ROUND(J114,2) -> 0
F31: Základ daně | I31: Sazba daně | J31: Výše daně
D32: DPH | E32: základní | F32: =ROUND(SUM(BE114:BE1160), 2) -> 0 | I32: 0.21 | J32: =ROUND(ROUND((SUM(BE114:BE1160)), 2)*I32, 2) -> 0
E33: snížená | F33: =ROUND(SUM(BF114:BF1160), 2) -> 0 | I33: 0.15 | J33: =ROUND(ROUND((SUM(BF114:BF1160)), 2)*I33, 2) -> 0
E34: zákl. přenesená | F34: =ROUND(SUM(BG114:BG1160), 2) -> 0 | I34: 0.21 | J34: 0
E35: sníž. přenesená | F35: =ROUND(SUM(BH114:BH1160), 2) -> 0 | I35: 0.15 | J35: 0
E36: nulová | F36: =ROUND(SUM(BI114:BI1160), 2) -> 0 | I36: 0 | J36: 0
D38: Cena s DPH | G38: v | H38: CZK | J38: =SUM(J29:J36) -> 0
C44: REKAPITULACE ČLENĚNÍ SOUPISU PRACÍ
C46: Stavba:
E47: =E7 -> Přístavba a stavební úpravy víceúčelového objektu ve Vadíně č.p. 11
C48: Objekt:
E49: D1_01 - Přístavba
C50: Soupis:
E51: =E11 -> D1_01_1 - Stavební
C53: Místo: | F53: =F14 -> Vadín | I53: Datum: | J53: =IF(J14="","",J14) -> 3. 9. 2017
C55: Zadavatel: | F55: =E17 -> Obec Okrouhlice | I55: Projektant: | J55: =E23 -> Ing. Suk - EREKTA
C56: Uchazeč: | F56: =IF(E20="","",E20) -> 
C58: Kód dílu - Popis | J58: Cena celkem [CZK]
C60: Náklady soupisu celkem | J60: =J114 -> 0 | AU60: -1
D61: HSV - Práce a dodávky HSV | J61: =J115 -> 0
D62: 1 - Zemní práce | J62: =J116 -> 0
D63: 18 - Zemní práce - povrchové úpravy terénu | J63: =J215 -> 0
D64: 27 - Zakládání - základy | J64: =J228 -> 0
D65: 3 - Svislé a kompletní konstrukce | J65: =J270 -> 0
D66: 4 - Vodorovné konstrukce | J66: =J307 -> 0
D67: 45 - Vodorovné podkladní a vedlejší konstrukce inž. staveb | J67: =J317 -> 0
D68: 5 - Komunikace | J68: =J328 -> 0
D69: 6 - Úpravy povrchů, podlahy a osazování výplní | J69: =J339 -> 0
D70: 61 - Úprava povrchů vnitřní | J70: =J340 -> 0
D71: 62 - Úprava povrchů vnějších | J71: =J425 -> 0
D72: 63 - Podlahy a podlahové konstrukce | J72: =J462 -> 0
D73: 9 - Ostatní konstrukce a práce-bourání | J73: =J479 -> 0
D74: 95 - Různé dokončovací konstrukce a práce pozemních staveb | J74: =J480 -> 0
D75: 94 - Lešení a stavební výtahy | J75: =J495 -> 0
D76: 96 - Bourání konstrukcí | J76: =J527 -> 0
D77: 99 - Přesuny hmot a sutí | J77: =J678 -> 0
D78: PSV - Práce a dodávky PSV | J78: =J680 -> 0
D79: 711 - Izolace proti vodě, vlhkosti a plynům | J79: =J681 -> 0
D80: 713 - Izolace tepelné | J80: =J737 -> 0
D81: 762 - Konstrukce tesařské | J81: =J789 -> 0
D82: 763 - Konstrukce suché výstavby | J82: =J838 -> 0
D83: 764 - Konstrukce klempířské | J83: =J855 -> 0
D84: 765 - Krytina skládaná | J84: =J879 -> 0
D85: 766 - Konstrukce truhlářské | J85: =J887 -> 0
D86: 767 - Konstrukce zámečnické | J86: =J944 -> 0
D87: 771 - Podlahy z dlaždic | J87: =J1011 -> 0
D88: 776 - Podlahy povlakové | J88: =J1068 -> 0
D89: 777 - Podlahy lité | J89: =J1091 -> 0
D90: 781 - Dokončovací práce - obklady keramické | J90: =J1099 -> 0
D91: 783 - Dokončovací práce - nátěry | J91: =J1118 -> 0
D92: 784 - Dokončovací práce - malby a tapety | J92: =J1134 -> 0
C99: SOUPIS PRACÍ
C101: Stavba:
E102: =E7 -> Přístavba a stavební úpravy víceúčelového objektu ve Vadíně č.p. 11
C103: Objekt:
E104: D1_01 - Přístavba
C105: Soupis:
E106: =E11 -> D1_01_1 - Stavební
C108: Místo: | F108: =F14 -> Vadín | I108: Datum: | J108: =IF(J14="","",J14) -> 3. 9. 2017
C110: Zadavatel: | F110: =E17 -> Obec Okrouhlice | I110: Projektant: | J110: =E23 -> Ing. Suk - EREKTA
C111: Uchazeč: | F111: =IF(E20="","",E20) -> 
C113: PČ | D113: Typ | E113: Kód | F113: Popis | G113: MJ | H113: Množství | I113: J.cena [CZK] | J113: Cena celkem [CZK] | K113: Cenová soustava | M113: Poznámka | N113: DPH | O113: J. Nh [h] | P113: Nh celkem [h] | Q113: J. hmotnost [t] | R113: Hmotnost celkem [t] | S113: J. suť [t] | T113: Suť Celkem [t]
C114: Náklady soupisu celkem | J114: =BK114 -> 0 | P114: =P115+P680 -> 0 | R114: =R115+R680 -> 126.7426746 | T114: =T115+T680 -> 89.3394753 | AT114: D | AU114: -1 | BK114: =BK115+BK680 -> 0
D115: D | E115: HSV | F115: Práce a dodávky HSV | J115: =BK115 -> 0 | P115: =P116+P215+P228+P270+P307+P328+P339+P479 -> 0 | R115: =R116+R215+R228+R270+R307+R328+R339+R479 -> 121.547356 | T115: =T116+T215+T228+T270+T307+T328+T339+T479 -> 89.3394753 | AR115: 1 | AT115: D | AU115: 0 | AY115: ROZPOCET | BK115: =BK116+BK215+BK228+BK270+BK307+BK328+BK339+BK479 -> 0
D116: D | E116: 1 | F116: Zemní práce | J116: =BK116 -> 0 | P116: =SUM(P117:P214) -> 0 | R116: =SUM(R117:R214) -> 0 | T116: =SUM(T117:T214) -> 0 | AR116: 1 | AT116: D | AU116: 1 | AY116: ROZPOCET | BK116: =SUM(BK117:BK214) -> 0
C117: 1 | D117: K | E117: 121101102 | F117: Sejmutí ornice s přemístěním na vzdálenost do 100 m | G117: m3 | H117: 1.5 | J117: =ROUND(I117*H117,2) -> 0 | K117: CS ÚRS 2017 01 | N117: základní | P117: =O117*H117 -> 0 | Q117: 0 | R117: =Q117*H117 -> 0 | S117: 0 | T117: =S117*H117 -> 0 | AR117: 4 | AT117: K | AU117: 2 | AY117: ROZPOCET | BE117: =IF(N117="základní",J117,0) -> 0 | BF117: =IF(N117="snížená",J117,0) -> 0 | BG117: =IF(N117="zákl. přenesená",J117,0) -> 0 | BH117: =IF(N117="sníž. přenesená",J117,0) -> 0 | BI117: =IF(N117="nulová",J117,0) -> 0 | BJ117: 1 | BK117: =ROUND(I117*H117,2) -> 0 | BL117: 4 | BM117: -1477209761
D118: VV | F118: 15,0*0,1 | H118: 1.5 | AT118: VV | AU118: 2 | AV118: 2 | AW118: True | AX118: 1 | AY118: ROZPOCET
C119: 2 | D119: K | E119: 131303102 | F119: Hloubení jam ručním nebo pneum nářadím v nesoudržných horninách tř. 4 | G119: m3 | H119: 58.846 | J119: =ROUND(I119*H119,2) -> 0 | K119: CS ÚRS 2017 01 | N119: základní | P119: =O119*H119 -> 0 | Q119: 0 | R119: =Q119*H119 -> 0 | S119: 0 | T119: =S119*H119 -> 0 | AR119: 4 | AT119: K | AU119: 2 | AY119: ROZPOCET | BE119: =IF(N119="základní",J119,0) -> 0 | BF119: =IF(N119="snížená",J119,0) -> 0 | BG119: =IF(N119="zákl. přenesená",J119,0) -> 0 | BH119: =IF(N119="sníž. přenesená",J119,0) -> 0 | BI119: =IF(N119="nulová",J119,0) -> 0 | BJ119: 1 | BK119: =ROUND(I119*H119,2) -> 0 | BL119: 4 | BM119: -286409873
D120: VV | F120: Patka | AT120: VV | AU120: 2 | AV120: 1 | AW120: True | AX120: 0 | AY120: ROZPOCET
D121: VV | F121: 0,6*0,6*1,1 | H121: 0.396 | AT121: VV | AU121: 2 | AV121: 2 | AW121: True | AX121: 0 | AY121: ROZPOCET
D122: VV | F122: Prohloubení zeminy uvnitř objektu | AT122: VV | AU122: 2 | AV122: 1 | AW122: True | AX122: 0 | AY122: ROZPOCET
D123: VV | F123: (7,74+31,35+11,0+1,35+1,81+1,63+8,33+1,11+21,48)*0,25 | H123: 21.45 | AT123: VV | AU123: 2 | AV123: 2 | AW123: True | AX123: 0 | AY123: ROZPOCET
D124: VV | F124: Jímka | AT124: VV | AU124: 2 | AV124: 1 | AW124: True | AX124: 0 | AY124: ROZPOCET
D125: VV | F125: 37,0 | H125: 37 | AT125: VV | AU125: 2 | AV125: 2 | AW125: True | AX125: 0 | AY125: ROZPOCET
C126: 3 | D126: K | E126: 131303109 | F126: Příplatek za lepivost u hloubení jam ručním nebo pneum nářadím v hornině tř. 4 | G126: m3 | H126: 29.423 | J126: =ROUND(I126*H126,2) -> 0 | K126: CS ÚRS 2017 01 | N126: základní | P126: =O126*H126 -> 0 | Q126: 0 | R126: =Q126*H126 -> 0 | S126: 0 | T126: =S126*H126 -> 0 | AR126: 4 | AT126: K | AU126: 2 | AY126: ROZPOCET | BE126: =IF(N126="základní",J126,0) -> 0 | BF126: =IF(N126="snížená",J126,0) -> 0 | BG126: =IF(N126="zákl. přenesená",J126,0) -> 0 | BH126: =IF(N126="sníž. přenesená",J126,0) -> 0 | BI126: =IF(N126="nulová",J126,0) -> 0 | BJ126: 1 | BK126: =ROUND(I126*H126,2) -> 0 | BL126: 4 | BM126: -1841359537
D127: VV | F127: Předpoklad 50% | AT127: VV | AU127: 2 | AV127: 1 | AW127: True | AX127: 0 | AY127: ROZPOCET
D128: VV | F128: 58,846*0,5 | H128: 29.423 | AT128: VV | AU128: 2 | AV128: 2 | AW128: True | AX128: 1 | AY128: ROZPOCET
C129: 4 | D129: K | E129: 132312101 | F129: Hloubení rýh š do 600 mm ručním nebo pneum nářadím v soudržných horninách tř. 4 | G129: m3 | H129: 10.955 | J129: =ROUND(I129*H129,2) -> 0 | K129: CS ÚRS 2017 01 | N129: základní | P129: =O129*H129 -> 0 | Q129: 0 | R129: =Q129*H129 -> 0 | S129: 0 | T129: =S129*H129 -> 0 | AR129: 4 | AT129: K | AU129: 2 | AY129: ROZPOCET | BE129: =IF(N129="základní",J129,0) -> 0 | BF129: =IF(N129="snížená",J129,0) -> 0 | BG129: =IF(N129="zákl. přenesená",J129,0) -> 0 | BH129: =IF(N129="sníž. přenesená",J129,0) -> 0 | BI129: =IF(N129="nulová",J129,0) -> 0 | BJ129: 1 | BK129: =ROUND(I129*H129,2) -> 0 | BL129: 4 | BM129: 1566608023
D130: VV | F130: Základové pásy | AT130: VV | AU130: 2 | AV130: 1 | AW130: True | AX130: 0 | AY130: ROZPOCET
D131: VV | F131: (1,85+1,74)*0,6*1,23 | H131: 2.649 | AT131: VV | AU131: 2 | AV131: 2 | AW131: True | AX131: 0 | AY131: ROZPOCET
D132: VV | F132: 2,5*0,6*0,925 | H132: 1.388 | AT132: VV | AU132: 2 | AV132: 2 | AW132: True | AX132: 0 | AY132: ROZPOCET
D133: VV | F133: 1,145*0,3*0,925 | H133: 0.318 | AT133: VV | AU133: 2 | AV133: 2 | AW133: True | AX133: 0 | AY133: ROZPOCET
D134: VV | F134: . | AT134: VV | AU134: 2 | AV134: 1 | AW134: True | AX134: 0 | AY134: ROZPOCET
D135: VV | F135: Ležatá kanalizace | AT135: VV | AU135: 2 | AV135: 1 | AW135: True | AX135: 0 | AY135: ROZPOCET
D136: VV | F136: 15,0*0,6*0,6 | H136: 5.4 | AT136: VV | AU136: 2 | AV136: 2 | AW136: True | AX136: 0 | AY136: ROZPOCET
D137: VV | F137: Voda | AT137: VV | AU137: 2 | AV137: 1 | AW137: True | AX137: 0 | AY137: ROZPOCET
D138: VV | F138: 5,0*0,4*0,6 | H138: 1.2 | AT138: VV | AU138: 2 | AV138: 2 | AW138: True | AX138: 0 | AY138: ROZPOCET
C139: 5 | D139: K | E139: 132312109 | F139: Příplatek za lepivost u hloubení rýh š do 600 mm ručním nebo pneum nářadím v hornině tř. 4 | G139: m3 | H139: 5.478 | J139: =ROUND(I139*H139,2) -> 0 | K139: CS ÚRS 2017 01 | N139: základní | P139: =O139*H139 -> 0 | Q139: 0 | R139: =Q139*H139 -> 0 | S139: 0 | T139: =S139*H139 -> 0 | AR139: 4 | AT139: K | AU139: 2 | AY139: ROZPOCET | BE139: =IF(N139="základní",J139,0) -> 0 | BF139: =IF(N139="snížená",J139,0) -> 0 | BG139: =IF(N139="zákl. přenesená",J139,0) -> 0 | BH139: =IF(N139="sníž. přenesená",J139,0) -> 0 | BI139: =IF(N139="nulová",J139,0) -> 0 | BJ139: 1 | BK139: =ROUND(I139*H139,2) -> 0 | BL139: 4 | BM139: 3854653
D140: VV | F140: Předpoklad 50% | AT140: VV | AU140: 2 | AV140: 1 | AW140: True | AX140: 0 | AY140: ROZPOCET
D141: VV | F141: 10,955*0,5 | H141: 5.478 | AT141: VV | AU141: 2 | AV141: 2 | AW141: True | AX141: 1 | AY141: ROZPOCET
C142: 6 | D142: K | E142: 13230-R02 | F142: Očištění stěn základových pasů od zbytků zeminy | G142: m2 | H142: 17.668 | J142: =ROUND(I142*H142,2) -> 0 | K142: vlastní | N142: základní | P142: =O142*H142 -> 0 | Q142: 0 | R142: =Q142*H142 -> 0 | S142: 0 | T142: =S142*H142 -> 0 | AR142: 4 | AT142: K | AU142: 2 | AY142: ROZPOCET | BE142: =IF(N142="základní",J142,0) -> 0 | BF142: =IF(N142="snížená",J142,0) -> 0 | BG142: =IF(N142="zákl. přenesená",J142,0) -> 0 | BH142: =IF(N142="sníž. přenesená",J142,0) -> 0 | BI142: =IF(N142="nulová",J142,0) -> 0 | BJ142: 1 | BK142: =ROUND(I142*H142,2) -> 0 | BL142: 4 | BM142: -1356406231
D143: VV | F143: (4,05+4,25)*2*0,25 | H143: 4.15 | AT143: VV | AU143: 2 | AV143: 2 | AW143: True | AX143: 0 | AY143: ROZPOCET
D144: VV | F144: (0,9+0,99)*2*0,25 | H144: 0.945 | AT144: VV | AU144: 2 | AV144: 2 | AW144: True | AX144: 0 | AY144: ROZPOCET
D145: VV | F145: (6,8+3,385)*2*0,25 | H145: 5.093 | AT145: VV | AU145: 2 | AV145: 2 | AW145: True | AX145: 0 | AY145: ROZPOCET
D146: VV | F146: (6,8+4,15)*2*0,25 | H146: 5.475 | AT146: VV | AU146: 2 | AV146: 2 | AW146: True | AX146: 0 | AY146: ROZPOCET
D147: VV | F147: (1,64+2,37)*2*0,25 | H147: 2.005 | AT147: VV | AU147: 2 | AV147: 2 | AW147: True | AX147: 0 | AY147: ROZPOCET
C148: 7 | D148: K | E148: 132312201 | F148: Hloubení rýh š přes 600 do 2000 mm ručním nebo pneum nářadím v soudržných horninách tř. 4 | G148: m3 | H148: 19.44 | J148: =ROUND(I148*H148,2) -> 0 | K148: CS ÚRS 2017 01 | N148: základní | P148: =O148*H148 -> 0 | Q148: 0 | R148: =Q148*H148 -> 0 | S148: 0 | T148: =S148*H148 -> 0 | AR148: 4 | AT148: K | AU148: 2 | AY148: ROZPOCET | BE148: =IF(N148="základní",J148,0) -> 0 | BF148: =IF(N148="snížená",J148,0) -> 0 | BG148: =IF(N148="zákl. přenesená",J148,0) -> 0 | BH148: =IF(N148="sníž. přenesená",J148,0) -> 0 | BI148: =IF(N148="nulová",J148,0) -> 0 | BJ148: 1 | BK148: =ROUND(I148*H148,2) -> 0 | BL148: 4 | BM148: -1731604766
D149: VV | F149: Přípojka vody | AT149: VV | AU149: 2 | AV149: 1 | AW149: True | AX149: 0 | AY149: ROZPOCET
D150: VV | F150: 9,0*0,8*1,2 | H150: 8.64 | AT150: VV | AU150: 2 | AV150: 2 | AW150: True | AX150: 0 | AY150: ROZPOCET
D151: VV | F151: Přípojka kanalizace | AT151: VV | AU151: 2 | AV151: 1 | AW151: True | AX151: 0 | AY151: ROZPOCET
D152: VV | F152: 9,0*1,0*1,2 | H152: 10.8 | AT152: VV | AU152: 2 | AV152: 2 | AW152: True | AX152: 0 | AY152: ROZPOCET
C153: 8 | D153: K | E153: 132312209 | F153: Příplatek za lepivost u hloubení rýh š do 2000 mm ručním nebo pneum nářadím v hornině tř. 4 | G153: m3 | H153: 9.72 | J153: =ROUND(I153*H153,2) -> 0 | K153: CS ÚRS 2017 01 | N153: základní | P153: =O153*H153 -> 0 | Q153: 0 | R153: =Q153*H153 -> 0 | S153: 0 | T153: =S153*H153 -> 0 | AR153: 4 | AT153: K | AU153: 2 | AY153: ROZPOCET | BE153: =IF(N153="základní",J153,0) -> 0 | BF153: =IF(N153="snížená",J153,0) -> 0 | BG153: =IF(N153="zákl. přenesená",J153,0) -> 0 | BH153: =IF(N153="sníž. přenesená",J153,0) -> 0 | BI153: =IF(N153="nulová",J153,0) -> 0 | BJ153: 1 | BK153: =ROUND(I153*H153,2) -> 0 | BL153: 4 | BM153: -1560216636
D154: VV | F154: Předpoklad 50% | AT154: VV | AU154: 2 | AV154: 1 | AW154: True | AX154: 0 | AY154: ROZPOCET
D155: VV | F155: 19,44*0,5 | H155: 9.72 | AT155: VV | AU155: 2 | AV155: 2 | AW155: True | AX155: 1 | AY155: ROZPOCET
C156: 9 | D156: K | E156: 162201211 | F156: Vodorovné přemístění výkopku z horniny tř. 1 až 4 stavebním kolečkem do 10 m | G156: m3 | H156: 32.405 | J156: =ROUND(I156*H156,2) -> 0 | K156: CS ÚRS 2017 01 | N156: základní | P156: =O156*H156 -> 0 | Q156: 0 | R156: =Q156*H156 -> 0 | S156: 0 | T156: =S156*H156 -> 0 | AR156: 4 | AT156: K | AU156: 2 | AY156: ROZPOCET | BE156: =IF(N156="základní",J156,0) -> 0 | BF156: =IF(N156="snížená",J156,0) -> 0 | BG156: =IF(N156="zákl. přenesená",J156,0) -> 0 | BH156: =IF(N156="sníž. přenesená",J156,0) -> 0 | BI156: =IF(N156="nulová",J156,0) -> 0 | BJ156: 1 | BK156: =ROUND(I156*H156,2) -> 0 | BL156: 4 | BM156: 550209693
D157: VV | F157: Z ručných vykopávek | AT157: VV | AU157: 2 | AV157: 1 | AW157: True | AX157: 0 | AY157: ROZPOCET
D158: VV | F158: . | AT158: VV | AU158: 2 | AV158: 1 | AW158: True | AX158: 0 | AY158: ROZPOCET
D159: VV | F159: Prohloubení zeminy uvnitř objektu | AT159: VV | AU159: 2 | AV159: 1 | AW159: True | AX159: 0 | AY159: ROZPOCET
D160: VV | F160: (7,74+31,35+11,0+1,35+1,81+1,63+8,33+1,11+21,48)*0,25 | H160: 21.45 | AT160: VV | AU160: 2 | AV160: 2 | AW160: True | AX160: 0 | AY160: ROZPOCET
D161: VV | F161: Základové pásy | AT161: VV | AU161: 2 | AV161: 1 | AW161: True | AX161: 0 | AY161: ROZPOCET
D162: VV | F162: (1,85+1,74)*0,6*1,23 | H162: 2.649 | AT162: VV | AU162: 2 | AV162: 2 | AW162: True | AX162: 0 | AY162: ROZPOCET
D163: VV | F163: 2,5*0,6*0,925 | H163: 1.388 | AT163: VV | AU163: 2 | AV163: 2 | AW163: True | AX163: 0 | AY163: ROZPOCET
D164: VV | F164: 1,145*0,3*0,925 | H164: 0.318 | AT164: VV | AU164: 2 | AV164: 2 | AW164: True | AX164: 0 | AY164: ROZPOCET
D165: VV | F165: Ležatá kanalizace | AT165: VV | AU165: 2 | AV165: 1 | AW165: True | AX165: 0 | AY165: ROZPOCET
D166: VV | F166: 15,0*0,6*0,6 | H166: 5.4 | AT166: VV | AU166: 2 | AV166: 2 | AW166: True | AX166: 0 | AY166: ROZPOCET
D167: VV | F167: Voda | AT167: VV | AU167: 2 | AV167: 1 | AW167: True | AX167: 0 | AY167: ROZPOCET
D168: VV | F168: 5,0*0,4*0,6 | H168: 1.2 | AT168: VV | AU168: 2 | AV168: 2 | AW168: True | AX168: 0 | AY168: ROZPOCET
C169: 10 | D169: K | E169: 162201219 | F169: Příplatek k vodorovnému přemístění výkopku z horniny tř. 1 až 4 stavebním kolečkem ZKD 10 m | G169: m3 | H169: 32.405 | J169: =ROUND(I169*H169,2) -> 0 | K169: CS ÚRS 2017 01 | N169: základní | P169: =O169*H169 -> 0 | Q169: 0 | R169: =Q169*H169 -> 0 | S169: 0 | T169: =S169*H169 -> 0 | AR169: 4 | AT169: K | AU169: 2 | AY169: ROZPOCET | BE169: =IF(N169="základní",J169,0) -> 0 | BF169: =IF(N169="snížená",J169,0) -> 0 | BG169: =IF(N169="zákl. přenesená",J169,0) -> 0 | BH169: =IF(N169="sníž. přenesená",J169,0) -> 0 | BI169: =IF(N169="nulová",J169,0) -> 0 | BJ169: 1 | BK169: =ROUND(I169*H169,2) -> 0 | BL169: 4 | BM169: 561731333
C170: 11 | D170: K | E170: 162206113 | F170: Vodorovné přemístění do 100 m bez naložení výkopku ze zemin schopných zúrodnění | G170: m3 | H170: 1.5 | J170: =ROUND(I170*H170,2) -> 0 | K170: CS ÚRS 2017 01 | N170: základní | P170: =O170*H170 -> 0 | Q170: 0 | R170: =Q170*H170 -> 0 | S170: 0 | T170: =S170*H170 -> 0 | AR170: 4 | AT170: K | AU170: 2 | AY170: ROZPOCET | BE170: =IF(N170="základní",J170,0) -> 0 | BF170: =IF(N170="snížená",J170,0) -> 0 | BG170: =IF(N170="zákl. přenesená",J170,0) -> 0 | BH170: =IF(N170="sníž. přenesená",J170,0) -> 0 | BI170: =IF(N170="nulová",J170,0) -> 0 | BJ170: 1 | BK170: =ROUND(I170*H170,2) -> 0 | BL170: 4 | BM170: -958267169
D171: VV | F171: Ornice na rozpřestření | AT171: VV | AU171: 2 | AV171: 1 | AW171: True | AX171: 0 | AY171: ROZPOCET
D172: VV | F172: 15,0*0,1 | H172: 1.5 | AT172: VV | AU172: 2 | AV172: 2 | AW172: True | AX172: 0 | AY172: ROZPOCET
C173: 12 | D173: K | E173: 162701105 | F173: Vodorovné přemístění do 10000 m výkopku/sypaniny z horniny tř. 1 až 4 | G173: m3 | H173: 71.368 | J173: =ROUND(I173*H173,2) -> 0 | K173: CS ÚRS 2017 01 | N173: základní | P173: =O173*H173 -> 0 | Q173: 0 | R173: =Q173*H173 -> 0 | S173: 0 | T173: =S173*H173 -> 0 | AR173: 4 | AT173: K | AU173: 2 | AY173: ROZPOCET | BE173: =IF(N173="základní",J173,0) -> 0 | BF173: =IF(N173="snížená",J173,0) -> 0 | BG173: =IF(N173="zákl. přenesená",J173,0) -> 0 | BH173: =IF(N173="sníž. přenesená",J173,0) -> 0 | BI173: =IF(N173="nulová",J173,0) -> 0 | BJ173: 1 | BK173: =ROUND(I173*H173,2) -> 0 | BL173: 4 | BM173: -971469750
D174: VV | F174: Zemina na skládku | AT174: VV | AU174: 2 | AV174: 1 | AW174: True | AX174: 0 | AY174: ROZPOCET
D175: VV | F175: 58,423+10,955+19,44 | H175: 88.818 | AT175: VV | AU175: 2 | AV175: 2 | AW175: True | AX175: 0 | AY175: ROZPOCET
D176: VV | F176: -1,130-13,6-2,72 | H176: -17.45 | AT176: VV | AU176: 2 | AV176: 2 | AW176: True | AX176: 0 | AY176: ROZPOCET
C177: 13 | D177: K | E177: 162701109 | F177: Příplatek k vodorovnému přemístění výkopku/sypaniny z horniny tř. 1 až 4 ZKD 1000 m přes 10000 m | G177: m3 | H177: 142.736 | J177: =ROUND(I177*H177,2) -> 0 | K177: CS ÚRS 2017 01 | N177: základní | P177: =O177*H177 -> 0 | Q177: 0 | R177: =Q177*H177 -> 0 | S177: 0 | T177: =S177*H177 -> 0 | AR177: 4 | AT177: K | AU177: 2 | AY177: ROZPOCET | BE177: =IF(N177="základní",J177,0) -> 0 | BF177: =IF(N177="snížená",J177,0) -> 0 | BG177: =IF(N177="zákl. přenesená",J177,0) -> 0 | BH177: =IF(N177="sníž. přenesená",J177,0) -> 0 | BI177: =IF(N177="nulová",J177,0) -> 0 | BJ177: 1 | BK177: =ROUND(I177*H177,2) -> 0 | BL177: 4 | BM177: 1929235307
D178: VV | F178: Zemina na skládku | AT178: VV | AU178: 2 | AV178: 1 | AW178: True | AX178: 0 | AY178: ROZPOCET
D179: VV | F179: 58,423+10,955+19,44 | H179: 88.818 | AT179: VV | AU179: 2 | AV179: 2 | AW179: True | AX179: 0 | AY179: ROZPOCET
D180: VV | F180: -1,130-13,6-2,72 | H180: -17.45 | AT180: VV | AU180: 2 | AV180: 2 | AW180: True | AX180: 0 | AY180: ROZPOCET
D181: VV | F181: 71,368*2 'Přepočtené koeficientem množství | H181: 142.736 | AT181: VV | AU181: 2 | AV181: 2 | AW181: False | AX181: 1 | AY181: ROZPOCET
C182: 14 | D182: K | E182: 171102102 | F182: Uložení sypaniny z hornin soudržných do násypů zhutněných do 96 % PS | G182: m3 | H182: 1.13 | J182: =ROUND(I182*H182,2) -> 0 | K182: CS ÚRS 2017 01 | N182: základní | P182: =O182*H182 -> 0 | Q182: 0 | R182: =Q182*H182 -> 0 | S182: 0 | T182: =S182*H182 -> 0 | AR182: 4 | AT182: K | AU182: 2 | AY182: ROZPOCET | BE182: =IF(N182="základní",J182,0) -> 0 | BF182: =IF(N182="snížená",J182,0) -> 0 | BG182: =IF(N182="zákl. přenesená",J182,0) -> 0 | BH182: =IF(N182="sníž. přenesená",J182,0) -> 0 | BI182: =IF(N182="nulová",J182,0) -> 0 | BJ182: 1 | BK182: =ROUND(I182*H182,2) -> 0 | BL182: 4 | BM182: -999574470
D183: VV | F183: Vstup do objektu | AT183: VV | AU183: 2 | AV183: 1 | AW183: True | AX183: 0 | AY183: ROZPOCET
D184: VV | F184: 0,16*3,8+0,29*1,8 | H184: 1.13 | AT184: VV | AU184: 2 | AV184: 2 | AW184: True | AX184: 1 | AY184: ROZPOCET
C185: 15 | D185: K | E185: 171201211 | F185: Poplatek za uložení odpadu ze sypaniny na skládce (skládkovné) | G185: t | H185: 13.55 | J185: =ROUND(I185*H185,2) -> 0 | K185: CS ÚRS 2017 01 | N185: základní | P185: =O185*H185 -> 0 | Q185: 0 | R185: =Q185*H185 -> 0 | S185: 0 | T185: =S185*H185 -> 0 | AR185: 4 | AT185: K | AU185: 2 | AY185: ROZPOCET | BE185: =IF(N185="základní",J185,0) -> 0 | BF185: =IF(N185="snížená",J185,0) -> 0 | BG185: =IF(N185="zákl. přenesená",J185,0) -> 0 | BH185: =IF(N185="sníž. přenesená",J185,0) -> 0 | BI185: =IF(N185="nulová",J185,0) -> 0 | BJ185: 1 | BK185: =ROUND(I185*H185,2) -> 0 | BL185: 4 | BM185: 892254033
D186: VV | F186: 'Přepočtené koeficientem množství | H186: 13.55 | AT186: VV | AU186: 2 | AV186: 2 | AW186: False | AX186: 1 | AY186: ROZPOCET
C187: 16 | D187: K | E187: 167103101 | F187: Nakládání výkopku ze zemin schopných zúrodnění | G187: m3 | H187: 1.5 | J187: =ROUND(I187*H187,2) -> 0 | K187: CS ÚRS 2017 01 | N187: základní | P187: =O187*H187 -> 0 | Q187: 0 | R187: =Q187*H187 -> 0 | S187: 0 | T187: =S187*H187 -> 0 | AR187: 4 | AT187: K | AU187: 2 | AY187: ROZPOCET | BE187: =IF(N187="základní",J187,0) -> 0 | BF187: =IF(N187="snížená",J187,0) -> 0 | BG187: =IF(N187="zákl. přenesená",J187,0) -> 0 | BH187: =IF(N187="sníž. přenesená",J187,0) -> 0 | BI187: =IF(N187="nulová",J187,0) -> 0 | BJ187: 1 | BK187: =ROUND(I187*H187,2) -> 0 | BL187: 4 | BM187: -262953415
D188: VV | F188: Ornice na rozpřestření | AT188: VV | AU188: 2 | AV188: 1 | AW188: True | AX188: 0 | AY188: ROZPOCET
D189: VV | F189: 15,0*0,1 | H189: 1.5 | AT189: VV | AU189: 2 | AV189: 2 | AW189: True | AX189: 0 | AY189: ROZPOCET
C190: 17 | D190: K | E190: 167101101 | F190: Nakládání výkopku z hornin tř. 1 až 4 do 100 m3 | G190: m3 | H190: 88.818 | J190: =ROUND(I190*H190,2) -> 0 | K190: CS ÚRS 2017 01 | N190: základní | P190: =O190*H190 -> 0 | Q190: 0 | R190: =Q190*H190 -> 0 | S190: 0 | T190: =S190*H190 -> 0 | AR190: 4 | AT190: K | AU190: 2 | AY190: ROZPOCET | BE190: =IF(N190="základní",J190,0) -> 0 | BF190: =IF(N190="snížená",J190,0) -> 0 | BG190: =IF(N190="zákl. přenesená",J190,0) -> 0 | BH190: =IF(N190="sníž. přenesená",J190,0) -> 0 | BI190: =IF(N190="nulová",J190,0) -> 0 | BJ190: 1 | BK190: =ROUND(I190*H190,2) -> 0 | BL190: 4 | BM190: 1679441105
D191: VV | F191: 58,423+10,955+19,44 | H191: 88.818 | AT191: VV | AU191: 2 | AV191: 2 | AW191: True | AX191: 0 | AY191: ROZPOCET
C192: 18 | D192: K | E192: 175151101 | F192: Obsypání potrubí strojně sypaninou bez prohození, uloženou do 3 m | G192: m3 | H192: 13.6 | J192: =ROUND(I192*H192,2) -> 0 | K192: CS ÚRS 2017 01 | N192: základní | P192: =O192*H192 -> 0 | Q192: 0 | R192: =Q192*H192 -> 0 | S192: 0 | T192: =S192*H192 -> 0 | AR192: 4 | AT192: K | AU192: 2 | AY192: ROZPOCET | BE192: =IF(N192="základní",J192,0) -> 0 | BF192: =IF(N192="snížená",J192,0) -> 0 | BG192: =IF(N192="zákl. přenesená",J192,0) -> 0 | BH192: =IF(N192="sníž. přenesená",J192,0) -> 0 | BI192: =IF(N192="nulová",J192,0) -> 0 | BJ192: 1 | BK192: =ROUND(I192*H192,2) -> 0 | BL192: 4 | BM192: 324977273
D193: VV | F193: Ležatá kanalizace | AT193: VV | AU193: 2 | AV193: 1 | AW193: True | AX193: 0 | AY193: ROZPOCET
D194: VV | F194: 15,0*0,6*0,5 | H194: 4.5 | AT194: VV | AU194: 2 | AV194: 2 | AW194: True | AX194: 0 | AY194: ROZPOCET
D195: VV | F195: Voda | AT195: VV | AU195: 2 | AV195: 1 | AW195: True | AX195: 0 | AY195: ROZPOCET
D196: VV | F196: 5,0*0,4*0,5 | H196: 1 | AT196: VV | AU196: 2 | AV196: 2 | AW196: True | AX196: 0 | AY196: ROZPOCET
D197: VV | F197: . | AT197: VV | AU197: 2 | AV197: 1 | AW197: True | AX197: 0 | AY197: ROZPOCET
D198: VV | F198: Přípojka vody | AT198: VV | AU198: 2 | AV198: 1 | AW198: True | AX198: 0 | AY198: ROZPOCET
D199: VV | F199: 9,0*0,8*0,5 | H199: 3.6 | AT199: VV | AU199: 2 | AV199: 2 | AW199: True | AX199: 0 | AY199: ROZPOCET
D200: VV | F200: Přípojka kanalizace | AT200: VV | AU200: 2 | AV200: 1 | AW200: True | AX200: 0 | AY200: ROZPOCET
D201: VV | F201: 9,0*1,0*0,5 | H201: 4.5 | AT201: VV | AU201: 2 | AV201: 2 | AW201: True | AX201: 0 | AY201: ROZPOCET
C202: 19 | D202: M | E202: 583373_R1 | F202: štěrkopísek pro zásyp frakce 0-8 | G202: t | H202: 27.2 | J202: =ROUND(I202*H202,2) -> 0 | K202: vlastní | N202: základní | P202: =O202*H202 -> 0 | Q202: 0 | R202: =Q202*H202 -> 0 | S202: 0 | T202: =S202*H202 -> 0 | AR202: 8 | AT202: M | AU202: 2 | AY202: ROZPOCET | BE202: =IF(N202="základní",J202,0) -> 0 | BF202: =IF(N202="snížená",J202,0) -> 0 | BG202: =IF(N202="zákl. přenesená",J202,0) -> 0 | BH202: =IF(N202="sníž. přenesená",J202,0) -> 0 | BI202: =IF(N202="nulová",J202,0) -> 0 | BJ202: 1 | BK202: =ROUND(I202*H202,2) -> 0 | BL202: 4 | BM202: -1398658233
D203: VV | F203: 13,6*2 'Přepočtené koeficientem množství | H203: 27.2 | AT203: VV | AU203: 2 | AV203: 2 | AW203: False | AX203: 1 | AY203: ROZPOCET
C204: 20 | D204: K | E204: 181951102 | F204: Úprava pláně v hornině tř. 1 až 4 se zhutněním | G204: m2 | H204: 97.658 | J204: =ROUND(I204*H204,2) -> 0 | K204: CS ÚRS 2017 01 | N204: základní | P204: =O204*H204 -> 0 | Q204: 0 | R204: =Q204*H204 -> 0 | S204: 0 | T204: =S204*H204 -> 0 | AR204: 4 | AT204: K | AU204: 2 | AY204: ROZPOCET | BE204: =IF(N204="základní",J204,0) -> 0 | BF204: =IF(N204="snížená",J204,0) -> 0 | BG204: =IF(N204="zákl. přenesená",J204,0) -> 0 | BH204: =IF(N204="sníž. přenesená",J204,0) -> 0 | BI204: =IF(N204="nulová",J204,0) -> 0 | BJ204: 1 | BK204: =ROUND(I204*H204,2) -> 0 | BL204: 4 | BM204: -231597449
D205: VV | F205: Patka | AT205: VV | AU205: 2 | AV205: 1 | AW205: True | AX205: 0 | AY205: ROZPOCET
D206: VV | F206: 0,6*0,6 | H206: 0.36 | AT206: VV | AU206: 2 | AV206: 2 | AW206: True | AX206: 0 | AY206: ROZPOCET
D207: VV | F207: Prohloubení zeminy uvnitř objektu | AT207: VV | AU207: 2 | AV207: 1 | AW207: True | AX207: 0 | AY207: ROZPOCET
D208: VV | F208: (7,74+31,35+11,0+1,35+1,81+1,63+8,33+1,11+21,48) | H208: 85.8 | AT208: VV | AU208: 2 | AV208: 2 | AW208: True | AX208: 0 | AY208: ROZPOCET
D209: VV | F209: Základové pásy | AT209: VV | AU209: 2 | AV209: 1 | AW209: True | AX209: 0 | AY209: ROZPOCET
D210: VV | F210: (1,85+1,74)*0,6 | H210: 2.154 | AT210: VV | AU210: 2 | AV210: 2 | AW210: True | AX210: 0 | AY210: ROZPOCET
D211: VV | F211: 2,5*0,6 | H211: 1.5 | AT211: VV | AU211: 2 | AV211: 2 | AW211: True | AX211: 0 | AY211: ROZPOCET
D212: VV | F212: 1,145*0,3 | H212: 0.344 | AT212: VV | AU212: 2 | AV212: 2 | AW212: True | AX212: 0 | AY212: ROZPOCET
D213: VV | F213: Chodník | AT213: VV | AU213: 2 | AV213: 1 | AW213: True | AX213: 0 | AY213: ROZPOCET
D214: VV | F214: 7,5 | H214: 7.5 | AT214: VV | AU214: 2 | AV214: 2 | AW214: True | AX214: 0 | AY214: ROZPOCET
D215: D | E215: 18 | F215: Zemní práce - povrchové úpravy terénu | J215: =BK215 -> 0 | P215: =SUM(P216:P227) -> 0 | R215: =SUM(R216:R227) -> 0.0003 | T215: =SUM(T216:T227) -> 0 | AR215: 1 | AT215: D | AU215: 1 | AY215: ROZPOCET | BK215: =SUM(BK216:BK227) -> 0
C216: 21 | D216: K | E216: 181301101 | F216: Rozprostření ornice tl vrstvy do 100 mm pl do 500 m2 v rovině nebo ve svahu do 1:5 | G216: m2 | H216: 15 | J216: =ROUND(I216*H216,2) -> 0 | K216: CS ÚRS 2017 01 | N216: základní | P216: =O216*H216 -> 0 | Q216: 0 | R216: =Q216*H216 -> 0 | S216: 0 | T216: =S216*H216 -> 0 | AR216: 4 | AT216: K | AU216: 2 | AY216: ROZPOCET | BE216: =IF(N216="základní",J216,0) -> 0 | BF216: =IF(N216="snížená",J216,0) -> 0 | BG216: =IF(N216="zákl. přenesená",J216,0) -> 0 | BH216: =IF(N216="sníž. přenesená",J216,0) -> 0 | BI216: =IF(N216="nulová",J216,0) -> 0 | BJ216: 1 | BK216: =ROUND(I216*H216,2) -> 0 | BL216: 4 | BM216: -919044969
D217: VV | F217: 15,0 | H217: 15 | AT217: VV | AU217: 2 | AV217: 2 | AW217: True | AX217: 0 | AY217: ROZPOCET
C218: 22 | D218: K | E218: 181411131 | F218: Založení parkového trávníku výsevem plochy do 1000 m2 v rovině a ve svahu do 1:5 | G218: m2 | H218: 15 | J218: =ROUND(I218*H218,2) -> 0 | K218: CS ÚRS 2017 01 | N218: základní | P218: =O218*H218 -> 0 | Q218: 0 | R218: =Q218*H218 -> 0 | S218: 0 | T218: =S218*H218 -> 0 | AR218: 4 | AT218: K | AU218: 2 | AY218: ROZPOCET | BE218: =IF(N218="základní",J218,0) -> 0 | BF218: =IF(N218="snížená",J218,0) -> 0 | BG218: =IF(N218="zákl. přenesená",J218,0) -> 0 | BH218: =IF(N218="sníž. přenesená",J218,0) -> 0 | BI218: =IF(N218="nulová",J218,0) -> 0 | BJ218: 1 | BK218: =ROUND(I218*H218,2) -> 0 | BL218: 4 | BM218: 1145534168
D219: VV | F219: 15,0 | H219: 15 | AT219: VV | AU219: 2 | AV219: 2 | AW219: True | AX219: 0 | AY219: ROZPOCET
C220: 23 | D220: M | E220: 005724100 | F220: osivo směs travní parková | G220: kg | H220: 0.3 | J220: =ROUND(I220*H220,2) -> 0 | K220: CS ÚRS 2017 01 | N220: základní | P220: =O220*H220 -> 0 | Q220: 0.001 | R220: =Q220*H220 -> 0.0003 | S220: 0 | T220: =S220*H220 -> 0 | AR220: 8 | AT220: M | AU220: 2 | AY220: ROZPOCET | BE220: =IF(N220="základní",J220,0) -> 0 | BF220: =IF(N220="snížená",J220,0) -> 0 | BG220: =IF(N220="zákl. přenesená",J220,0) -> 0 | BH220: =IF(N220="sníž. přenesená",J220,0) -> 0 | BI220: =IF(N220="nulová",J220,0) -> 0 | BJ220: 1 | BK220: =ROUND(I220*H220,2) -> 0 | BL220: 4 | BM220: 1806170276
D221: VV | F221: 15*0,02 'Přepočtené koeficientem množství | H221: 0.3 | AT221: VV | AU221: 2 | AV221: 2 | AW221: False | AX221: 1 | AY221: ROZPOCET
C222: 24 | D222: K | E222: 181951101 | F222: Úprava pláně v hornině tř. 1 až 4 bez zhutnění | G222: m2 | H222: 15 | J222: =ROUND(I222*H222,2) -> 0 | K222: CS ÚRS 2017 01 | N222: základní | P222: =O222*H222 -> 0 | Q222: 0 | R222: =Q222*H222 -> 0 | S222: 0 | T222: =S222*H222 -> 0 | AR222: 4 | AT222: K | AU222: 2 | AY222: ROZPOCET | BE222: =IF(N222="základní",J222,0) -> 0 | BF222: =IF(N222="snížená",J222,0) -> 0 | BG222: =IF(N222="zákl. přenesená",J222,0) -> 0 | BH222: =IF(N222="sníž. přenesená",J222,0) -> 0 | BI222: =IF(N222="nulová",J222,0) -> 0 | BJ222: 1 | BK222: =ROUND(I222*H222,2) -> 0 | BL222: 4 | BM222: 1380756694
D223: VV | F223: Ornice | AT223: VV | AU223: 2 | AV223: 1 | AW223: True | AX223: 0 | AY223: ROZPOCET
D224: VV | F224: 15,0 | H224: 15 | AT224: VV | AU224: 2 | AV224: 2 | AW224: True | AX224: 0 | AY224: ROZPOCET
C225: 25 | D225: K | E225: 183403161 | F225: Obdělání půdy válením v rovině a svahu do 1:5 | G225: m2 | H225: 15 | J225: =ROUND(I225*H225,2) -> 0 | K225: CS ÚRS 2017 01 | N225: základní | P225: =O225*H225 -> 0 | Q225: 0 | R225: =Q225*H225 -> 0 | S225: 0 | T225: =S225*H225 -> 0 | AR225: 4 | AT225: K | AU225: 2 | AY225: ROZPOCET | BE225: =IF(N225="základní",J225,0) -> 0 | BF225: =IF(N225="snížená",J225,0) -> 0 | BG225: =IF(N225="zákl. přenesená",J225,0) -> 0 | BH225: =IF(N225="sníž. přenesená",J225,0) -> 0 | BI225: =IF(N225="nulová",J225,0) -> 0 | BJ225: 1 | BK225: =ROUND(I225*H225,2) -> 0 | BL225: 4 | BM225: -2074999430
D226: VV | F226: Ornice | AT226: VV | AU226: 2 | AV226: 1 | AW226: True | AX226: 0 | AY226: ROZPOCET
D227: VV | F227: 15,0 | H227: 15 | AT227: VV | AU227: 2 | AV227: 2 | AW227: True | AX227: 0 | AY227: ROZPOCET
D228: D | E228: 27 | F228: Zakládání - základy | J228: =BK228 -> 0 | P228: =SUM(P229:P269) -> 0 | R228: =SUM(R229:R269) -> 77.43497435 | T228: =SUM(T229:T269) -> 0 | AR228: 1 | AT228: D | AU228: 1 | AY228: ROZPOCET | BK228: =SUM(BK229:BK269) -> 0
C229: 26 | D229: K | E229: 213311_R1 | F229: Polštáře zhutněné pod základy z kameniva drceného frakce 0 až 63 mm | G229: m3 | H229: 17.893 | J229: =ROUND(I229*H229,2) -> 0 | K229: vlastní | N229: základní | P229: =O229*H229 -> 0 | Q229: 2.16 | R229: =Q229*H229 -> 38.64888 | S229: 0 | T229: =S229*H229 -> 0 | AR229: 4 | AT229: K | AU229: 2 | AY229: ROZPOCET | BE229: =IF(N229="základní",J229,0) -> 0 | BF229: =IF(N229="snížená",J229,0) -> 0 | BG229: =IF(N229="zákl. přenesená",J229,0) -> 0 | BH229: =IF(N229="sníž. přenesená",J229,0) -> 0 | BI229: =IF(N229="nulová",J229,0) -> 0 | BJ229: 1 | BK229: =ROUND(I229*H229,2) -> 0 | BL229: 4 | BM229: 1623764663
D230: VV | F230: Pod podkladní beton | AT230: VV | AU230: 2 | AV230: 1 | AW230: True | AX230: 0 | AY230: ROZPOCET
D231: VV | F231: Deska D2 | AT231: VV | AU231: 2 | AV231: 1 | AW231: True | AX231: 0 | AY231: ROZPOCET
... 929 more rows

Sheet D1_01_3 - Požárně bezpečn...
D1: List obsahuje: | F1: 1) Krycí list soupisu | G1: 2) Rekapitulace | J1: 3) Soupis prací | K1: Zpět na list: | L1: Rekapitulace stavby
L2: >> skryté sloupce << | AT2: {24198582-d400-4100-9c00-a7c99712b7d3}
AT3: 2
D4: KRYCÍ LIST SOUPISU | M4: v --- níže se nacházejí doplnkové a pomocné údaje k sestavám --- v | AT4: False
D6: Stavba:
E7: ='Rekapitulace stavby'!K6 -> Přístavba a stavební úpravy víceúčelového objektu ve Vadíně č.p. 11
D8: Objekt:
E9: D1_01 - Přístavba
D10: Soupis:
E11: D1_01_3 - Požárně bezpečnostní řešení
D13: KSO: | F13: 8016916 | I13: CC-CZ:
D14: Místo: | F14: Vadín | I14: Datum: | J14: ='Rekapitulace stavby'!AN8 -> 3. 9. 2017
D16: Zadavatel: | I16: IČ:
E17: Obec Okrouhlice | I17: DIČ:
D19: Uchazeč: | I19: IČ: | J19: =IF('Rekapitulace stavby'!AN13="Vyplň údaj","",IF('Rekapitulace stavby'!AN13="","",'Rekapitulace stavby'!AN13)) -> 
E20: =IF('Rekapitulace stavby'!E14="Vyplň údaj","",IF('Rekapitulace stavby'!E14="","",'Rekapitulace stavby'!E14)) ->  | I20: DIČ: | J20: =IF('Rekapitulace stavby'!AN14="Vyplň údaj","",IF('Rekapitulace stavby'!AN14="","",'Rekapitulace stavby'!AN14)) -> 
D22: Projektant: | I22: IČ:
E23: Ing. Suk - EREKTA | I23: DIČ:
D25: Poznámka:
D29: Cena bez DPH | J29: =ROUND(J84,2) -> 0
F31: Základ daně | I31: Sazba daně | J31: Výše daně
D32: DPH | E32: základní | F32: =ROUND(SUM(BE84:BE100), 2) -> 0 | I32: 0.21 | J32: =ROUND(ROUND((SUM(BE84:BE100)), 2)*I32, 2) -> 0
E33: snížená | F33: =ROUND(SUM(BF84:BF100), 2) -> 0 | I33: 0.15 | J33: =ROUND(ROUND((SUM(BF84:BF100)), 2)*I33, 2) -> 0
E34: zákl. přenesená | F34: =ROUND(SUM(BG84:BG100), 2) -> 0 | I34: 0.21 | J34: 0
E35: sníž. přenesená | F35: =ROUND(SUM(BH84:BH100), 2) -> 0 | I35: 0.15 | J35: 0
E36: nulová | F36: =ROUND(SUM(BI84:BI100), 2) -> 0 | I36: 0 | J36: 0
D38: Cena s DPH | G38: v | H38: CZK | J38: =SUM(J29:J36) -> 0
C44: REKAPITULACE ČLENĚNÍ SOUPISU PRACÍ
C46: Stavba:
E47: =E7 -> Přístavba a stavební úpravy víceúčelového objektu ve Vadíně č.p. 11
C48: Objekt:
E49: D1_01 - Přístavba
C50: Soupis:
E51: =E11 -> D1_01_3 - Požárně bezpečnostní řešení
C53: Místo: | F53: =F14 -> Vadín | I53: Datum: | J53: =IF(J14="","",J14) -> 3. 9. 2017
C55: Zadavatel: | F55: =E17 -> Obec Okrouhlice | I55: Projektant: | J55: =E23 -> Ing. Suk - EREKTA
C56: Uchazeč: | F56: =IF(E20="","",E20) -> 
C58: Kód dílu - Popis | J58: Cena celkem [CZK]
C60: Náklady soupisu celkem | J60: =J84 -> 0 | AU60: -1
D61: HSV - HSV | J61: =J85 -> 0
D62: PBŘ - Požárně bezpečnostrní řešení | J62: =J86 -> 0
C69: SOUPIS PRACÍ
C71: Stavba:
E72: =E7 -> Přístavba a stavební úpravy víceúčelového objektu ve Vadíně č.p. 11
C73: Objekt:
E74: D1_01 - Přístavba
C75: Soupis:
E76: =E11 -> D1_01_3 - Požárně bezpečnostní řešení
C78: Místo: | F78: =F14 -> Vadín | I78: Datum: | J78: =IF(J14="","",J14) -> 3. 9. 2017
C80: Zadavatel: | F80: =E17 -> Obec Okrouhlice | I80: Projektant: | J80: =E23 -> Ing. Suk - EREKTA
C81: Uchazeč: | F81: =IF(E20="","",E20) -> 
C83: PČ | D83: Typ | E83: Kód | F83: Popis | G83: MJ | H83: Množství | I83: J.cena [CZK] | J83: Cena celkem [CZK] | K83: Cenová soustava | M83: Poznámka | N83: DPH | O83: J. Nh [h] | P83: Nh celkem [h] | Q83: J. hmotnost [t] | R83: Hmotnost celkem [t] | S83: J. suť [t] | T83: Suť Celkem [t]
C84: Náklady soupisu celkem | J84: =BK84 -> 0 | P84: =P85 -> 0 | R84: =R85 -> 0.004 | T84: =T85 -> 0 | AT84: D | AU84: -1 | BK84: =BK85 -> 0
D85: D | E85: HSV | F85: HSV | J85: =BK85 -> 0 | P85: =P86 -> 0 | R85: =R86 -> 0.004 | T85: =T86 -> 0 | AR85: 1 | AT85: D | AU85: 0 | AY85: ROZPOCET | BK85: =BK86 -> 0
D86: D | E86: PBŘ | F86: Požárně bezpečnostrní řešení | J86: =BK86 -> 0 | P86: =SUM(P87:P100) -> 0 | R86: =SUM(R87:R100) -> 0.004 | T86: =SUM(T87:T100) -> 0 | AR86: 1 | AT86: D | AU86: 1 | AY86: ROZPOCET | BK86: =SUM(BK87:BK100) -> 0
C87: 1 | D87: M | E87: PBR101PHP | F87: přenosný hasící přístroj 27A o obsahu 6 kg | G87: KS | H87: 1 | J87: =ROUND(I87*H87,2) -> 0 | K87: vlastní | N87: základní | P87: =O87*H87 -> 0 | Q87: 0.0004 | R87: =Q87*H87 -> 0.0004 | S87: 0 | T87: =S87*H87 -> 0 | AR87: 8 | AT87: M | AU87: 2 | AY87: ROZPOCET | BE87: =IF(N87="základní",J87,0) -> 0 | BF87: =IF(N87="snížená",J87,0) -> 0 | BG87: =IF(N87="zákl. přenesená",J87,0) -> 0 | BH87: =IF(N87="sníž. přenesená",J87,0) -> 0 | BI87: =IF(N87="nulová",J87,0) -> 0 | BJ87: 1 | BK87: =ROUND(I87*H87,2) -> 0 | BL87: 4 | BM87: -356669639
D88: VV | F88: 1 | H88: 1 | AT88: VV | AU88: 2 | AV88: 2 | AW88: True | AX88: 1 | AY88: ROZPOCET
C89: 2 | D89: K | E89: PBR9R1 | F89: Montáž přenosných hasících přístrojů | G89: KS | H89: 1 | J89: =ROUND(I89*H89,2) -> 0 | K89: vlastní | N89: základní | P89: =O89*H89 -> 0 | Q89: 0 | R89: =Q89*H89 -> 0 | S89: 0 | T89: =S89*H89 -> 0 | AR89: 4 | AT89: K | AU89: 2 | AY89: ROZPOCET | BE89: =IF(N89="základní",J89,0) -> 0 | BF89: =IF(N89="snížená",J89,0) -> 0 | BG89: =IF(N89="zákl. přenesená",J89,0) -> 0 | BH89: =IF(N89="sníž. přenesená",J89,0) -> 0 | BI89: =IF(N89="nulová",J89,0) -> 0 | BJ89: 1 | BK89: =ROUND(I89*H89,2) -> 0 | BL89: 4 | BM89: 288362989
D90: VV | F90: 1 | H90: 1 | AT90: VV | AU90: 2 | AV90: 2 | AW90: True | AX90: 1 | AY90: ROZPOCET
C91: 3 | D91: K | E91: EPS-15 | F91: Autonomní hlásič kouře, D+M | G91: ks | H91: 3 | J91: =ROUND(I91*H91,2) -> 0 | K91: vlastní | N91: základní | P91: =O91*H91 -> 0 | Q91: 0 | R91: =Q91*H91 -> 0 | S91: 0 | T91: =S91*H91 -> 0 | AR91: 4 | AT91: K | AU91: 2 | AY91: ROZPOCET | BE91: =IF(N91="základní",J91,0) -> 0 | BF91: =IF(N91="snížená",J91,0) -> 0 | BG91: =IF(N91="zákl. přenesená",J91,0) -> 0 | BH91: =IF(N91="sníž. přenesená",J91,0) -> 0 | BI91: =IF(N91="nulová",J91,0) -> 0 | BJ91: 1 | BK91: =ROUND(I91*H91,2) -> 0 | BL91: 4 | BM91: 870208253
D92: VV | F92: 3 | H92: 3 | AT92: VV | AU92: 2 | AV92: 2 | AW92: True | AX92: 1 | AY92: ROZPOCET
C93: 4 | D93: M | E93: PBR100ozn | F93: označení protipožární ucpávky z obou stran požár. kce | G93: KS | H93: 6 | J93: =ROUND(I93*H93,2) -> 0 | K93: vlastní | N93: základní | P93: =O93*H93 -> 0 | Q93: 0.0004 | R93: =Q93*H93 -> 0.0024 | S93: 0 | T93: =S93*H93 -> 0 | AR93: 8 | AT93: M | AU93: 2 | AY93: ROZPOCET | BE93: =IF(N93="základní",J93,0) -> 0 | BF93: =IF(N93="snížená",J93,0) -> 0 | BG93: =IF(N93="zákl. přenesená",J93,0) -> 0 | BH93: =IF(N93="sníž. přenesená",J93,0) -> 0 | BI93: =IF(N93="nulová",J93,0) -> 0 | BJ93: 1 | BK93: =ROUND(I93*H93,2) -> 0 | BL93: 4 | BM93: -1128368343
D94: VV | F94: 6 | H94: 6 | AT94: VV | AU94: 2 | AV94: 2 | AW94: True | AX94: 1 | AY94: ROZPOCET
C95: 5 | D95: K | E95: PBR1ozn | F95: Montáž označení protipožární ucpávky z obou stran požár. kce | G95: KS | H95: 6 | J95: =ROUND(I95*H95,2) -> 0 | K95: vlastní | N95: základní | P95: =O95*H95 -> 0 | Q95: 0 | R95: =Q95*H95 -> 0 | S95: 0 | T95: =S95*H95 -> 0 | AR95: 4 | AT95: K | AU95: 2 | AY95: ROZPOCET | BE95: =IF(N95="základní",J95,0) -> 0 | BF95: =IF(N95="snížená",J95,0) -> 0 | BG95: =IF(N95="zákl. přenesená",J95,0) -> 0 | BH95: =IF(N95="sníž. přenesená",J95,0) -> 0 | BI95: =IF(N95="nulová",J95,0) -> 0 | BJ95: 1 | BK95: =ROUND(I95*H95,2) -> 0 | BL95: 4 | BM95: -1499548053
D96: VV | F96: 6 | H96: 6 | AT96: VV | AU96: 2 | AV96: 2 | AW96: True | AX96: 1 | AY96: ROZPOCET
C97: 6 | D97: M | E97: PBR100NÁT | F97: požární nátěr na desky z min. plsti 150 kg/m2 - balení 17,5 kg | G97: KS | H97: 3 | J97: =ROUND(I97*H97,2) -> 0 | K97: vlastní | N97: základní | P97: =O97*H97 -> 0 | Q97: 0.0004 | R97: =Q97*H97 -> 0.0012 | S97: 0 | T97: =S97*H97 -> 0 | AR97: 8 | AT97: M | AU97: 2 | AY97: ROZPOCET | BE97: =IF(N97="základní",J97,0) -> 0 | BF97: =IF(N97="snížená",J97,0) -> 0 | BG97: =IF(N97="zákl. přenesená",J97,0) -> 0 | BH97: =IF(N97="sníž. přenesená",J97,0) -> 0 | BI97: =IF(N97="nulová",J97,0) -> 0 | BJ97: 1 | BK97: =ROUND(I97*H97,2) -> 0 | BL97: 4 | BM97: 695810561
D98: VV | F98: 3 | H98: 3 | AT98: VV | AU98: 2 | AV98: 2 | AW98: True | AX98: 1 | AY98: ROZPOCET
C99: 7 | D99: K | E99: PBR10PHP | F99: MONTÁŽ PROTIPOŽÁRNÍHO NÁTĚRU na desky z min. plsti 150 kg/m2 - balení 17,5 kg | G99: KS | H99: 3 | J99: =ROUND(I99*H99,2) -> 0 | K99: vlastní | N99: základní | P99: =O99*H99 -> 0 | Q99: 0 | R99: =Q99*H99 -> 0 | S99: 0 | T99: =S99*H99 -> 0 | AR99: 4 | AT99: K | AU99: 2 | AY99: ROZPOCET | BE99: =IF(N99="základní",J99,0) -> 0 | BF99: =IF(N99="snížená",J99,0) -> 0 | BG99: =IF(N99="zákl. přenesená",J99,0) -> 0 | BH99: =IF(N99="sníž. přenesená",J99,0) -> 0 | BI99: =IF(N99="nulová",J99,0) -> 0 | BJ99: 1 | BK99: =ROUND(I99*H99,2) -> 0 | BL99: 4 | BM99: 1734264764
D100: VV | F100: 3 | H100: 3 | AT100: VV | AU100: 2 | AV100: 2 | AW100: True | AX100: 1 | AY100: ROZPOCET
H677: 8.93

Sheet D1_01_4a - Vytápění
D1: List obsahuje: | F1: 1) Krycí list soupisu | G1: 2) Rekapitulace | J1: 3) Soupis prací | K1: Zpět na list: | L1: Rekapitulace stavby
L2: >> skryté sloupce << | AT2: {c25450a4-2472-4e18-be5d-b0969239a85d}
AT3: 2
D4: KRYCÍ LIST SOUPISU | M4: v --- níže se nacházejí doplnkové a pomocné údaje k sestavám --- v | AT4: False
D6: Stavba:
E7: ='Rekapitulace stavby'!K6 -> Přístavba a stavební úpravy víceúčelového objektu ve Vadíně č.p. 11
D8: Objekt:
E9: D1_01 - Přístavba
D10: Soupis:
E11: D1_01_4a - Vytápění
D13: KSO: | I13: CC-CZ:
D14: Místo: | F14: Vadín | I14: Datum: | J14: ='Rekapitulace stavby'!AN8 -> 3. 9. 2017
D16: Zadavatel: | I16: IČ:
E17: Obec Okrouhlice | I17: DIČ:
D19: Uchazeč: | I19: IČ: | J19: =IF('Rekapitulace stavby'!AN13="Vyplň údaj","",IF('Rekapitulace stavby'!AN13="","",'Rekapitulace stavby'!AN13)) -> 
E20: =IF('Rekapitulace stavby'!E14="Vyplň údaj","",IF('Rekapitulace stavby'!E14="","",'Rekapitulace stavby'!E14)) ->  | I20: DIČ: | J20: =IF('Rekapitulace stavby'!AN14="Vyplň údaj","",IF('Rekapitulace stavby'!AN14="","",'Rekapitulace stavby'!AN14)) -> 
D22: Projektant: | I22: IČ:
E23: Ing. Suk - EREKTA | I23: DIČ:
D25: Poznámka:
D29: Cena bez DPH | J29: =ROUND(J89,2) -> 0
F31: Základ daně | I31: Sazba daně | J31: Výše daně
D32: DPH | E32: základní | F32: =ROUND(SUM(BE89:BE187), 2) -> 0 | I32: 0.21 | J32: =ROUND(ROUND((SUM(BE89:BE187)), 2)*I32, 2) -> 0
E33: snížená | F33: =ROUND(SUM(BF89:BF187), 2) -> 0 | I33: 0.15 | J33: =ROUND(ROUND((SUM(BF89:BF187)), 2)*I33, 2) -> 0
E34: zákl. přenesená | F34: =ROUND(SUM(BG89:BG187), 2) -> 0 | I34: 0.21 | J34: 0
E35: sníž. přenesená | F35: =ROUND(SUM(BH89:BH187), 2) -> 0 | I35: 0.15 | J35: 0
E36: nulová | F36: =ROUND(SUM(BI89:BI187), 2) -> 0 | I36: 0 | J36: 0
D38: Cena s DPH | G38: v | H38: CZK | J38: =SUM(J29:J36) -> 0
C44: REKAPITULACE ČLENĚNÍ SOUPISU PRACÍ
C46: Stavba:
E47: =E7 -> Přístavba a stavební úpravy víceúčelového objektu ve Vadíně č.p. 11
C48: Objekt:
E49: D1_01 - Přístavba
C50: Soupis:
E51: =E11 -> D1_01_4a - Vytápění
C53: Místo: | F53: =F14 -> Vadín | I53: Datum: | J53: =IF(J14="","",J14) -> 3. 9. 2017
C55: Zadavatel: | F55: =E17 -> Obec Okrouhlice | I55: Projektant: | J55: =E23 -> Ing. Suk - EREKTA
C56: Uchazeč: | F56: =IF(E20="","",E20) -> 
C58: Kód dílu - Popis | J58: Cena celkem [CZK]
C60: Náklady soupisu celkem | J60: =J89 -> 0 | AU60: -1
D61: PSV - Práce a dodávky PSV | J61: =J90 -> 0
D62: 732 - Ústřední vytápění - strojovny | J62: =J91 -> 0
D63: 733 - Ústřední vytápění - rozvodné potrubí | J63: =J105 -> 0
D64: 734 - Ústřední vytápění - armatury | J64: =J123 -> 0
D65: 735 - Ústřední vytápění - otopná tělesa | J65: =J139 -> 0
D66: 713 - Izolace tepelné | J66: =J163 -> 0
D67: HZS - HZS | J67: =J179 -> 0
C74: SOUPIS PRACÍ
C76: Stavba:
E77: =E7 -> Přístavba a stavební úpravy víceúčelového objektu ve Vadíně č.p. 11
C78: Objekt:
E79: D1_01 - Přístavba
C80: Soupis:
E81: =E11 -> D1_01_4a - Vytápění
C83: Místo: | F83: =F14 -> Vadín | I83: Datum: | J83: =IF(J14="","",J14) -> 3. 9. 2017
C85: Zadavatel: | F85: =E17 -> Obec Okrouhlice | I85: Projektant: | J85: =E23 -> Ing. Suk - EREKTA
C86: Uchazeč: | F86: =IF(E20="","",E20) -> 
C88: PČ | D88: Typ | E88: Kód | F88: Popis | G88: MJ | H88: Množství | I88: J.cena [CZK] | J88: Cena celkem [CZK] | K88: Cenová soustava | M88: Poznámka | N88: DPH | O88: J. Nh [h] | P88: Nh celkem [h] | Q88: J. hmotnost [t] | R88: Hmotnost celkem [t] | S88: J. suť [t] | T88: Suť Celkem [t]
C89: Náklady soupisu celkem | J89: =BK89 -> 0 | P89: =P90 -> 0 | R89: =R90 -> 1.16215 | T89: =T90 -> 0 | AT89: D | AU89: -1 | BK89: =BK90 -> 0
D90: D | E90: PSV | F90: Práce a dodávky PSV | J90: =BK90 -> 0 | P90: =P91+P105+P123+P139+P163+P179 -> 0 | R90: =R91+R105+R123+R139+R163+R179 -> 1.16215 | T90: =T91+T105+T123+T139+T163+T179 -> 0 | AR90: 2 | AT90: D | AU90: 0 | AY90: ROZPOCET | BK90: =BK91+BK105+BK123+BK139+BK163+BK179 -> 0
D91: D | E91: 732 | F91: Ústřední vytápění - strojovny | J91: =BK91 -> 0 | P91: =SUM(P92:P104) -> 0 | R91: =SUM(R92:R104) -> 0.17361 | T91: =SUM(T92:T104) -> 0 | AR91: 2 | AT91: D | AU91: 1 | AY91: ROZPOCET | BK91: =SUM(BK92:BK104) -> 0
C92: 1 | D92: K | E92: 732523101R | F92: Tepelné čerpadlo vzduch/voda splitové, venkovní jednotka topný výkon/příkon 7,2 (-7/W35)/2,8kW 230V, vnitř. jednotka s nerez. zásobníkem 190 l, výkonu 9,0 kW 400V, pojistná skupina, konzole pro montáž na zem, chladivové potrubí 3/8"x5/8", info karta | G92: soubor | H92: 1 | J92: =ROUND(I92*H92,2) -> 0 | K92: vlastní | N92: základní | P92: =O92*H92 -> 0 | Q92: 0.16 | R92: =Q92*H92 -> 0.16 | S92: 0 | T92: =S92*H92 -> 0 | AR92: 16 | AT92: K | AU92: 2 | AY92: ROZPOCET | BE92: =IF(N92="základní",J92,0) -> 0 | BF92: =IF(N92="snížená",J92,0) -> 0 | BG92: =IF(N92="zákl. přenesená",J92,0) -> 0 | BH92: =IF(N92="sníž. přenesená",J92,0) -> 0 | BI92: =IF(N92="nulová",J92,0) -> 0 | BJ92: 1 | BK92: =ROUND(I92*H92,2) -> 0 | BL92: 16 | BM92: -506803008
D93: VV | F93: 1 | H93: 1 | AT93: VV | AU93: 2 | AV93: 2 | AW93: True | AX93: 1 | AY93: ROZPOCET
C94: 2 | D94: K | E94: 732523102R | F94: Prostorový termostat | G94: soubor | H94: 1 | J94: =ROUND(I94*H94,2) -> 0 | K94: vlastní | N94: základní | P94: =O94*H94 -> 0 | Q94: 0.0005 | R94: =Q94*H94 -> 0.0005 | S94: 0 | T94: =S94*H94 -> 0 | AR94: 16 | AT94: K | AU94: 2 | AY94: ROZPOCET | BE94: =IF(N94="základní",J94,0) -> 0 | BF94: =IF(N94="snížená",J94,0) -> 0 | BG94: =IF(N94="zákl. přenesená",J94,0) -> 0 | BH94: =IF(N94="sníž. přenesená",J94,0) -> 0 | BI94: =IF(N94="nulová",J94,0) -> 0 | BJ94: 1 | BK94: =ROUND(I94*H94,2) -> 0 | BL94: 16 | BM94: -658456110
D95: VV | F95: 1 | H95: 1 | AT95: VV | AU95: 2 | AV95: 2 | AW95: True | AX95: 1 | AY95: ROZPOCET
C96: 3 | D96: K | E96: 732523103R | F96: Čerpadlová skupina s čerpadlem 25/6 | G96: soubor | H96: 1 | J96: =ROUND(I96*H96,2) -> 0 | K96: vlastní | N96: základní | P96: =O96*H96 -> 0 | Q96: 0.01 | R96: =Q96*H96 -> 0.01 | S96: 0 | T96: =S96*H96 -> 0 | AR96: 16 | AT96: K | AU96: 2 | AY96: ROZPOCET | BE96: =IF(N96="základní",J96,0) -> 0 | BF96: =IF(N96="snížená",J96,0) -> 0 | BG96: =IF(N96="zákl. přenesená",J96,0) -> 0 | BH96: =IF(N96="sníž. přenesená",J96,0) -> 0 | BI96: =IF(N96="nulová",J96,0) -> 0 | BJ96: 1 | BK96: =ROUND(I96*H96,2) -> 0 | BL96: 16 | BM96: -1245305667
D97: VV | F97: 1 | H97: 1 | AT97: VV | AU97: 2 | AV97: 2 | AW97: True | AX97: 1 | AY97: ROZPOCET
C98: 4 | D98: K | E98: 732523104R | F98: Montážní konzole čerpadlové skupiny | G98: soubor | H98: 1 | J98: =ROUND(I98*H98,2) -> 0 | K98: vlastní | N98: základní | P98: =O98*H98 -> 0 | Q98: 0.0005 | R98: =Q98*H98 -> 0.0005 | S98: 0 | T98: =S98*H98 -> 0 | AR98: 16 | AT98: K | AU98: 2 | AY98: ROZPOCET | BE98: =IF(N98="základní",J98,0) -> 0 | BF98: =IF(N98="snížená",J98,0) -> 0 | BG98: =IF(N98="zákl. přenesená",J98,0) -> 0 | BH98: =IF(N98="sníž. přenesená",J98,0) -> 0 | BI98: =IF(N98="nulová",J98,0) -> 0 | BJ98: 1 | BK98: =ROUND(I98*H98,2) -> 0 | BL98: 16 | BM98: 967118988
D99: VV | F99: 1 | H99: 1 | AT99: VV | AU99: 2 | AV99: 2 | AW99: True | AX99: 1 | AY99: ROZPOCET
C100: 5 | D100: K | E100: 721174041R | F100: Potrubí kanalizační z PP připojovací systém HT DN 32 | G100: m | H100: 1 | J100: =ROUND(I100*H100,2) -> 0 | K100: vlastní | N100: základní | P100: =O100*H100 -> 0 | Q100: 0.00029 | R100: =Q100*H100 -> 0.00029 | S100: 0 | T100: =S100*H100 -> 0 | AR100: 16 | AT100: K | AU100: 2 | AY100: ROZPOCET | BE100: =IF(N100="základní",J100,0) -> 0 | BF100: =IF(N100="snížená",J100,0) -> 0 | BG100: =IF(N100="zákl. přenesená",J100,0) -> 0 | BH100: =IF(N100="sníž. přenesená",J100,0) -> 0 | BI100: =IF(N100="nulová",J100,0) -> 0 | BJ100: 1 | BK100: =ROUND(I100*H100,2) -> 0 | BL100: 16 | BM100: 696964160
D101: VV | F101: 1 | H101: 1 | AT101: VV | AU101: 2 | AV101: 2 | AW101: True | AX101: 1 | AY101: ROZPOCET
C102: 6 | D102: K | E102: 72117R01 | F102: Korugovaná dvouplášťová chránička plastová DN110 | G102: m | H102: 8 | J102: =ROUND(I102*H102,2) -> 0 | K102: vlastní | N102: základní | P102: =O102*H102 -> 0 | Q102: 0.00029 | R102: =Q102*H102 -> 0.00232 | S102: 0 | T102: =S102*H102 -> 0 | AR102: 16 | AT102: K | AU102: 2 | AY102: ROZPOCET | BE102: =IF(N102="základní",J102,0) -> 0 | BF102: =IF(N102="snížená",J102,0) -> 0 | BG102: =IF(N102="zákl. přenesená",J102,0) -> 0 | BH102: =IF(N102="sníž. přenesená",J102,0) -> 0 | BI102: =IF(N102="nulová",J102,0) -> 0 | BJ102: 1 | BK102: =ROUND(I102*H102,2) -> 0 | BL102: 16 | BM102: -315687585
D103: VV | F103: 8 | H103: 8 | AT103: VV | AU103: 2 | AV103: 2 | AW103: True | AX103: 1 | AY103: ROZPOCET
C104: 7 | D104: K | E104: 998732101 | F104: Přesun hmot tonážní pro strojovny v objektech v do 6 m | G104: t | H104: 0.174 | J104: =ROUND(I104*H104,2) -> 0 | K104: CS ÚRS 2017 01 | N104: základní | P104: =O104*H104 -> 0 | Q104: 0 | R104: =Q104*H104 -> 0 | S104: 0 | T104: =S104*H104 -> 0 | AR104: 16 | AT104: K | AU104: 2 | AY104: ROZPOCET | BE104: =IF(N104="základní",J104,0) -> 0 | BF104: =IF(N104="snížená",J104,0) -> 0 | BG104: =IF(N104="zákl. přenesená",J104,0) -> 0 | BH104: =IF(N104="sníž. přenesená",J104,0) -> 0 | BI104: =IF(N104="nulová",J104,0) -> 0 | BJ104: 1 | BK104: =ROUND(I104*H104,2) -> 0 | BL104: 16 | BM104: 838222664
D105: D | E105: 733 | F105: Ústřední vytápění - rozvodné potrubí | J105: =BK105 -> 0 | P105: =SUM(P106:P122) -> 0 | R105: =SUM(R106:R122) -> 0.07487 | T105: =SUM(T106:T122) -> 0 | AR105: 2 | AT105: D | AU105: 1 | AY105: ROZPOCET | BK105: =SUM(BK106:BK122) -> 0
C106: 8 | D106: K | E106: 733223202 | F106: Potrubí měděné tvrdé spojované tvrdým pájením D 15x1 | G106: m | H106: 51 | J106: =ROUND(I106*H106,2) -> 0 | K106: CS ÚRS 2017 01 | N106: základní | P106: =O106*H106 -> 0 | Q106: 0.00047 | R106: =Q106*H106 -> 0.02397 | S106: 0 | T106: =S106*H106 -> 0 | AR106: 16 | AT106: K | AU106: 2 | AY106: ROZPOCET | BE106: =IF(N106="základní",J106,0) -> 0 | BF106: =IF(N106="snížená",J106,0) -> 0 | BG106: =IF(N106="zákl. přenesená",J106,0) -> 0 | BH106: =IF(N106="sníž. přenesená",J106,0) -> 0 | BI106: =IF(N106="nulová",J106,0) -> 0 | BJ106: 1 | BK106: =ROUND(I106*H106,2) -> 0 | BL106: 16 | BM106: 478161877
D107: VV | F107: 51 | H107: 51 | AT107: VV | AU107: 2 | AV107: 2 | AW107: True | AX107: 1 | AY107: ROZPOCET
C108: 9 | D108: K | E108: 733223203 | F108: Potrubí měděné tvrdé spojované tvrdým pájením D 18x1 | G108: m | H108: 20 | J108: =ROUND(I108*H108,2) -> 0 | K108: CS ÚRS 2017 01 | N108: základní | P108: =O108*H108 -> 0 | Q108: 0.00072 | R108: =Q108*H108 -> 0.0144 | S108: 0 | T108: =S108*H108 -> 0 | AR108: 16 | AT108: K | AU108: 2 | AY108: ROZPOCET | BE108: =IF(N108="základní",J108,0) -> 0 | BF108: =IF(N108="snížená",J108,0) -> 0 | BG108: =IF(N108="zákl. přenesená",J108,0) -> 0 | BH108: =IF(N108="sníž. přenesená",J108,0) -> 0 | BI108: =IF(N108="nulová",J108,0) -> 0 | BJ108: 1 | BK108: =ROUND(I108*H108,2) -> 0 | BL108: 16 | BM108: -182526973
D109: VV | F109: 20 | H109: 20 | AT109: VV | AU109: 2 | AV109: 2 | AW109: True | AX109: 1 | AY109: ROZPOCET
C110: 10 | D110: K | E110: 733223204 | F110: Potrubí měděné tvrdé spojované tvrdým pájením D 22x1 | G110: m | H110: 8 | J110: =ROUND(I110*H110,2) -> 0 | K110: CS ÚRS 2017 01 | N110: základní | P110: =O110*H110 -> 0 | Q110: 0.00071 | R110: =Q110*H110 -> 0.00568 | S110: 0 | T110: =S110*H110 -> 0 | AR110: 16 | AT110: K | AU110: 2 | AY110: ROZPOCET | BE110: =IF(N110="základní",J110,0) -> 0 | BF110: =IF(N110="snížená",J110,0) -> 0 | BG110: =IF(N110="zákl. přenesená",J110,0) -> 0 | BH110: =IF(N110="sníž. přenesená",J110,0) -> 0 | BI110: =IF(N110="nulová",J110,0) -> 0 | BJ110: 1 | BK110: =ROUND(I110*H110,2) -> 0 | BL110: 16 | BM110: 278016448
D111: VV | F111: 8 | H111: 8 | AT111: VV | AU111: 2 | AV111: 2 | AW111: True | AX111: 1 | AY111: ROZPOCET
C112: 11 | D112: K | E112: 733223205 | F112: Potrubí měděné tvrdé spojované tvrdým pájením D 28x1,5 | G112: m | H112: 24 | J112: =ROUND(I112*H112,2) -> 0 | K112: CS ÚRS 2017 01 | N112: základní | P112: =O112*H112 -> 0 | Q112: 0.00128 | R112: =Q112*H112 -> 0.03072 | S112: 0 | T112: =S112*H112 -> 0 | AR112: 16 | AT112: K | AU112: 2 | AY112: ROZPOCET | BE112: =IF(N112="základní",J112,0) -> 0 | BF112: =IF(N112="snížená",J112,0) -> 0 | BG112: =IF(N112="zákl. přenesená",J112,0) -> 0 | BH112: =IF(N112="sníž. přenesená",J112,0) -> 0 | BI112: =IF(N112="nulová",J112,0) -> 0 | BJ112: 1 | BK112: =ROUND(I112*H112,2) -> 0 | BL112: 16 | BM112: 1498789735
D113: VV | F113: 24 | H113: 24 | AT113: VV | AU113: 2 | AV113: 2 | AW113: True | AX113: 1 | AY113: ROZPOCET
C114: 12 | D114: K | E114: 733224222 | F114: Příplatek k potrubí měděnému za zhotovení přípojky z trubek měděných D 15x1 | G114: kus | H114: 10 | J114: =ROUND(I114*H114,2) -> 0 | K114: CS ÚRS 2017 01 | N114: základní | P114: =O114*H114 -> 0 | Q114: 1e-05 | R114: =Q114*H114 -> 0.0001 | S114: 0 | T114: =S114*H114 -> 0 | AR114: 16 | AT114: K | AU114: 2 | AY114: ROZPOCET | BE114: =IF(N114="základní",J114,0) -> 0 | BF114: =IF(N114="snížená",J114,0) -> 0 | BG114: =IF(N114="zákl. přenesená",J114,0) -> 0 | BH114: =IF(N114="sníž. přenesená",J114,0) -> 0 | BI114: =IF(N114="nulová",J114,0) -> 0 | BJ114: 1 | BK114: =ROUND(I114*H114,2) -> 0 | BL114: 16 | BM114: -858039424
D115: VV | F115: 10 | H115: 10 | AT115: VV | AU115: 2 | AV115: 2 | AW115: True | AX115: 1 | AY115: ROZPOCET
C116: 13 | D116: K | E116: 733291101 | F116: Zkouška těsnosti potrubí měděné do D 35x1,5 | G116: m | H116: 103 | J116: =ROUND(I116*H116,2) -> 0 | K116: CS ÚRS 2017 01 | N116: základní | P116: =O116*H116 -> 0 | Q116: 0 | R116: =Q116*H116 -> 0 | S116: 0 | T116: =S116*H116 -> 0 | AR116: 16 | AT116: K | AU116: 2 | AY116: ROZPOCET | BE116: =IF(N116="základní",J116,0) -> 0 | BF116: =IF(N116="snížená",J116,0) -> 0 | BG116: =IF(N116="zákl. přenesená",J116,0) -> 0 | BH116: =IF(N116="sníž. přenesená",J116,0) -> 0 | BI116: =IF(N116="nulová",J116,0) -> 0 | BJ116: 1 | BK116: =ROUND(I116*H116,2) -> 0 | BL116: 16 | BM116: -1094464345
D117: VV | F117: 51 | H117: 51 | AT117: VV | AU117: 2 | AV117: 2 | AW117: True | AX117: 0 | AY117: ROZPOCET
D118: VV | F118: 20 | H118: 20 | AT118: VV | AU118: 2 | AV118: 2 | AW118: True | AX118: 0 | AY118: ROZPOCET
D119: VV | F119: 8 | H119: 8 | AT119: VV | AU119: 2 | AV119: 2 | AW119: True | AX119: 0 | AY119: ROZPOCET
D120: VV | F120: 24 | H120: 24 | AT120: VV | AU120: 2 | AV120: 2 | AW120: True | AX120: 0 | AY120: ROZPOCET
D121: VV | F121: Součet | H121: 103 | AT121: VV | AU121: 2 | AV121: 4 | AW121: True | AX121: 1 | AY121: ROZPOCET
C122: 14 | D122: K | E122: 998733101 | F122: Přesun hmot tonážní pro rozvody potrubí v objektech v do 6 m | G122: t | H122: 0.075 | J122: =ROUND(I122*H122,2) -> 0 | K122: CS ÚRS 2017 01 | N122: základní | P122: =O122*H122 -> 0 | Q122: 0 | R122: =Q122*H122 -> 0 | S122: 0 | T122: =S122*H122 -> 0 | AR122: 16 | AT122: K | AU122: 2 | AY122: ROZPOCET | BE122: =IF(N122="základní",J122,0) -> 0 | BF122: =IF(N122="snížená",J122,0) -> 0 | BG122: =IF(N122="zákl. přenesená",J122,0) -> 0 | BH122: =IF(N122="sníž. přenesená",J122,0) -> 0 | BI122: =IF(N122="nulová",J122,0) -> 0 | BJ122: 1 | BK122: =ROUND(I122*H122,2) -> 0 | BL122: 16 | BM122: -417616695
D123: D | E123: 734 | F123: Ústřední vytápění - armatury | J123: =BK123 -> 0 | P123: =SUM(P124:P138) -> 0 | R123: =SUM(R124:R138) -> 0.00917 | T123: =SUM(T124:T138) -> 0 | AR123: 2 | AT123: D | AU123: 1 | AY123: ROZPOCET | BK123: =SUM(BK124:BK138) -> 0
C124: 15 | D124: K | E124: 734211120 | F124: Ventil závitový odvzdušňovací G 1/2 PN 14 do 120°C automatický | G124: kus | H124: 2 | J124: =ROUND(I124*H124,2) -> 0 | K124: CS ÚRS 2017 01 | N124: základní | P124: =O124*H124 -> 0 | Q124: 0.00024 | R124: =Q124*H124 -> 0.00048 | S124: 0 | T124: =S124*H124 -> 0 | AR124: 16 | AT124: K | AU124: 2 | AY124: ROZPOCET | BE124: =IF(N124="základní",J124,0) -> 0 | BF124: =IF(N124="snížená",J124,0) -> 0 | BG124: =IF(N124="zákl. přenesená",J124,0) -> 0 | BH124: =IF(N124="sníž. přenesená",J124,0) -> 0 | BI124: =IF(N124="nulová",J124,0) -> 0 | BJ124: 1 | BK124: =ROUND(I124*H124,2) -> 0 | BL124: 16 | BM124: 2003156168
D125: VV | F125: 2 | H125: 2 | AT125: VV | AU125: 2 | AV125: 2 | AW125: True | AX125: 1 | AY125: ROZPOCET
C126: 16 | D126: K | E126: 734221682 | F126: Termostatická hlavice kapalinová PN 10 do 110°C otopných těles VK | G126: kus | H126: 5 | J126: =ROUND(I126*H126,2) -> 0 | K126: CS ÚRS 2017 01 | N126: základní | P126: =O126*H126 -> 0 | Q126: 0.00014 | R126: =Q126*H126 -> 0.0007 | S126: 0 | T126: =S126*H126 -> 0 | AR126: 16 | AT126: K | AU126: 2 | AY126: ROZPOCET | BE126: =IF(N126="základní",J126,0) -> 0 | BF126: =IF(N126="snížená",J126,0) -> 0 | BG126: =IF(N126="zákl. přenesená",J126,0) -> 0 | BH126: =IF(N126="sníž. přenesená",J126,0) -> 0 | BI126: =IF(N126="nulová",J126,0) -> 0 | BJ126: 1 | BK126: =ROUND(I126*H126,2) -> 0 | BL126: 16 | BM126: 1502970023
D127: VV | F127: 5 | H127: 5 | AT127: VV | AU127: 2 | AV127: 2 | AW127: True | AX127: 1 | AY127: ROZPOCET
C128: 17 | D128: K | E128: 734261402 | F128: Armatura připojovací rohová G 1/2x18 PN 10 do 110°C radiátorů typu VK | G128: kus | H128: 5 | J128: =ROUND(I128*H128,2) -> 0 | K128: CS ÚRS 2017 01 | N128: základní | P128: =O128*H128 -> 0 | Q128: 0.00071 | R128: =Q128*H128 -> 0.00355 | S128: 0 | T128: =S128*H128 -> 0 | AR128: 16 | AT128: K | AU128: 2 | AY128: ROZPOCET | BE128: =IF(N128="základní",J128,0) -> 0 | BF128: =IF(N128="snížená",J128,0) -> 0 | BG128: =IF(N128="zákl. přenesená",J128,0) -> 0 | BH128: =IF(N128="sníž. přenesená",J128,0) -> 0 | BI128: =IF(N128="nulová",J128,0) -> 0 | BJ128: 1 | BK128: =ROUND(I128*H128,2) -> 0 | BL128: 16 | BM128: 381893661
D129: VV | F129: 5 | H129: 5 | AT129: VV | AU129: 2 | AV129: 2 | AW129: True | AX129: 1 | AY129: ROZPOCET
C130: 18 | D130: K | E130: 734291123 | F130: Kohout plnící a vypouštěcí G 1/2 PN 10 do 110°C závitový | G130: kus | H130: 3 | J130: =ROUND(I130*H130,2) -> 0 | K130: CS ÚRS 2017 01 | N130: základní | P130: =O130*H130 -> 0 | Q130: 0.00022 | R130: =Q130*H130 -> 0.00066 | S130: 0 | T130: =S130*H130 -> 0 | AR130: 16 | AT130: K | AU130: 2 | AY130: ROZPOCET | BE130: =IF(N130="základní",J130,0) -> 0 | BF130: =IF(N130="snížená",J130,0) -> 0 | BG130: =IF(N130="zákl. přenesená",J130,0) -> 0 | BH130: =IF(N130="sníž. přenesená",J130,0) -> 0 | BI130: =IF(N130="nulová",J130,0) -> 0 | BJ130: 1 | BK130: =ROUND(I130*H130,2) -> 0 | BL130: 16 | BM130: 943133746
D131: VV | F131: 3 | H131: 3 | AT131: VV | AU131: 2 | AV131: 2 | AW131: True | AX131: 1 | AY131: ROZPOCET
C132: 19 | D132: K | E132: 734291244 | F132: Filtr závitový přímý G 1 PN 16 do 130°C s vnitřními závity | G132: kus | H132: 1 | J132: =ROUND(I132*H132,2) -> 0 | K132: CS ÚRS 2017 01 | N132: základní | P132: =O132*H132 -> 0 | Q132: 0.00057 | R132: =Q132*H132 -> 0.00057 | S132: 0 | T132: =S132*H132 -> 0 | AR132: 16 | AT132: K | AU132: 2 | AY132: ROZPOCET | BE132: =IF(N132="základní",J132,0) -> 0 | BF132: =IF(N132="snížená",J132,0) -> 0 | BG132: =IF(N132="zákl. přenesená",J132,0) -> 0 | BH132: =IF(N132="sníž. přenesená",J132,0) -> 0 | BI132: =IF(N132="nulová",J132,0) -> 0 | BJ132: 1 | BK132: =ROUND(I132*H132,2) -> 0 | BL132: 16 | BM132: 1377893136
D133: VV | F133: 1 | H133: 1 | AT133: VV | AU133: 2 | AV133: 2 | AW133: True | AX133: 1 | AY133: ROZPOCET
C134: 20 | D134: K | E134: 734292715 | F134: Kohout kulový přímý G 1 PN 42 do 185°C vnitřní závit | G134: kus | H134: 2 | J134: =ROUND(I134*H134,2) -> 0 | K134: CS ÚRS 2017 01 | N134: základní | P134: =O134*H134 -> 0 | Q134: 0.0005 | R134: =Q134*H134 -> 0.001 | S134: 0 | T134: =S134*H134 -> 0 | AR134: 16 | AT134: K | AU134: 2 | AY134: ROZPOCET | BE134: =IF(N134="základní",J134,0) -> 0 | BF134: =IF(N134="snížená",J134,0) -> 0 | BG134: =IF(N134="zákl. přenesená",J134,0) -> 0 | BH134: =IF(N134="sníž. přenesená",J134,0) -> 0 | BI134: =IF(N134="nulová",J134,0) -> 0 | BJ134: 1 | BK134: =ROUND(I134*H134,2) -> 0 | BL134: 16 | BM134: 486599611
D135: VV | F135: 2 | H135: 2 | AT135: VV | AU135: 2 | AV135: 2 | AW135: True | AX135: 1 | AY135: ROZPOCET
C136: 21 | D136: K | E136: 734421101R | F136: Tlakoměr s pevným stonkem a zpětnou klapkou tlak 0-4 bar průměr 50 mm spodní připojení | G136: kus | H136: 1 | J136: =ROUND(I136*H136,2) -> 0 | K136: vlastní | N136: základní | P136: =O136*H136 -> 0 | Q136: 0.00221 | R136: =Q136*H136 -> 0.00221 | S136: 0 | T136: =S136*H136 -> 0 | AR136: 16 | AT136: K | AU136: 2 | AY136: ROZPOCET | BE136: =IF(N136="základní",J136,0) -> 0 | BF136: =IF(N136="snížená",J136,0) -> 0 | BG136: =IF(N136="zákl. přenesená",J136,0) -> 0 | BH136: =IF(N136="sníž. přenesená",J136,0) -> 0 | BI136: =IF(N136="nulová",J136,0) -> 0 | BJ136: 1 | BK136: =ROUND(I136*H136,2) -> 0 | BL136: 16 | BM136: -1564446401
D137: VV | F137: 1 | H137: 1 | AT137: VV | AU137: 2 | AV137: 2 | AW137: True | AX137: 1 | AY137: ROZPOCET
C138: 22 | D138: K | E138: 998734101 | F138: Přesun hmot tonážní pro armatury v objektech v do 6 m | G138: t | H138: 0.009 | J138: =ROUND(I138*H138,2) -> 0 | K138: CS ÚRS 2017 01 | N138: základní | P138: =O138*H138 -> 0 | Q138: 0 | R138: =Q138*H138 -> 0 | S138: 0 | T138: =S138*H138 -> 0 | AR138: 16 | AT138: K | AU138: 2 | AY138: ROZPOCET | BE138: =IF(N138="základní",J138,0) -> 0 | BF138: =IF(N138="snížená",J138,0) -> 0 | BG138: =IF(N138="zákl. přenesená",J138,0) -> 0 | BH138: =IF(N138="sníž. přenesená",J138,0) -> 0 | BI138: =IF(N138="nulová",J138,0) -> 0 | BJ138: 1 | BK138: =ROUND(I138*H138,2) -> 0 | BL138: 16 | BM138: -255659465
D139: D | E139: 735 | F139: Ústřední vytápění - otopná tělesa | J139: =BK139 -> 0 | P139: =SUM(P140:P162) -> 0 | R139: =SUM(R140:R162) -> 0.8815 | T139: =SUM(T140:T162) -> 0 | AR139: 2 | AT139: D | AU139: 1 | AY139: ROZPOCET | BK139: =SUM(BK140:BK162) -> 0
C140: 23 | D140: K | E140: 735152477R | F140: Otopné těleso panelové VK dvoudeskové 1 přídavná přestupní plocha výška/délka 700/1000mm výkon 1450W | G140: kus | H140: 1 | J140: =ROUND(I140*H140,2) -> 0 | K140: vlastní | N140: základní | P140: =O140*H140 -> 0 | Q140: 0.0309 | R140: =Q140*H140 -> 0.0309 | S140: 0 | T140: =S140*H140 -> 0 | AR140: 16 | AT140: K | AU140: 2 | AY140: ROZPOCET | BE140: =IF(N140="základní",J140,0) -> 0 | BF140: =IF(N140="snížená",J140,0) -> 0 | BG140: =IF(N140="zákl. přenesená",J140,0) -> 0 | BH140: =IF(N140="sníž. přenesená",J140,0) -> 0 | BI140: =IF(N140="nulová",J140,0) -> 0 | BJ140: 1 | BK140: =ROUND(I140*H140,2) -> 0 | BL140: 16 | BM140: 1465410090
D141: VV | F141: 1 | H141: 1 | AT141: VV | AU141: 2 | AV141: 2 | AW141: True | AX141: 1 | AY141: ROZPOCET
C142: 24 | D142: K | E142: 735152579R | F142: Otopné těleso panelové VK dvoudeskové 2 přídavné přestupní plochy výška/délka 700/1200mm výkon 2276W | G142: kus | H142: 2 | J142: =ROUND(I142*H142,2) -> 0 | K142: vlastní | N142: základní | P142: =O142*H142 -> 0 | Q142: 0.04132 | R142: =Q142*H142 -> 0.08264 | S142: 0 | T142: =S142*H142 -> 0 | AR142: 16 | AT142: K | AU142: 2 | AY142: ROZPOCET | BE142: =IF(N142="základní",J142,0) -> 0 | BF142: =IF(N142="snížená",J142,0) -> 0 | BG142: =IF(N142="zákl. přenesená",J142,0) -> 0 | BH142: =IF(N142="sníž. přenesená",J142,0) -> 0 | BI142: =IF(N142="nulová",J142,0) -> 0 | BJ142: 1 | BK142: =ROUND(I142*H142,2) -> 0 | BL142: 16 | BM142: 1938419700
D143: VV | F143: 2 | H143: 2 | AT143: VV | AU143: 2 | AV143: 2 | AW143: True | AX143: 1 | AY143: ROZPOCET
C144: 25 | D144: K | E144: 735152594 | F144: Otopné těleso panelové VK dvoudeskové 2 přídavné přestupní plochy výška/délka 900/700mm výkon 1619 W | G144: kus | H144: 1 | J144: =ROUND(I144*H144,2) -> 0 | K144: CS ÚRS 2017 01 | N144: základní | P144: =O144*H144 -> 0 | Q144: 0.03993 | R144: =Q144*H144 -> 0.03993 | S144: 0 | T144: =S144*H144 -> 0 | AR144: 16 | AT144: K | AU144: 2 | AY144: ROZPOCET | BE144: =IF(N144="základní",J144,0) -> 0 | BF144: =IF(N144="snížená",J144,0) -> 0 | BG144: =IF(N144="zákl. přenesená",J144,0) -> 0 | BH144: =IF(N144="sníž. přenesená",J144,0) -> 0 | BI144: =IF(N144="nulová",J144,0) -> 0 | BJ144: 1 | BK144: =ROUND(I144*H144,2) -> 0 | BL144: 16 | BM144: -1931934490
D145: VV | F145: 1 | H145: 1 | AT145: VV | AU145: 2 | AV145: 2 | AW145: True | AX145: 1 | AY145: ROZPOCET
C146: 26 | D146: K | E146: 735152599 | F146: Otopné těleso panelové VK dvoudeskové 2 přídavné přestupní plochy výška/délka 900/1200mm výkon 2776W | G146: kus | H146: 1 | J146: =ROUND(I146*H146,2) -> 0 | K146: CS ÚRS 2017 01 | N146: základní | P146: =O146*H146 -> 0 | Q146: 0.06688 | R146: =Q146*H146 -> 0.06688 | S146: 0 | T146: =S146*H146 -> 0 | AR146: 16 | AT146: K | AU146: 2 | AY146: ROZPOCET | BE146: =IF(N146="základní",J146,0) -> 0 | BF146: =IF(N146="snížená",J146,0) -> 0 | BG146: =IF(N146="zákl. přenesená",J146,0) -> 0 | BH146: =IF(N146="sníž. přenesená",J146,0) -> 0 | BI146: =IF(N146="nulová",J146,0) -> 0 | BJ146: 1 | BK146: =ROUND(I146*H146,2) -> 0 | BL146: 16 | BM146: -882357718
D147: VV | F147: 1 | H147: 1 | AT147: VV | AU147: 2 | AV147: 2 | AW147: True | AX147: 1 | AY147: ROZPOCET
C148: 27 | D148: K | E148: 735511016R | F148: Podlahové vytápění systémová deska, potrubí plastohliník 16x2,0 mm | G148: m | H148: 744 | J148: =ROUND(I148*H148,2) -> 0 | K148: vlastní | N148: základní | P148: =O148*H148 -> 0 | Q148: 0.00069 | R148: =Q148*H148 -> 0.51336 | S148: 0 | T148: =S148*H148 -> 0 | AR148: 16 | AT148: K | AU148: 2 | AY148: ROZPOCET | BE148: =IF(N148="základní",J148,0) -> 0 | BF148: =IF(N148="snížená",J148,0) -> 0 | BG148: =IF(N148="zákl. přenesená",J148,0) -> 0 | BH148: =IF(N148="sníž. přenesená",J148,0) -> 0 | BI148: =IF(N148="nulová",J148,0) -> 0 | BJ148: 1 | BK148: =ROUND(I148*H148,2) -> 0 | BL148: 16 | BM148: -560384556
D149: VV | F149: 744 | H149: 744 | AT149: VV | AU149: 2 | AV149: 2 | AW149: True | AX149: 1 | AY149: ROZPOCET
C150: 28 | D150: K | E150: 735511026R | F150: Podlahové vytápění systémová deska tl. 300mm, s fólií, rozteč 75mm | G150: m2 | H150: 65 | J150: =ROUND(I150*H150,2) -> 0 | K150: vlastní | N150: základní | P150: =O150*H150 -> 0 | Q150: 0.00174 | R150: =Q150*H150 -> 0.1131 | S150: 0 | T150: =S150*H150 -> 0 | AR150: 16 | AT150: K | AU150: 2 | AY150: ROZPOCET | BE150: =IF(N150="základní",J150,0) -> 0 | BF150: =IF(N150="snížená",J150,0) -> 0 | BG150: =IF(N150="zákl. přenesená",J150,0) -> 0 | BH150: =IF(N150="sníž. přenesená",J150,0) -> 0 | BI150: =IF(N150="nulová",J150,0) -> 0 | BJ150: 1 | BK150: =ROUND(I150*H150,2) -> 0 | BL150: 16 | BM150: -1916943408
D151: VV | F151: 65 | H151: 65 | AT151: VV | AU151: 2 | AV151: 2 | AW151: True | AX151: 1 | AY151: ROZPOCET
C152: 29 | D152: K | E152: 735511062R | F152: Podlahové vytápění okrajový izolační pruh | G152: m | H152: 85 | J152: =ROUND(I152*H152,2) -> 0 | K152: vlastní | N152: základní | P152: =O152*H152 -> 0 | Q152: 7e-05 | R152: =Q152*H152 -> 0.00595 | S152: 0 | T152: =S152*H152 -> 0 | AR152: 16 | AT152: K | AU152: 2 | AY152: ROZPOCET | BE152: =IF(N152="základní",J152,0) -> 0 | BF152: =IF(N152="snížená",J152,0) -> 0 | BG152: =IF(N152="zákl. přenesená",J152,0) -> 0 | BH152: =IF(N152="sníž. přenesená",J152,0) -> 0 | BI152: =IF(N152="nulová",J152,0) -> 0 | BJ152: 1 | BK152: =ROUND(I152*H152,2) -> 0 | BL152: 16 | BM152: -480977561
D153: VV | F153: 85 | H153: 85 | AT153: VV | AU153: 2 | AV153: 2 | AW153: True | AX153: 1 | AY153: ROZPOCET
C154: 30 | D154: K | E154: 735511063R | F154: Podlahové vytápění průchod dilatační spárou | G154: kus | H154: 30 | J154: =ROUND(I154*H154,2) -> 0 | K154: vlastní | N154: základní | P154: =O154*H154 -> 0 | Q154: 9e-05 | R154: =Q154*H154 -> 0.0027 | S154: 0 | T154: =S154*H154 -> 0 | AR154: 16 | AT154: K | AU154: 2 | AY154: ROZPOCET | BE154: =IF(N154="základní",J154,0) -> 0 | BF154: =IF(N154="snížená",J154,0) -> 0 | BG154: =IF(N154="zákl. přenesená",J154,0) -> 0 | BH154: =IF(N154="sníž. přenesená",J154,0) -> 0 | BI154: =IF(N154="nulová",J154,0) -> 0 | BJ154: 1 | BK154: =ROUND(I154*H154,2) -> 0 | BL154: 16 | BM154: -1834460834
D155: VV | F155: 30 | H155: 30 | AT155: VV | AU155: 2 | AV155: 2 | AW155: True | AX155: 1 | AY155: ROZPOCET
C156: 31 | D156: K | E156: 735511090R | F156: Podlahové vytápění rozdělovač, 11 okruhový | G156: kus | H156: 1 | J156: =ROUND(I156*H156,2) -> 0 | K156: vlastní | N156: základní | P156: =O156*H156 -> 0 | Q156: 0.0073 | R156: =Q156*H156 -> 0.0073 | S156: 0 | T156: =S156*H156 -> 0 | AR156: 16 | AT156: K | AU156: 2 | AY156: ROZPOCET | BE156: =IF(N156="základní",J156,0) -> 0 | BF156: =IF(N156="snížená",J156,0) -> 0 | BG156: =IF(N156="zákl. přenesená",J156,0) -> 0 | BH156: =IF(N156="sníž. přenesená",J156,0) -> 0 | BI156: =IF(N156="nulová",J156,0) -> 0 | BJ156: 1 | BK156: =ROUND(I156*H156,2) -> 0 | BL156: 16 | BM156: 353633449
D157: VV | F157: 1 | H157: 1 | AT157: VV | AU157: 2 | AV157: 2 | AW157: True | AX157: 1 | AY157: ROZPOCET
C158: 32 | D158: K | E158: 735511105R | F158: Podlahové vytápění skříňka rozdělovače pod omítku | G158: kus | H158: 1 | J158: =ROUND(I158*H158,2) -> 0 | K158: vlastní | N158: základní | P158: =O158*H158 -> 0 | Q158: 0.0172 | R158: =Q158*H158 -> 0.0172 | S158: 0 | T158: =S158*H158 -> 0 | AR158: 16 | AT158: K | AU158: 2 | AY158: ROZPOCET | BE158: =IF(N158="základní",J158,0) -> 0 | BF158: =IF(N158="snížená",J158,0) -> 0 | BG158: =IF(N158="zákl. přenesená",J158,0) -> 0 | BH158: =IF(N158="sníž. přenesená",J158,0) -> 0 | BI158: =IF(N158="nulová",J158,0) -> 0 | BJ158: 1 | BK158: =ROUND(I158*H158,2) -> 0 | BL158: 16 | BM158: -1343696702
D159: VV | F159: 1 | H159: 1 | AT159: VV | AU159: 2 | AV159: 2 | AW159: True | AX159: 1 | AY159: ROZPOCET
C160: 33 | D160: K | E160: 735511135R | F160: Podlahové vytápění připojovací šroubení rozdělovače | G160: kus | H160: 22 | J160: =ROUND(I160*H160,2) -> 0 | K160: vlastní | N160: základní | P160: =O160*H160 -> 0 | Q160: 7e-05 | R160: =Q160*H160 -> 0.00154 | S160: 0 | T160: =S160*H160 -> 0 | AR160: 16 | AT160: K | AU160: 2 | AY160: ROZPOCET | BE160: =IF(N160="základní",J160,0) -> 0 | BF160: =IF(N160="snížená",J160,0) -> 0 | BG160: =IF(N160="zákl. přenesená",J160,0) -> 0 | BH160: =IF(N160="sníž. přenesená",J160,0) -> 0 | BI160: =IF(N160="nulová",J160,0) -> 0 | BJ160: 1 | BK160: =ROUND(I160*H160,2) -> 0 | BL160: 16 | BM160: 873806193
D161: VV | F161: 22 | H161: 22 | AT161: VV | AU161: 2 | AV161: 2 | AW161: True | AX161: 1 | AY161: ROZPOCET
C162: 34 | D162: K | E162: 998735101 | F162: Přesun hmot tonážní pro otopná tělesa v objektech v do 6 m | G162: t | H162: 0.882 | J162: =ROUND(I162*H162,2) -> 0 | K162: CS ÚRS 2017 01 | N162: základní | P162: =O162*H162 -> 0 | Q162: 0 | R162: =Q162*H162 -> 0 | S162: 0 | T162: =S162*H162 -> 0 | AR162: 16 | AT162: K | AU162: 2 | AY162: ROZPOCET | BE162: =IF(N162="základní",J162,0) -> 0 | BF162: =IF(N162="snížená",J162,0) -> 0 | BG162: =IF(N162="zákl. přenesená",J162,0) -> 0 | BH162: =IF(N162="sníž. přenesená",J162,0) -> 0 | BI162: =IF(N162="nulová",J162,0) -> 0 | BJ162: 1 | BK162: =ROUND(I162*H162,2) -> 0 | BL162: 16 | BM162: 241521057
D163: D | E163: 713 | F163: Izolace tepelné | J163: =BK163 -> 0 | P163: =SUM(P164:P178) -> 0 | R163: =SUM(R164:R178) -> 0.023 | T163: =SUM(T164:T178) -> 0 | AR163: 2 | AT163: D | AU163: 1 | AY163: ROZPOCET | BK163: =SUM(BK164:BK178) -> 0
C164: 35 | D164: K | E164: 71346-PE01 | F164: Montáž tepelné izolace potrubí z pěnového PE, lepené, DN do 16mm | G164: m | H164: 51 | J164: =ROUND(I164*H164,2) -> 0 | K164: vlastní | N164: základní | P164: =O164*H164 -> 0 | Q164: 0 | R164: =Q164*H164 -> 0 | S164: 0 | T164: =S164*H164 -> 0 | AR164: 16 | AT164: K | AU164: 2 | AY164: ROZPOCET | BE164: =IF(N164="základní",J164,0) -> 0 | BF164: =IF(N164="snížená",J164,0) -> 0 | BG164: =IF(N164="zákl. přenesená",J164,0) -> 0 | BH164: =IF(N164="sníž. přenesená",J164,0) -> 0 | BI164: =IF(N164="nulová",J164,0) -> 0 | BJ164: 1 | BK164: =ROUND(I164*H164,2) -> 0 | BL164: 16 | BM164: -1222149472
D165: VV | F165: 51 | H165: 51 | AT165: VV | AU165: 2 | AV165: 2 | AW165: True | AX165: 1 | AY165: ROZPOCET
C166: 36 | D166: M | E166: 7131-PE11 | F166: Termoizolační trubice z pěnového polyethylenu ,v základním provedení, tloušťka stěny 9 mm, vnitřní průměr 15 mm | G166: m | H166: 51 | J166: =ROUND(I166*H166,2) -> 0 | K166: vlastní | N166: základní | P166: =O166*H166 -> 0 | Q166: 0.0002 | R166: =Q166*H166 -> 0.0102 | S166: 0 | T166: =S166*H166 -> 0 | AR166: 32 | AT166: M | AU166: 2 | AY166: ROZPOCET | BE166: =IF(N166="základní",J166,0) -> 0 | BF166: =IF(N166="snížená",J166,0) -> 0 | BG166: =IF(N166="zákl. přenesená",J166,0) -> 0 | BH166: =IF(N166="sníž. přenesená",J166,0) -> 0 | BI166: =IF(N166="nulová",J166,0) -> 0 | BJ166: 1 | BK166: =ROUND(I166*H166,2) -> 0 | BL166: 16 | BM166: -1241727572
D167: VV | F167: 51 | H167: 51 | AT167: VV | AU167: 2 | AV167: 2 | AW167: True | AX167: 1 | AY167: ROZPOCET
C168: 37 | D168: K | E168: 71346-PE02 | F168: Montáž tepelné izolace potrubí z pěnového PE, lepené, DN přes 16 do 25mm | G168: m | H168: 28 | J168: =ROUND(I168*H168,2) -> 0 | K168: vlastní | N168: základní | P168: =O168*H168 -> 0 | Q168: 0 | R168: =Q168*H168 -> 0 | S168: 0 | T168: =S168*H168 -> 0 | AR168: 16 | AT168: K | AU168: 2 | AY168: ROZPOCET | BE168: =IF(N168="základní",J168,0) -> 0 | BF168: =IF(N168="snížená",J168,0) -> 0 | BG168: =IF(N168="zákl. přenesená",J168,0) -> 0 | BH168: =IF(N168="sníž. přenesená",J168,0) -> 0 | BI168: =IF(N168="nulová",J168,0) -> 0 | BJ168: 1 | BK168: =ROUND(I168*H168,2) -> 0 | BL168: 16 | BM168: 1807965353
D169: VV | F169: 20+8 | H169: 28 | AT169: VV | AU169: 2 | AV169: 2 | AW169: True | AX169: 1 | AY169: ROZPOCET
C170: 38 | D170: M | E170: 7131-PE12 | F170: Termoizolační trubice z pěnového polyethylenu, v základním provedení, tloušťka stěny 13 mm, vnitřní průměr 18 mm | G170: m | H170: 20 | J170: =ROUND(I170*H170,2) -> 0 | K170: vlastní | N170: základní | P170: =O170*H170 -> 0 | Q170: 0.0002 | R170: =Q170*H170 -> 0.004 | S170: 0 | T170: =S170*H170 -> 0 | AR170: 32 | AT170: M | AU170: 2 | AY170: ROZPOCET | BE170: =IF(N170="základní",J170,0) -> 0 | BF170: =IF(N170="snížená",J170,0) -> 0 | BG170: =IF(N170="zákl. přenesená",J170,0) -> 0 | BH170: =IF(N170="sníž. přenesená",J170,0) -> 0 | BI170: =IF(N170="nulová",J170,0) -> 0 | BJ170: 1 | BK170: =ROUND(I170*H170,2) -> 0 | BL170: 16 | BM170: -918559570
D171: VV | F171: 20 | H171: 20 | AT171: VV | AU171: 2 | AV171: 2 | AW171: True | AX171: 1 | AY171: ROZPOCET
C172: 39 | D172: M | E172: 7131-PE13 | F172: Termoizolační trubice z pěnového polyethylenu, v základním provedení, tloušťka stěny 13 mm, vnitřní průměr 22 mm | G172: m | H172: 8 | J172: =ROUND(I172*H172,2) -> 0 | K172: vlastní | N172: základní | P172: =O172*H172 -> 0 | Q172: 0.0002 | R172: =Q172*H172 -> 0.0016 | S172: 0 | T172: =S172*H172 -> 0 | AR172: 32 | AT172: M | AU172: 2 | AY172: ROZPOCET | BE172: =IF(N172="základní",J172,0) -> 0 | BF172: =IF(N172="snížená",J172,0) -> 0 | BG172: =IF(N172="zákl. přenesená",J172,0) -> 0 | BH172: =IF(N172="sníž. přenesená",J172,0) -> 0 | BI172: =IF(N172="nulová",J172,0) -> 0 | BJ172: 1 | BK172: =ROUND(I172*H172,2) -> 0 | BL172: 16 | BM172: -492865578
D173: VV | F173: 8 | H173: 8 | AT173: VV | AU173: 2 | AV173: 2 | AW173: True | AX173: 1 | AY173: ROZPOCET
C174: 40 | D174: K | E174: 71346-PE03 | F174: Montáž tepelné izolace potrubí z pěnového PE, lepené, DN přes 25 do 42mm | G174: m | H174: 24 | J174: =ROUND(I174*H174,2) -> 0 | K174: vlastní | N174: základní | P174: =O174*H174 -> 0 | Q174: 0 | R174: =Q174*H174 -> 0 | S174: 0 | T174: =S174*H174 -> 0 | AR174: 16 | AT174: K | AU174: 2 | AY174: ROZPOCET | BE174: =IF(N174="základní",J174,0) -> 0 | BF174: =IF(N174="snížená",J174,0) -> 0 | BG174: =IF(N174="zákl. přenesená",J174,0) -> 0 | BH174: =IF(N174="sníž. přenesená",J174,0) -> 0 | BI174: =IF(N174="nulová",J174,0) -> 0 | BJ174: 1 | BK174: =ROUND(I174*H174,2) -> 0 | BL174: 16 | BM174: -1313663177
D175: VV | F175: 24 | H175: 24 | AT175: VV | AU175: 2 | AV175: 2 | AW175: True | AX175: 1 | AY175: ROZPOCET
C176: 41 | D176: M | E176: 7131-PE24 | F176: Termoizolační trubice z pěnového polyethylenu, v základním provedení, tloušťka stěny 20 mm, vnitřní průměr 28 mm | G176: m | H176: 24 | J176: =ROUND(I176*H176,2) -> 0 | K176: vlastní | N176: základní | P176: =O176*H176 -> 0 | Q176: 0.0003 | R176: =Q176*H176 -> 0.0072 | S176: 0 | T176: =S176*H176 -> 0 | AR176: 32 | AT176: M | AU176: 2 | AY176: ROZPOCET | BE176: =IF(N176="základní",J176,0) -> 0 | BF176: =IF(N176="snížená",J176,0) -> 0 | BG176: =IF(N176="zákl. přenesená",J176,0) -> 0 | BH176: =IF(N176="sníž. přenesená",J176,0) -> 0 | BI176: =IF(N176="nulová",J176,0) -> 0 | BJ176: 1 | BK176: =ROUND(I176*H176,2) -> 0 | BL176: 16 | BM176: 1066238672
D177: VV | F177: 24 | H177: 24 | AT177: VV | AU177: 2 | AV177: 2 | AW177: True | AX177: 1 | AY177: ROZPOCET
C178: 42 | D178: K | E178: 998713101 | F178: Přesun hmot tonážní pro izolace tepelné v objektech v do 6 m | G178: t | H178: 0.023 | J178: =ROUND(I178*H178,2) -> 0 | K178: CS ÚRS 2017 01 | N178: základní | P178: =O178*H178 -> 0 | Q178: 0 | R178: =Q178*H178 -> 0 | S178: 0 | T178: =S178*H178 -> 0 | AR178: 16 | AT178: K | AU178: 2 | AY178: ROZPOCET | BE178: =IF(N178="základní",J178,0) -> 0 | BF178: =IF(N178="snížená",J178,0) -> 0 | BG178: =IF(N178="zákl. přenesená",J178,0) -> 0 | BH178: =IF(N178="sníž. přenesená",J178,0) -> 0 | BI178: =IF(N178="nulová",J178,0) -> 0 | BJ178: 1 | BK178: =ROUND(I178*H178,2) -> 0 | BL178: 16 | BM178: 1141893638
D179: D | E179: HZS | F179: HZS | J179: =BK179 -> 0 | P179: =SUM(P180:P187) -> 0 | R179: =SUM(R180:R187) -> 0 | T179: =SUM(T180:T187) -> 0 | AR179: 1 | AT179: D | AU179: 1 | AY179: ROZPOCET | BK179: =SUM(BK180:BK187) -> 0
C180: 43 | D180: K | E180: 799-M01 | F180: Doregulování hydrodinamických tlaků | G180: hod | H180: 10 | J180: =ROUND(I180*H180,2) -> 0 | K180: vlastní | N180: základní | P180: =O180*H180 -> 0 | Q180: 0 | R180: =Q180*H180 -> 0 | S180: 0 | T180: =S180*H180 -> 0 | AR180: 4 | AT180: K | AU180: 2 | AY180: ROZPOCET | BE180: =IF(N180="základní",J180,0) -> 0 | BF180: =IF(N180="snížená",J180,0) -> 0 | BG180: =IF(N180="zákl. přenesená",J180,0) -> 0 | BH180: =IF(N180="sníž. přenesená",J180,0) -> 0 | BI180: =IF(N180="nulová",J180,0) -> 0 | BJ180: 1 | BK180: =ROUND(I180*H180,2) -> 0 | BL180: 4 | BM180: -930036296
D181: VV | F181: 10 | H181: 10 | AT181: VV | AU181: 2 | AV181: 2 | AW181: True | AX181: 1 | AY181: ROZPOCET
C182: 44 | D182: K | E182: 799-M03 | F182: Uvedení do provozu | G182: hod | H182: 15 | J182: =ROUND(I182*H182,2) -> 0 | K182: vlastní | N182: základní | P182: =O182*H182 -> 0 | Q182: 0 | R182: =Q182*H182 -> 0 | S182: 0 | T182: =S182*H182 -> 0 | AR182: 4 | AT182: K | AU182: 2 | AY182: ROZPOCET | BE182: =IF(N182="základní",J182,0) -> 0 | BF182: =IF(N182="snížená",J182,0) -> 0 | BG182: =IF(N182="zákl. přenesená",J182,0) -> 0 | BH182: =IF(N182="sníž. přenesená",J182,0) -> 0 | BI182: =IF(N182="nulová",J182,0) -> 0 | BJ182: 1 | BK182: =ROUND(I182*H182,2) -> 0 | BL182: 4 | BM182: -1126661701
D183: VV | F183: 15 | H183: 15 | AT183: VV | AU183: 2 | AV183: 2 | AW183: True | AX183: 1 | AY183: ROZPOCET
C184: 45 | D184: K | E184: 799-M04 | F184: Napuštění a odvzdušnění soustavy | G184: hod | H184: 10 | J184: =ROUND(I184*H184,2) -> 0 | K184: vlastní | N184: základní | P184: =O184*H184 -> 0 | Q184: 0 | R184: =Q184*H184 -> 0 | S184: 0 | T184: =S184*H184 -> 0 | AR184: 4 | AT184: K | AU184: 2 | AY184: ROZPOCET | BE184: =IF(N184="základní",J184,0) -> 0 | BF184: =IF(N184="snížená",J184,0) -> 0 | BG184: =IF(N184="zákl. přenesená",J184,0) -> 0 | BH184: =IF(N184="sníž. přenesená",J184,0) -> 0 | BI184: =IF(N184="nulová",J184,0) -> 0 | BJ184: 1 | BK184: =ROUND(I184*H184,2) -> 0 | BL184: 4 | BM184: -486054183
D185: VV | F185: 10 | H185: 10 | AT185: VV | AU185: 2 | AV185: 2 | AW185: True | AX185: 1 | AY185: ROZPOCET
C186: 46 | D186: K | E186: 799-M05 | F186: Topná zkouška | G186: hod | H186: 72 | J186: =ROUND(I186*H186,2) -> 0 | K186: vlastní | N186: základní | P186: =O186*H186 -> 0 | Q186: 0 | R186: =Q186*H186 -> 0 | S186: 0 | T186: =S186*H186 -> 0 | AR186: 4 | AT186: K | AU186: 2 | AY186: ROZPOCET | BE186: =IF(N186="základní",J186,0) -> 0 | BF186: =IF(N186="snížená",J186,0) -> 0 | BG186: =IF(N186="zákl. přenesená",J186,0) -> 0 | BH186: =IF(N186="sníž. přenesená",J186,0) -> 0 | BI186: =IF(N186="nulová",J186,0) -> 0 | BJ186: 1 | BK186: =ROUND(I186*H186,2) -> 0 | BL186: 4 | BM186: -803837023
D187: VV | F187: 72 | H187: 72 | AT187: VV | AU187: 2 | AV187: 2 | AW187: True | AX187: 1 | AY187: ROZPOCET
H677: 8.93

Sheet D1_01_4c - Vzduchotechnika
D1: List obsahuje: | F1: 1) Krycí list soupisu | G1: 2) Rekapitulace | J1: 3) Soupis prací | K1: Zpět na list: | L1: Rekapitulace stavby
L2: >> skryté sloupce << | AT2: {08fde304-a757-422d-99b5-0c456761366e}
AT3: 2
D4: KRYCÍ LIST SOUPISU | M4: v --- níže se nacházejí doplnkové a pomocné údaje k sestavám --- v | AT4: False
D6: Stavba:
E7: ='Rekapitulace stavby'!K6 -> Přístavba a stavební úpravy víceúčelového objektu ve Vadíně č.p. 11
D8: Objekt:
E9: D1_01 - Přístavba
D10: Soupis:
E11: D1_01_4c - Vzduchotechnika
D13: KSO: | I13: CC-CZ:
D14: Místo: | F14: Vadín | I14: Datum: | J14: ='Rekapitulace stavby'!AN8 -> 3. 9. 2017
D16: Zadavatel: | I16: IČ:
E17: Obec Okrouhlice | I17: DIČ:
D19: Uchazeč: | I19: IČ: | J19: =IF('Rekapitulace stavby'!AN13="Vyplň údaj","",IF('Rekapitulace stavby'!AN13="","",'Rekapitulace stavby'!AN13)) -> 
E20: =IF('Rekapitulace stavby'!E14="Vyplň údaj","",IF('Rekapitulace stavby'!E14="","",'Rekapitulace stavby'!E14)) ->  | I20: DIČ: | J20: =IF('Rekapitulace stavby'!AN14="Vyplň údaj","",IF('Rekapitulace stavby'!AN14="","",'Rekapitulace stavby'!AN14)) -> 
D22: Projektant: | I22: IČ:
E23: Ing. Suk - EREKTA | I23: DIČ:
D25: Poznámka:
D29: Cena bez DPH | J29: =ROUND(J85,2) -> 0
F31: Základ daně | I31: Sazba daně | J31: Výše daně
D32: DPH | E32: základní | F32: =ROUND(SUM(BE85:BE108), 2) -> 0 | I32: 0.21 | J32: =ROUND(ROUND((SUM(BE85:BE108)), 2)*I32, 2) -> 0
E33: snížená | F33: =ROUND(SUM(BF85:BF108), 2) -> 0 | I33: 0.15 | J33: =ROUND(ROUND((SUM(BF85:BF108)), 2)*I33, 2) -> 0
E34: zákl. přenesená | F34: =ROUND(SUM(BG85:BG108), 2) -> 0 | I34: 0.21 | J34: 0
E35: sníž. přenesená | F35: =ROUND(SUM(BH85:BH108), 2) -> 0 | I35: 0.15 | J35: 0
E36: nulová | F36: =ROUND(SUM(BI85:BI108), 2) -> 0 | I36: 0 | J36: 0
D38: Cena s DPH | G38: v | H38: CZK | J38: =SUM(J29:J36) -> 0
C44: REKAPITULACE ČLENĚNÍ SOUPISU PRACÍ
C46: Stavba:
E47: =E7 -> Přístavba a stavební úpravy víceúčelového objektu ve Vadíně č.p. 11
C48: Objekt:
E49: D1_01 - Přístavba
C50: Soupis:
E51: =E11 -> D1_01_4c - Vzduchotechnika
C53: Místo: | F53: =F14 -> Vadín | I53: Datum: | J53: =IF(J14="","",J14) -> 3. 9. 2017
C55: Zadavatel: | F55: =E17 -> Obec Okrouhlice | I55: Projektant: | J55: =E23 -> Ing. Suk - EREKTA
C56: Uchazeč: | F56: =IF(E20="","",E20) -> 
C58: Kód dílu - Popis | J58: Cena celkem [CZK]
C60: Náklady soupisu celkem | J60: =J85 -> 0 | AU60: -1
D61: PSV - Práce a dodávky PSV | J61: =J86 -> 0
D62: 713 - Izolace tepelné | J62: =J87 -> 0
D63: 751 - Vzduchotechnika | J63: =J90 -> 0
C70: SOUPIS PRACÍ
C72: Stavba:
E73: =E7 -> Přístavba a stavební úpravy víceúčelového objektu ve Vadíně č.p. 11
C74: Objekt:
E75: D1_01 - Přístavba
C76: Soupis:
E77: =E11 -> D1_01_4c - Vzduchotechnika
C79: Místo: | F79: =F14 -> Vadín | I79: Datum: | J79: =IF(J14="","",J14) -> 3. 9. 2017
C81: Zadavatel: | F81: =E17 -> Obec Okrouhlice | I81: Projektant: | J81: =E23 -> Ing. Suk - EREKTA
C82: Uchazeč: | F82: =IF(E20="","",E20) -> 
C84: PČ | D84: Typ | E84: Kód | F84: Popis | G84: MJ | H84: Množství | I84: J.cena [CZK] | J84: Cena celkem [CZK] | K84: Cenová soustava | M84: Poznámka | N84: DPH | O84: J. Nh [h] | P84: Nh celkem [h] | Q84: J. hmotnost [t] | R84: Hmotnost celkem [t] | S84: J. suť [t] | T84: Suť Celkem [t]
C85: Náklady soupisu celkem | J85: =BK85 -> 0 | P85: =P86 -> 0 | R85: =R86 -> 0 | T85: =T86 -> 0 | AT85: D | AU85: -1 | BK85: =BK86 -> 0
D86: D | E86: PSV | F86: Práce a dodávky PSV | J86: =BK86 -> 0 | P86: =P87+P90 -> 0 | R86: =R87+R90 -> 0 | T86: =T87+T90 -> 0 | AR86: 1 | AT86: D | AU86: 0 | AY86: ROZPOCET | BK86: =BK87+BK90 -> 0
D87: D | E87: 713 | F87: Izolace tepelné | J87: =BK87 -> 0 | P87: =SUM(P88:P89) -> 0 | R87: =SUM(R88:R89) -> 0 | T87: =SUM(T88:T89) -> 0 | AR87: 1 | AT87: D | AU87: 1 | AY87: ROZPOCET | BK87: =SUM(BK88:BK89) -> 0
C88: 1 | D88: K | E88: izol100 | F88: Montáž izolace z minerální vlny vzt rozvod nastřelením rohoží, pásů, dílců, desek | G88: m2 | H88: 2.4 | J88: =ROUND(I88*H88,2) -> 0 | K88: vlastní | N88: základní | P88: =O88*H88 -> 0 | Q88: 0 | R88: =Q88*H88 -> 0 | S88: 0 | T88: =S88*H88 -> 0 | AR88: 4 | AT88: K | AU88: 2 | AY88: ROZPOCET | BE88: =IF(N88="základní",J88,0) -> 0 | BF88: =IF(N88="snížená",J88,0) -> 0 | BG88: =IF(N88="zákl. přenesená",J88,0) -> 0 | BH88: =IF(N88="sníž. přenesená",J88,0) -> 0 | BI88: =IF(N88="nulová",J88,0) -> 0 | BJ88: 1 | BK88: =ROUND(I88*H88,2) -> 0 | BL88: 4 | BM88: 34
C89: 2 | D89: M | E89: 631izol050 | F89: deska tl.50mm z minerální plsti s polepem al. fólií s PO odolností 30 minut | G89: m2 | H89: 2.4 | J89: =ROUND(I89*H89,2) -> 0 | K89: vlastní | N89: základní | P89: =O89*H89 -> 0 | Q89: 0 | R89: =Q89*H89 -> 0 | S89: 0 | T89: =S89*H89 -> 0 | AR89: 8 | AT89: M | AU89: 2 | AY89: ROZPOCET | BE89: =IF(N89="základní",J89,0) -> 0 | BF89: =IF(N89="snížená",J89,0) -> 0 | BG89: =IF(N89="zákl. přenesená",J89,0) -> 0 | BH89: =IF(N89="sníž. přenesená",J89,0) -> 0 | BI89: =IF(N89="nulová",J89,0) -> 0 | BJ89: 1 | BK89: =ROUND(I89*H89,2) -> 0 | BL89: 4 | BM89: 36
D90: D | E90: 751 | F90: Vzduchotechnika | J90: =BK90 -> 0 | P90: =SUM(P91:P108) -> 0 | R90: =SUM(R91:R108) -> 0 | T90: =SUM(T91:T108) -> 0 | AR90: 1 | AT90: D | AU90: 1 | AY90: ROZPOCET | BK90: =SUM(BK91:BK108) -> 0
C91: 3 | D91: M | E91: 429HAD-U1 | F91: ohebné hadice DN100 s hlukovou izolací tl.25mm | G91: m | H91: 3 | J91: =ROUND(I91*H91,2) -> 0 | K91: vlastní | N91: základní | P91: =O91*H91 -> 0 | Q91: 0 | R91: =Q91*H91 -> 0 | S91: 0 | T91: =S91*H91 -> 0 | AR91: 8 | AT91: M | AU91: 2 | AY91: ROZPOCET | BE91: =IF(N91="základní",J91,0) -> 0 | BF91: =IF(N91="snížená",J91,0) -> 0 | BG91: =IF(N91="zákl. přenesená",J91,0) -> 0 | BH91: =IF(N91="sníž. přenesená",J91,0) -> 0 | BI91: =IF(N91="nulová",J91,0) -> 0 | BJ91: 1 | BK91: =ROUND(I91*H91,2) -> 0 | BL91: 4 | BM91: 4
C92: 4 | D92: K | E92: 429chlr1101 | F92: závěsný materiál - MONTÁŽE | G92: kus | H92: 1 | J92: 0 | K92: vlastní | N92: základní | P92: 0 | Q92: 0 | R92: 0 | S92: 0 | T92: 0 | AR92: 4 | AT92: K | AU92: 2 | AY92: ROZPOCET | BE92: 0 | BF92: 0 | BG92: 0 | BH92: 0 | BI92: 0 | BJ92: 1 | BK92: 0 | BL92: 4 | BM92: 6
C93: 5 | D93: K | E93: 751111051 | F93: Montáž vent | G93: kus | H93: 1 | J93: 0 | K93: vlastní | N93: základní | P93: 0 | Q93: 0 | R93: 0 | S93: 0 | T93: 0 | AR93: 4 | AT93: K | AU93: 2 | AY93: ROZPOCET | BE93: 0 | BF93: 0 | BG93: 0 | BH93: 0 | BI93: 0 | BJ93: 1 | BK93: 0 | BL93: 4 | BM93: 8
C94: 6 | D94: M | E94: 429vent-U | F94: Diagonální dvouotáčkový ventilátor do kruhového potrubí DN100 mm IP44 | G94: kus | H94: 1 | J94: 0 | K94: vlastní | N94: základní | P94: 0 | Q94: 0 | R94: 0 | S94: 0 | T94: 0 | AR94: 8 | AT94: M | AU94: 2 | AY94: ROZPOCET | BE94: 0 | BF94: 0 | BG94: 0 | BH94: 0 | BI94: 0 | BJ94: 1 | BK94: 0 | BL94: 4 | BM94: 10
C95: 7 | D95: K | E95: 751511122-U | F95: Montáž potrubí plech skupiny I kruh tloušťky plechu 0,6 mm D do 400 mm | G95: m | H95: 10.35 | J95: 0 | K95: vlastní | N95: základní | P95: 0 | Q95: 0 | R95: 0 | S95: 0 | T95: 0 | AR95: 4 | AT95: K | AU95: 2 | AY95: ROZPOCET | BE95: 0 | BF95: 0 | BG95: 0 | BH95: 0 | BI95: 0 | BJ95: 1 | BK95: 0 | BL95: 4 | BM95: 12
C96: 8 | D96: M | E96: 429spiro100 | F96: trouba kruhová spirálně vinutá pozinkovaná do D 100 mm tl. 0,50 včetně 30% tvarovek | G96: m | H96: 10.35 | J96: 0 | K96: vlastní | N96: základní | P96: 0 | Q96: 0 | R96: 0 | S96: 0 | T96: 0 | AR96: 8 | AT96: M | AU96: 2 | AY96: ROZPOCET | BE96: 0 | BF96: 0 | BG96: 0 | BH96: 0 | BI96: 0 | BJ96: 1 | BK96: 0 | BL96: 4 | BM96: 14
C97: 9 | D97: M | E97: 429žal100 | F97: protidešťová žaluzie samotížná DN100 s okapničkou | G97: ks | H97: 2 | J97: 0 | K97: vlastní | N97: základní | P97: 0 | Q97: 0 | R97: 0 | S97: 0 | T97: 0 | AR97: 8 | AT97: M | AU97: 2 | AY97: ROZPOCET | BE97: 0 | BF97: 0 | BG97: 0 | BH97: 0 | BI97: 0 | BJ97: 1 | BK97: 0 | BL97: 4 | BM97: 16
C98: 10 | D98: M | E98: 429vztr1200 | F98: závěsný materiál - dodávka | G98: ks | H98: 1 | J98: 0 | K98: vlastní | N98: základní | P98: 0 | Q98: 0 | R98: 0 | S98: 0 | T98: 0 | AR98: 8 | AT98: M | AU98: 2 | AY98: ROZPOCET | BE98: 0 | BF98: 0 | BG98: 0 | BH98: 0 | BI98: 0 | BJ98: 1 | BK98: 0 | BL98: 4 | BM98: 18
C99: 11 | D99: M | E99: 429vztr100 | F99: odtahový kovový talířový ventil pro kruhové potrubí DN100 | G99: ks | H99: 3 | J99: 0 | N99: základní | P99: 0 | Q99: 0 | R99: 0 | S99: 0 | T99: 0 | AR99: 8 | AT99: M | AU99: 2 | AY99: ROZPOCET | BE99: 0 | BF99: 0 | BG99: 0 | BH99: 0 | BI99: 0 | BJ99: 1 | BK99: 0 | BL99: 4 | BM99: -222281331
D100: VV | F100: 1*3 'Přepočtené koeficientem množství | H100: 3 | AT100: VV | AU100: 2 | AV100: 2 | AW100: False | AX100: 1 | AY100: ROZPOCET
C101: 12 | D101: K | E101: had-U | F101: Montáž hadice do dn 200 mm | G101: m | H101: 3 | J101: =ROUND(I101*H101,2) -> 0 | K101: vlastní | N101: základní | P101: =O101*H101 -> 0 | Q101: 0 | R101: =Q101*H101 -> 0 | S101: 0 | T101: =S101*H101 -> 0 | AR101: 4 | AT101: K | AU101: 2 | AY101: ROZPOCET | BE101: =IF(N101="základní",J101,0) -> 0 | BF101: =IF(N101="snížená",J101,0) -> 0 | BG101: =IF(N101="zákl. přenesená",J101,0) -> 0 | BH101: =IF(N101="sníž. přenesená",J101,0) -> 0 | BI101: =IF(N101="nulová",J101,0) -> 0 | BJ101: 1 | BK101: =ROUND(I101*H101,2) -> 0 | BL101: 4 | BM101: 20
C102: 13 | D102: K | E102: montžal2 | F102: Montáž žaluzie | G102: kus | H102: 2 | J102: 0 | K102: vlastní | N102: základní | P102: 0 | Q102: 0 | R102: 0 | S102: 0 | T102: 0 | AR102: 4 | AT102: K | AU102: 2 | AY102: ROZPOCET | BE102: 0 | BF102: 0 | BG102: 0 | BH102: 0 | BI102: 0 | BJ102: 1 | BK102: 0 | BL102: 4 | BM102: 22
C103: 14 | D103: K | E103: montvent | F103: Montáž odtahového kovového talířového ventilu DN100 | G103: kus | H103: 3 | J103: 0 | N103: základní | P103: 0 | Q103: 0 | R103: 0 | S103: 0 | T103: 0 | AR103: 4 | AT103: K | AU103: 2 | AY103: ROZPOCET | BE103: 0 | BF103: 0 | BG103: 0 | BH103: 0 | BI103: 0 | BJ103: 1 | BK103: 0 | BL103: 4 | BM103: 103789069
C104: 15 | D104: K | E104: VZT011 | F104: komplexní vyzkoušení zařízení | G104: hod | H104: 1 | J104: 0 | K104: vlastní | N104: základní | P104: 0 | Q104: 0 | R104: 0 | S104: 0 | T104: 0 | AR104: 4 | AT104: K | AU104: 2 | AY104: ROZPOCET | BE104: 0 | BF104: 0 | BG104: 0 | BH104: 0 | BI104: 0 | BJ104: 1 | BK104: 0 | BL104: 4 | BM104: 24
C105: 16 | D105: K | E105: VZT012 | F105: oživení zařízení | G105: hod | H105: 1 | J105: 0 | K105: vlastní | N105: základní | P105: 0 | Q105: 0 | R105: 0 | S105: 0 | T105: 0 | AR105: 4 | AT105: K | AU105: 2 | AY105: ROZPOCET | BE105: 0 | BF105: 0 | BG105: 0 | BH105: 0 | BI105: 0 | BJ105: 1 | BK105: 0 | BL105: 4 | BM105: 26
C106: 17 | D106: K | E106: VZT013 | F106: vypracování provozních předpisů | G106: hod | H106: 1 | J106: 0 | K106: vlastní | N106: základní | P106: 0 | Q106: 0 | R106: 0 | S106: 0 | T106: 0 | AR106: 4 | AT106: K | AU106: 2 | AY106: ROZPOCET | BE106: 0 | BF106: 0 | BG106: 0 | BH106: 0 | BI106: 0 | BJ106: 1 | BK106: 0 | BL106: 4 | BM106: 28
C107: 18 | D107: K | E107: VZT014 | F107: měření hlučnosti zařízení | G107: hod | H107: 2 | J107: 0 | K107: vlastní | N107: základní | P107: 0 | Q107: 0 | R107: 0 | S107: 0 | T107: 0 | AR107: 4 | AT107: K | AU107: 2 | AY107: ROZPOCET | BE107: 0 | BF107: 0 | BG107: 0 | BH107: 0 | BI107: 0 | BJ107: 1 | BK107: 0 | BL107: 4 | BM107: 30
C108: 19 | D108: K | E108: VZT180 | F108: nepředvídatelné práce | G108: hod | H108: 3 | J108: 0 | K108: vlastní | N108: základní | P108: 0 | Q108: 0 | R108: 0 | S108: 0 | T108: 0 | AR108: 4 | AT108: K | AU108: 2 | AY108: ROZPOCET | BE108: 0 | BF108: 0 | BG108: 0 | BH108: 0 | BI108: 0 | BJ108: 1 | BK108: 0 | BL108: 4 | BM108: 32
H677: 8.93

Sheet D1_01_4e - Zdravotně tech...
D1: List obsahuje: | F1: 1) Krycí list soupisu | G1: 2) Rekapitulace | J1: 3) Soupis prací | K1: Zpět na list: | L1: Rekapitulace stavby
L2: >> skryté sloupce << | AT2: {91e630b5-a21e-4d73-9f21-0ef77766be86}
AT3: 2
D4: KRYCÍ LIST SOUPISU | M4: v --- níže se nacházejí doplnkové a pomocné údaje k sestavám --- v | AT4: False
D6: Stavba:
E7: ='Rekapitulace stavby'!K6 -> Přístavba a stavební úpravy víceúčelového objektu ve Vadíně č.p. 11
D8: Objekt:
E9: D1_01 - Přístavba
D10: Soupis:
E11: D1_01_4e - Zdravotně technické instalace
D13: KSO: | I13: CC-CZ:
D14: Místo: | F14: Vadín | I14: Datum: | J14: ='Rekapitulace stavby'!AN8 -> 3. 9. 2017
D16: Zadavatel: | I16: IČ:
E17: Obec Okrouhlice | I17: DIČ:
D19: Uchazeč: | I19: IČ: | J19: =IF('Rekapitulace stavby'!AN13="Vyplň údaj","",IF('Rekapitulace stavby'!AN13="","",'Rekapitulace stavby'!AN13)) -> 
E20: =IF('Rekapitulace stavby'!E14="Vyplň údaj","",IF('Rekapitulace stavby'!E14="","",'Rekapitulace stavby'!E14)) ->  | I20: DIČ: | J20: =IF('Rekapitulace stavby'!AN14="Vyplň údaj","",IF('Rekapitulace stavby'!AN14="","",'Rekapitulace stavby'!AN14)) -> 
D22: Projektant: | I22: IČ:
E23: Ing. Suk - EREKTA | I23: DIČ:
D25: Poznámka:
D29: Cena bez DPH | J29: =ROUND(J90,2) -> 0
F31: Základ daně | I31: Sazba daně | J31: Výše daně
D32: DPH | E32: základní | F32: =ROUND(SUM(BE90:BE243), 2) -> 0 | I32: 0.21 | J32: =ROUND(ROUND((SUM(BE90:BE243)), 2)*I32, 2) -> 0
E33: snížená | F33: =ROUND(SUM(BF90:BF243), 2) -> 0 | I33: 0.15 | J33: =ROUND(ROUND((SUM(BF90:BF243)), 2)*I33, 2) -> 0
E34: zákl. přenesená | F34: =ROUND(SUM(BG90:BG243), 2) -> 0 | I34: 0.21 | J34: 0
E35: sníž. přenesená | F35: =ROUND(SUM(BH90:BH243), 2) -> 0 | I35: 0.15 | J35: 0
E36: nulová | F36: =ROUND(SUM(BI90:BI243), 2) -> 0 | I36: 0 | J36: 0
D38: Cena s DPH | G38: v | H38: CZK | J38: =SUM(J29:J36) -> 0
C44: REKAPITULACE ČLENĚNÍ SOUPISU PRACÍ
C46: Stavba:
E47: =E7 -> Přístavba a stavební úpravy víceúčelového objektu ve Vadíně č.p. 11
C48: Objekt:
E49: D1_01 - Přístavba
C50: Soupis:
E51: =E11 -> D1_01_4e - Zdravotně technické instalace
C53: Místo: | F53: =F14 -> Vadín | I53: Datum: | J53: =IF(J14="","",J14) -> 3. 9. 2017
C55: Zadavatel: | F55: =E17 -> Obec Okrouhlice | I55: Projektant: | J55: =E23 -> Ing. Suk - EREKTA
C56: Uchazeč: | F56: =IF(E20="","",E20) -> 
C58: Kód dílu - Popis | J58: Cena celkem [CZK]
C60: Náklady soupisu celkem | J60: =J90 -> 0 | AU60: -1
D61: HSV - Práce a dodávky HSV | J61: =J91 -> 0
D62: 3 - Svislé a kompletní konstrukce | J62: =J92 -> 0
D63: 8 - Trubní vedení | J63: =J97 -> 0
D64: PSV - Práce a dodávky PSV | J64: =J124 -> 0
D65: 721 - Zdravotechnika - vnitřní kanalizace | J65: =J125 -> 0
D66: 722 - Zdravotechnika - vnitřní vodovod | J66: =J157 -> 0
D67: 725 - Zdravotechnika - zařizovací předměty | J67: =J195 -> 0
D68: 726 - Zdravotechnika - předstěnové instalace | J68: =J241 -> 0
C75: SOUPIS PRACÍ
C77: Stavba:
E78: =E7 -> Přístavba a stavební úpravy víceúčelového objektu ve Vadíně č.p. 11
C79: Objekt:
E80: D1_01 - Přístavba
C81: Soupis:
E82: =E11 -> D1_01_4e - Zdravotně technické instalace
C84: Místo: | F84: =F14 -> Vadín | I84: Datum: | J84: =IF(J14="","",J14) -> 3. 9. 2017
C86: Zadavatel: | F86: =E17 -> Obec Okrouhlice | I86: Projektant: | J86: =E23 -> Ing. Suk - EREKTA
C87: Uchazeč: | F87: =IF(E20="","",E20) -> 
C89: PČ | D89: Typ | E89: Kód | F89: Popis | G89: MJ | H89: Množství | I89: J.cena [CZK] | J89: Cena celkem [CZK] | K89: Cenová soustava | M89: Poznámka | N89: DPH | O89: J. Nh [h] | P89: Nh celkem [h] | Q89: J. hmotnost [t] | R89: Hmotnost celkem [t] | S89: J. suť [t] | T89: Suť Celkem [t]
C90: Náklady soupisu celkem | J90: =BK90 -> 0 | P90: =P91+P124 -> 0 | R90: =R91+R124 -> 9.74582 | T90: =T91+T124 -> 0 | AT90: D | AU90: -1 | BK90: =BK91+BK124 -> 0
D91: D | E91: HSV | F91: Práce a dodávky HSV | J91: =BK91 -> 0 | P91: =P92+P97 -> 0 | R91: =R92+R97 -> 9.31157 | T91: =T92+T97 -> 0 | AR91: 1 | AT91: D | AU91: 0 | AY91: ROZPOCET | BK91: =BK92+BK97 -> 0
D92: D | E92: 3 | F92: Svislé a kompletní konstrukce | J92: =BK92 -> 0 | P92: =SUM(P93:P96) -> 0 | R92: =SUM(R93:R96) -> 9.3 | T92: =SUM(T93:T96) -> 0 | AR92: 1 | AT92: D | AU92: 1 | AY92: ROZPOCET | BK92: =SUM(BK93:BK96) -> 0
C93: 1 | D93: K | E93: 382411_R1 | F93: Betonová jímka na splaškovou vodu 10,5m3, včetně komínku, poklopu, vývrtu na potrubí DN160 | G93: kus | H93: 1 | J93: =ROUND(I93*H93,2) -> 0 | K93: vlastní | N93: základní | P93: =O93*H93 -> 0 | Q93: 9.3 | R93: =Q93*H93 -> 9.3 | S93: 0 | T93: =S93*H93 -> 0 | AR93: 4 | AT93: K | AU93: 2 | AY93: ROZPOCET | BE93: =IF(N93="základní",J93,0) -> 0 | BF93: =IF(N93="snížená",J93,0) -> 0 | BG93: =IF(N93="zákl. přenesená",J93,0) -> 0 | BH93: =IF(N93="sníž. přenesená",J93,0) -> 0 | BI93: =IF(N93="nulová",J93,0) -> 0 | BJ93: 1 | BK93: =ROUND(I93*H93,2) -> 0 | BL93: 4 | BM93: 1655074014
D94: VV | F94: 1 | H94: 1 | AT94: VV | AU94: 2 | AV94: 2 | AW94: True | AX94: 1 | AY94: ROZPOCET
C95: 2 | D95: K | E95: 382413118R | F95: Osazení jímky do terénu | G95: kus | H95: 1 | J95: =ROUND(I95*H95,2) -> 0 | K95: vlastní | N95: základní | P95: =O95*H95 -> 0 | Q95: 0 | R95: =Q95*H95 -> 0 | S95: 0 | T95: =S95*H95 -> 0 | AR95: 4 | AT95: K | AU95: 2 | AY95: ROZPOCET | BE95: =IF(N95="základní",J95,0) -> 0 | BF95: =IF(N95="snížená",J95,0) -> 0 | BG95: =IF(N95="zákl. přenesená",J95,0) -> 0 | BH95: =IF(N95="sníž. přenesená",J95,0) -> 0 | BI95: =IF(N95="nulová",J95,0) -> 0 | BJ95: 1 | BK95: =ROUND(I95*H95,2) -> 0 | BL95: 4 | BM95: 1865210465
D96: VV | F96: 1 | H96: 1 | AT96: VV | AU96: 2 | AV96: 2 | AW96: True | AX96: 1 | AY96: ROZPOCET
D97: D | E97: 8 | F97: Trubní vedení | J97: =BK97 -> 0 | P97: =SUM(P98:P123) -> 0 | R97: =SUM(R98:R123) -> 0.01157 | T97: =SUM(T98:T123) -> 0 | AR97: 1 | AT97: D | AU97: 1 | AY97: ROZPOCET | BK97: =SUM(BK98:BK123) -> 0
C98: 3 | D98: K | E98: 871161141 | F98: Montáž potrubí z PE100 SDR 11 otevřený výkop svařovaných na tupo D 32 x 3,0 mm | G98: m | H98: 22 | J98: =ROUND(I98*H98,2) -> 0 | K98: CS ÚRS 2017 01 | N98: základní | P98: =O98*H98 -> 0 | Q98: 0 | R98: =Q98*H98 -> 0 | S98: 0 | T98: =S98*H98 -> 0 | AR98: 4 | AT98: K | AU98: 2 | AY98: ROZPOCET | BE98: =IF(N98="základní",J98,0) -> 0 | BF98: =IF(N98="snížená",J98,0) -> 0 | BG98: =IF(N98="zákl. přenesená",J98,0) -> 0 | BH98: =IF(N98="sníž. přenesená",J98,0) -> 0 | BI98: =IF(N98="nulová",J98,0) -> 0 | BJ98: 1 | BK98: =ROUND(I98*H98,2) -> 0 | BL98: 4 | BM98: 1896598695
D99: VV | F99: 22 | H99: 22 | AT99: VV | AU99: 2 | AV99: 2 | AW99: True | AX99: 1 | AY99: ROZPOCET
C100: 4 | D100: M | E100: 286135950 | F100: potrubí dvouvrstvé PE100 s 10% signalizační vrstvou, SDR 11, 32x3,0. L=12m | G100: m | H100: 22 | J100: =ROUND(I100*H100,2) -> 0 | K100: CS ÚRS 2017 01 | N100: základní | P100: =O100*H100 -> 0 | Q100: 0.00028 | R100: =Q100*H100 -> 0.00616 | S100: 0 | T100: =S100*H100 -> 0 | AR100: 8 | AT100: M | AU100: 2 | AY100: ROZPOCET | BE100: =IF(N100="základní",J100,0) -> 0 | BF100: =IF(N100="snížená",J100,0) -> 0 | BG100: =IF(N100="zákl. přenesená",J100,0) -> 0 | BH100: =IF(N100="sníž. přenesená",J100,0) -> 0 | BI100: =IF(N100="nulová",J100,0) -> 0 | BJ100: 1 | BK100: =ROUND(I100*H100,2) -> 0 | BL100: 4 | BM100: -1276700828
D101: VV | F101: 22 | H101: 22 | AT101: VV | AU101: 2 | AV101: 2 | AW101: True | AX101: 1 | AY101: ROZPOCET
C102: 5 | D102: K | E102: 891152211 | F102: Montáž závitového vodoměru G 3/4 v šachtě | G102: kus | H102: 1 | J102: =ROUND(I102*H102,2) -> 0 | K102: CS ÚRS 2017 01 | N102: základní | P102: =O102*H102 -> 0 | Q102: 0.00069 | R102: =Q102*H102 -> 0.00069 | S102: 0 | T102: =S102*H102 -> 0 | AR102: 4 | AT102: K | AU102: 2 | AY102: ROZPOCET | BE102: =IF(N102="základní",J102,0) -> 0 | BF102: =IF(N102="snížená",J102,0) -> 0 | BG102: =IF(N102="zákl. přenesená",J102,0) -> 0 | BH102: =IF(N102="sníž. přenesená",J102,0) -> 0 | BI102: =IF(N102="nulová",J102,0) -> 0 | BJ102: 1 | BK102: =ROUND(I102*H102,2) -> 0 | BL102: 4 | BM102: -1274962234
D103: VV | F103: 1 | H103: 1 | AT103: VV | AU103: 2 | AV103: 2 | AW103: True | AX103: 1 | AY103: ROZPOCET
C104: 6 | D104: K | E104: 72223R01 | F104: PŘECHOD PPS 32x 1" vnitřní závit | G104: kus | H104: 2 | J104: =ROUND(I104*H104,2) -> 0 | K104: vlastní | N104: základní | P104: =O104*H104 -> 0 | Q104: 0.00031 | R104: =Q104*H104 -> 0.00062 | S104: 0 | T104: =S104*H104 -> 0 | AR104: 16 | AT104: K | AU104: 2 | AY104: ROZPOCET | BE104: =IF(N104="základní",J104,0) -> 0 | BF104: =IF(N104="snížená",J104,0) -> 0 | BG104: =IF(N104="zákl. přenesená",J104,0) -> 0 | BH104: =IF(N104="sníž. přenesená",J104,0) -> 0 | BI104: =IF(N104="nulová",J104,0) -> 0 | BJ104: 1 | BK104: =ROUND(I104*H104,2) -> 0 | BL104: 16 | BM104: 978395853
D105: VV | F105: 2 | H105: 2 | AT105: VV | AU105: 2 | AV105: 2 | AW105: True | AX105: 1 | AY105: ROZPOCET
C106: 7 | D106: K | E106: 722232045 | F106: Kohout kulový přímý G 1 PN 42 do 185°C vnitřní závit | G106: kus | H106: 1 | J106: =ROUND(I106*H106,2) -> 0 | K106: CS ÚRS 2017 01 | N106: základní | P106: =O106*H106 -> 0 | Q106: 0.0005 | R106: =Q106*H106 -> 0.0005 | S106: 0 | T106: =S106*H106 -> 0 | AR106: 16 | AT106: K | AU106: 2 | AY106: ROZPOCET | BE106: =IF(N106="základní",J106,0) -> 0 | BF106: =IF(N106="snížená",J106,0) -> 0 | BG106: =IF(N106="zákl. přenesená",J106,0) -> 0 | BH106: =IF(N106="sníž. přenesená",J106,0) -> 0 | BI106: =IF(N106="nulová",J106,0) -> 0 | BJ106: 1 | BK106: =ROUND(I106*H106,2) -> 0 | BL106: 16 | BM106: -1431275302
D107: VV | F107: 1 | H107: 1 | AT107: VV | AU107: 2 | AV107: 2 | AW107: True | AX107: 1 | AY107: ROZPOCET
C108: 8 | D108: K | E108: 72223R02 | F108: Vsuvka 1" | G108: kus | H108: 6 | J108: =ROUND(I108*H108,2) -> 0 | K108: vlastní | N108: základní | P108: =O108*H108 -> 0 | Q108: 0.00031 | R108: =Q108*H108 -> 0.00186 | S108: 0 | T108: =S108*H108 -> 0 | AR108: 16 | AT108: K | AU108: 2 | AY108: ROZPOCET | BE108: =IF(N108="základní",J108,0) -> 0 | BF108: =IF(N108="snížená",J108,0) -> 0 | BG108: =IF(N108="zákl. přenesená",J108,0) -> 0 | BH108: =IF(N108="sníž. přenesená",J108,0) -> 0 | BI108: =IF(N108="nulová",J108,0) -> 0 | BJ108: 1 | BK108: =ROUND(I108*H108,2) -> 0 | BL108: 16 | BM108: -611855086
D109: VV | F109: 6 | H109: 6 | AT109: VV | AU109: 2 | AV109: 2 | AW109: True | AX109: 1 | AY109: ROZPOCET
C110: 9 | D110: K | E110: 72223R03 | F110: Redukce mosaz 1"/3/4" | G110: kus | H110: 2 | J110: =ROUND(I110*H110,2) -> 0 | K110: vlastní | N110: základní | P110: =O110*H110 -> 0 | Q110: 0.00031 | R110: =Q110*H110 -> 0.00062 | S110: 0 | T110: =S110*H110 -> 0 | AR110: 16 | AT110: K | AU110: 2 | AY110: ROZPOCET | BE110: =IF(N110="základní",J110,0) -> 0 | BF110: =IF(N110="snížená",J110,0) -> 0 | BG110: =IF(N110="zákl. přenesená",J110,0) -> 0 | BH110: =IF(N110="sníž. přenesená",J110,0) -> 0 | BI110: =IF(N110="nulová",J110,0) -> 0 | BJ110: 1 | BK110: =ROUND(I110*H110,2) -> 0 | BL110: 16 | BM110: 82575931
D111: VV | F111: 2 | H111: 2 | AT111: VV | AU111: 2 | AV111: 2 | AW111: True | AX111: 1 | AY111: ROZPOCET
C112: 10 | D112: K | E112: 72223R04 | F112: Sada převlečných matic pro připojení vodoměru | G112: kus | H112: 1 | J112: =ROUND(I112*H112,2) -> 0 | K112: vlastní | N112: základní | P112: =O112*H112 -> 0 | Q112: 0.00031 | R112: =Q112*H112 -> 0.00031 | S112: 0 | T112: =S112*H112 -> 0 | AR112: 16 | AT112: K | AU112: 2 | AY112: ROZPOCET | BE112: =IF(N112="základní",J112,0) -> 0 | BF112: =IF(N112="snížená",J112,0) -> 0 | BG112: =IF(N112="zákl. přenesená",J112,0) -> 0 | BH112: =IF(N112="sníž. přenesená",J112,0) -> 0 | BI112: =IF(N112="nulová",J112,0) -> 0 | BJ112: 1 | BK112: =ROUND(I112*H112,2) -> 0 | BL112: 16 | BM112: -1894128334
D113: VV | F113: 1 | H113: 1 | AT113: VV | AU113: 2 | AV113: 2 | AW113: True | AX113: 1 | AY113: ROZPOCET
C114: 11 | D114: K | E114: 722232063 | F114: Kohout kulový přímý G 1 PN 42 do 185°C vnitřní závit s vypouštěním | G114: kus | H114: 1 | J114: =ROUND(I114*H114,2) -> 0 | K114: CS ÚRS 2017 01 | N114: základní | P114: =O114*H114 -> 0 | Q114: 0.00057 | R114: =Q114*H114 -> 0.00057 | S114: 0 | T114: =S114*H114 -> 0 | AR114: 16 | AT114: K | AU114: 2 | AY114: ROZPOCET | BE114: =IF(N114="základní",J114,0) -> 0 | BF114: =IF(N114="snížená",J114,0) -> 0 | BG114: =IF(N114="zákl. přenesená",J114,0) -> 0 | BH114: =IF(N114="sníž. přenesená",J114,0) -> 0 | BI114: =IF(N114="nulová",J114,0) -> 0 | BJ114: 1 | BK114: =ROUND(I114*H114,2) -> 0 | BL114: 16 | BM114: 1457672807
D115: VV | F115: 1 | H115: 1 | AT115: VV | AU115: 2 | AV115: 2 | AW115: True | AX115: 1 | AY115: ROZPOCET
C116: 12 | D116: K | E116: 722231074 | F116: Ventil zpětný G 1 PN 10 do 110°C se dvěma závity | G116: kus | H116: 1 | J116: =ROUND(I116*H116,2) -> 0 | K116: CS ÚRS 2017 01 | N116: základní | P116: =O116*H116 -> 0 | Q116: 0.00024 | R116: =Q116*H116 -> 0.00024 | S116: 0 | T116: =S116*H116 -> 0 | AR116: 16 | AT116: K | AU116: 2 | AY116: ROZPOCET | BE116: =IF(N116="základní",J116,0) -> 0 | BF116: =IF(N116="snížená",J116,0) -> 0 | BG116: =IF(N116="zákl. přenesená",J116,0) -> 0 | BH116: =IF(N116="sníž. přenesená",J116,0) -> 0 | BI116: =IF(N116="nulová",J116,0) -> 0 | BJ116: 1 | BK116: =ROUND(I116*H116,2) -> 0 | BL116: 16 | BM116: -1804906052
D117: VV | F117: 1 | H117: 1 | AT117: VV | AU117: 2 | AV117: 2 | AW117: True | AX117: 1 | AY117: ROZPOCET
C118: 13 | D118: K | E118: 8922300R2 | F118: Signalizační vodič CY6 | G118: m | H118: 22 | J118: =ROUND(I118*H118,2) -> 0 | K118: vlastní | N118: základní | P118: =O118*H118 -> 0 | Q118: 0 | R118: =Q118*H118 -> 0 | S118: 0 | T118: =S118*H118 -> 0 | AR118: 16 | AT118: K | AU118: 2 | AY118: ROZPOCET | BE118: =IF(N118="základní",J118,0) -> 0 | BF118: =IF(N118="snížená",J118,0) -> 0 | BG118: =IF(N118="zákl. přenesená",J118,0) -> 0 | BH118: =IF(N118="sníž. přenesená",J118,0) -> 0 | BI118: =IF(N118="nulová",J118,0) -> 0 | BJ118: 1 | BK118: =ROUND(I118*H118,2) -> 0 | BL118: 16 | BM118: 1504257681
D119: VV | F119: 22 | H119: 22 | AT119: VV | AU119: 2 | AV119: 2 | AW119: True | AX119: 1 | AY119: ROZPOCET
C120: 14 | D120: K | E120: 8922300R3 | F120: Výstražná folie š.300mm | G120: m | H120: 22 | J120: =ROUND(I120*H120,2) -> 0 | K120: vlastní | N120: základní | P120: =O120*H120 -> 0 | Q120: 0 | R120: =Q120*H120 -> 0 | S120: 0 | T120: =S120*H120 -> 0 | AR120: 16 | AT120: K | AU120: 2 | AY120: ROZPOCET | BE120: =IF(N120="základní",J120,0) -> 0 | BF120: =IF(N120="snížená",J120,0) -> 0 | BG120: =IF(N120="zákl. přenesená",J120,0) -> 0 | BH120: =IF(N120="sníž. přenesená",J120,0) -> 0 | BI120: =IF(N120="nulová",J120,0) -> 0 | BJ120: 1 | BK120: =ROUND(I120*H120,2) -> 0 | BL120: 16 | BM120: 1555892147
D121: VV | F121: 22 | H121: 22 | AT121: VV | AU121: 2 | AV121: 2 | AW121: True | AX121: 1 | AY121: ROZPOCET
C122: 15 | D122: K | E122: 998276101 | F122: Přesun hmot pro trubní vedení z trub z plastických hmot otevřený výkop | G122: t | H122: 0.012 | J122: =ROUND(I122*H122,2) -> 0 | K122: CS ÚRS 2017 01 | N122: základní | P122: =O122*H122 -> 0 | Q122: 0 | R122: =Q122*H122 -> 0 | S122: 0 | T122: =S122*H122 -> 0 | AR122: 4 | AT122: K | AU122: 2 | AY122: ROZPOCET | BE122: =IF(N122="základní",J122,0) -> 0 | BF122: =IF(N122="snížená",J122,0) -> 0 | BG122: =IF(N122="zákl. přenesená",J122,0) -> 0 | BH122: =IF(N122="sníž. přenesená",J122,0) -> 0 | BI122: =IF(N122="nulová",J122,0) -> 0 | BJ122: 1 | BK122: =ROUND(I122*H122,2) -> 0 | BL122: 4 | BM122: 1828990369
D123: VV | F123: 0,012 | H123: 0.012 | AT123: VV | AU123: 2 | AV123: 2 | AW123: True | AX123: 1 | AY123: ROZPOCET
D124: D | E124: PSV | F124: Práce a dodávky PSV | J124: =BK124 -> 0 | P124: =P125+P157+P195+P241 -> 0 | R124: =R125+R157+R195+R241 -> 0.43425 | T124: =T125+T157+T195+T241 -> 0 | AR124: 2 | AT124: D | AU124: 0 | AY124: ROZPOCET | BK124: =BK125+BK157+BK195+BK241 -> 0
D125: D | E125: 721 | F125: Zdravotechnika - vnitřní kanalizace | J125: =BK125 -> 0 | P125: =SUM(P126:P156) -> 0 | R125: =SUM(R126:R156) -> 0.1065 | T125: =SUM(T126:T156) -> 0 | AR125: 2 | AT125: D | AU125: 1 | AY125: ROZPOCET | BK125: =SUM(BK126:BK156) -> 0
C126: 16 | D126: K | E126: 721173402 | F126: Potrubí kanalizační plastové svodné systém KG DN 125 | G126: m | H126: 6 | J126: =ROUND(I126*H126,2) -> 0 | K126: CS ÚRS 2017 01 | N126: základní | P126: =O126*H126 -> 0 | Q126: 0.00177 | R126: =Q126*H126 -> 0.01062 | S126: 0 | T126: =S126*H126 -> 0 | AR126: 16 | AT126: K | AU126: 2 | AY126: ROZPOCET | BE126: =IF(N126="základní",J126,0) -> 0 | BF126: =IF(N126="snížená",J126,0) -> 0 | BG126: =IF(N126="zákl. přenesená",J126,0) -> 0 | BH126: =IF(N126="sníž. přenesená",J126,0) -> 0 | BI126: =IF(N126="nulová",J126,0) -> 0 | BJ126: 1 | BK126: =ROUND(I126*H126,2) -> 0 | BL126: 16 | BM126: -440785859
D127: VV | F127: 6 | H127: 6 | AT127: VV | AU127: 2 | AV127: 2 | AW127: True | AX127: 1 | AY127: ROZPOCET
C128: 17 | D128: K | E128: 721173403 | F128: Potrubí kanalizační plastové svodné systém KG DN 160 | G128: m | H128: 27 | J128: =ROUND(I128*H128,2) -> 0 | K128: CS ÚRS 2017 01 | N128: základní | P128: =O128*H128 -> 0 | Q128: 0.00277 | R128: =Q128*H128 -> 0.07479 | S128: 0 | T128: =S128*H128 -> 0 | AR128: 16 | AT128: K | AU128: 2 | AY128: ROZPOCET | BE128: =IF(N128="základní",J128,0) -> 0 | BF128: =IF(N128="snížená",J128,0) -> 0 | BG128: =IF(N128="zákl. přenesená",J128,0) -> 0 | BH128: =IF(N128="sníž. přenesená",J128,0) -> 0 | BI128: =IF(N128="nulová",J128,0) -> 0 | BJ128: 1 | BK128: =ROUND(I128*H128,2) -> 0 | BL128: 16 | BM128: 1897307317
D129: VV | F129: 27 | H129: 27 | AT129: VV | AU129: 2 | AV129: 2 | AW129: True | AX129: 1 | AY129: ROZPOCET
C130: 18 | D130: K | E130: 721174025 | F130: Potrubí kanalizační z PP odpadní systém HT DN 100 | G130: m | H130: 10 | J130: =ROUND(I130*H130,2) -> 0 | K130: CS ÚRS 2017 01 | N130: základní | P130: =O130*H130 -> 0 | Q130: 0.0012 | R130: =Q130*H130 -> 0.012 | S130: 0 | T130: =S130*H130 -> 0 | AR130: 16 | AT130: K | AU130: 2 | AY130: ROZPOCET | BE130: =IF(N130="základní",J130,0) -> 0 | BF130: =IF(N130="snížená",J130,0) -> 0 | BG130: =IF(N130="zákl. přenesená",J130,0) -> 0 | BH130: =IF(N130="sníž. přenesená",J130,0) -> 0 | BI130: =IF(N130="nulová",J130,0) -> 0 | BJ130: 1 | BK130: =ROUND(I130*H130,2) -> 0 | BL130: 16 | BM130: -1725582427
D131: VV | F131: 10 | H131: 10 | AT131: VV | AU131: 2 | AV131: 2 | AW131: True | AX131: 1 | AY131: ROZPOCET
C132: 19 | D132: K | E132: 721174042 | F132: Potrubí kanalizační z PP připojovací systém HT DN 40 | G132: m | H132: 9 | J132: =ROUND(I132*H132,2) -> 0 | K132: CS ÚRS 2017 01 | N132: základní | P132: =O132*H132 -> 0 | Q132: 0.00029 | R132: =Q132*H132 -> 0.00261 | S132: 0 | T132: =S132*H132 -> 0 | AR132: 16 | AT132: K | AU132: 2 | AY132: ROZPOCET | BE132: =IF(N132="základní",J132,0) -> 0 | BF132: =IF(N132="snížená",J132,0) -> 0 | BG132: =IF(N132="zákl. přenesená",J132,0) -> 0 | BH132: =IF(N132="sníž. přenesená",J132,0) -> 0 | BI132: =IF(N132="nulová",J132,0) -> 0 | BJ132: 1 | BK132: =ROUND(I132*H132,2) -> 0 | BL132: 16 | BM132: -2098297022
D133: VV | F133: 9 | H133: 9 | AT133: VV | AU133: 2 | AV133: 2 | AW133: True | AX133: 1 | AY133: ROZPOCET
C134: 20 | D134: K | E134: 721174043 | F134: Potrubí kanalizační z PP připojovací systém HT DN 50 | G134: m | H134: 13 | J134: =ROUND(I134*H134,2) -> 0 | K134: CS ÚRS 2017 01 | N134: základní | P134: =O134*H134 -> 0 | Q134: 0.00035 | R134: =Q134*H134 -> 0.00455 | S134: 0 | T134: =S134*H134 -> 0 | AR134: 16 | AT134: K | AU134: 2 | AY134: ROZPOCET | BE134: =IF(N134="základní",J134,0) -> 0 | BF134: =IF(N134="snížená",J134,0) -> 0 | BG134: =IF(N134="zákl. přenesená",J134,0) -> 0 | BH134: =IF(N134="sníž. přenesená",J134,0) -> 0 | BI134: =IF(N134="nulová",J134,0) -> 0 | BJ134: 1 | BK134: =ROUND(I134*H134,2) -> 0 | BL134: 16 | BM134: 652771930
D135: VV | F135: 13 | H135: 13 | AT135: VV | AU135: 2 | AV135: 2 | AW135: True | AX135: 1 | AY135: ROZPOCET
C136: 21 | D136: K | E136: 721194104 | F136: Vyvedení a upevnění odpadních výpustek DN 40 | G136: kus | H136: 5 | J136: =ROUND(I136*H136,2) -> 0 | K136: CS ÚRS 2017 01 | N136: základní | P136: =O136*H136 -> 0 | Q136: 0 | R136: =Q136*H136 -> 0 | S136: 0 | T136: =S136*H136 -> 0 | AR136: 16 | AT136: K | AU136: 2 | AY136: ROZPOCET | BE136: =IF(N136="základní",J136,0) -> 0 | BF136: =IF(N136="snížená",J136,0) -> 0 | BG136: =IF(N136="zákl. přenesená",J136,0) -> 0 | BH136: =IF(N136="sníž. přenesená",J136,0) -> 0 | BI136: =IF(N136="nulová",J136,0) -> 0 | BJ136: 1 | BK136: =ROUND(I136*H136,2) -> 0 | BL136: 16 | BM136: -1657768039
D137: VV | F137: 5 | H137: 5 | AT137: VV | AU137: 2 | AV137: 2 | AW137: True | AX137: 1 | AY137: ROZPOCET
C138: 22 | D138: K | E138: 721194105 | F138: Vyvedení a upevnění odpadních výpustek DN 50 | G138: kus | H138: 4 | J138: =ROUND(I138*H138,2) -> 0 | K138: CS ÚRS 2017 01 | N138: základní | P138: =O138*H138 -> 0 | Q138: 0 | R138: =Q138*H138 -> 0 | S138: 0 | T138: =S138*H138 -> 0 | AR138: 16 | AT138: K | AU138: 2 | AY138: ROZPOCET | BE138: =IF(N138="základní",J138,0) -> 0 | BF138: =IF(N138="snížená",J138,0) -> 0 | BG138: =IF(N138="zákl. přenesená",J138,0) -> 0 | BH138: =IF(N138="sníž. přenesená",J138,0) -> 0 | BI138: =IF(N138="nulová",J138,0) -> 0 | BJ138: 1 | BK138: =ROUND(I138*H138,2) -> 0 | BL138: 16 | BM138: -127124133
D139: VV | F139: 4 | H139: 4 | AT139: VV | AU139: 2 | AV139: 2 | AW139: True | AX139: 1 | AY139: ROZPOCET
C140: 23 | D140: K | E140: 721194109 | F140: Vyvedení a upevnění odpadních výpustek DN 100 | G140: kus | H140: 4 | J140: =ROUND(I140*H140,2) -> 0 | K140: CS ÚRS 2017 01 | N140: základní | P140: =O140*H140 -> 0 | Q140: 0 | R140: =Q140*H140 -> 0 | S140: 0 | T140: =S140*H140 -> 0 | AR140: 16 | AT140: K | AU140: 2 | AY140: ROZPOCET | BE140: =IF(N140="základní",J140,0) -> 0 | BF140: =IF(N140="snížená",J140,0) -> 0 | BG140: =IF(N140="zákl. přenesená",J140,0) -> 0 | BH140: =IF(N140="sníž. přenesená",J140,0) -> 0 | BI140: =IF(N140="nulová",J140,0) -> 0 | BJ140: 1 | BK140: =ROUND(I140*H140,2) -> 0 | BL140: 16 | BM140: 56279105
D141: VV | F141: 4 | H141: 4 | AT141: VV | AU141: 2 | AV141: 2 | AW141: True | AX141: 1 | AY141: ROZPOCET
C142: 24 | D142: K | E142: 721226514R | F142: Zápachová uzávěrka podomítková pro pračku a myčku DN 50, s výtokovým ventilem na hadici | G142: kus | H142: 2 | J142: =ROUND(I142*H142,2) -> 0 | K142: vlastní | N142: základní | P142: =O142*H142 -> 0 | Q142: 0.00022 | R142: =Q142*H142 -> 0.00044 | S142: 0 | T142: =S142*H142 -> 0 | AR142: 16 | AT142: K | AU142: 2 | AY142: ROZPOCET | BE142: =IF(N142="základní",J142,0) -> 0 | BF142: =IF(N142="snížená",J142,0) -> 0 | BG142: =IF(N142="zákl. přenesená",J142,0) -> 0 | BH142: =IF(N142="sníž. přenesená",J142,0) -> 0 | BI142: =IF(N142="nulová",J142,0) -> 0 | BJ142: 1 | BK142: =ROUND(I142*H142,2) -> 0 | BL142: 16 | BM142: 213150732
D143: VV | F143: 2 | H143: 2 | AT143: VV | AU143: 2 | AV143: 2 | AW143: True | AX143: 1 | AY143: ROZPOCET
C144: 25 | D144: K | E144: 721226515R | F144: Úkapový kalich DN32 se zápachovou uzávěrkou a mechanickou uzávěrkou pro suchý stav | G144: kus | H144: 1 | J144: =ROUND(I144*H144,2) -> 0 | K144: vlastní | N144: základní | P144: =O144*H144 -> 0 | Q144: 0.00102 | R144: =Q144*H144 -> 0.00102 | S144: 0 | T144: =S144*H144 -> 0 | AR144: 16 | AT144: K | AU144: 2 | AY144: ROZPOCET | BE144: =IF(N144="základní",J144,0) -> 0 | BF144: =IF(N144="snížená",J144,0) -> 0 | BG144: =IF(N144="zákl. přenesená",J144,0) -> 0 | BH144: =IF(N144="sníž. přenesená",J144,0) -> 0 | BI144: =IF(N144="nulová",J144,0) -> 0 | BJ144: 1 | BK144: =ROUND(I144*H144,2) -> 0 | BL144: 16 | BM144: 768688565
D145: VV | F145: 1 | H145: 1 | AT145: VV | AU145: 2 | AV145: 2 | AW145: True | AX145: 1 | AY145: ROZPOCET
C146: 26 | D146: K | E146: 721273153 | F146: Hlavice ventilační polypropylen PP DN 110 | G146: kus | H146: 1 | J146: =ROUND(I146*H146,2) -> 0 | K146: CS ÚRS 2017 01 | N146: základní | P146: =O146*H146 -> 0 | Q146: 0.00029 | R146: =Q146*H146 -> 0.00029 | S146: 0 | T146: =S146*H146 -> 0 | AR146: 16 | AT146: K | AU146: 2 | AY146: ROZPOCET | BE146: =IF(N146="základní",J146,0) -> 0 | BF146: =IF(N146="snížená",J146,0) -> 0 | BG146: =IF(N146="zákl. přenesená",J146,0) -> 0 | BH146: =IF(N146="sníž. přenesená",J146,0) -> 0 | BI146: =IF(N146="nulová",J146,0) -> 0 | BJ146: 1 | BK146: =ROUND(I146*H146,2) -> 0 | BL146: 16 | BM146: 1349304622
D147: VV | F147: 1 | H147: 1 | AT147: VV | AU147: 2 | AV147: 2 | AW147: True | AX147: 1 | AY147: ROZPOCET
C148: 27 | D148: K | E148: 721274125R | F148: Přivzdušňovací ventil podomítkový vnitřní odpadních potrubí DN 110 | G148: kus | H148: 1 | J148: =ROUND(I148*H148,2) -> 0 | K148: vlastní | N148: základní | P148: =O148*H148 -> 0 | Q148: 0.00018 | R148: =Q148*H148 -> 0.00018 | S148: 0 | T148: =S148*H148 -> 0 | AR148: 16 | AT148: K | AU148: 2 | AY148: ROZPOCET | BE148: =IF(N148="základní",J148,0) -> 0 | BF148: =IF(N148="snížená",J148,0) -> 0 | BG148: =IF(N148="zákl. přenesená",J148,0) -> 0 | BH148: =IF(N148="sníž. přenesená",J148,0) -> 0 | BI148: =IF(N148="nulová",J148,0) -> 0 | BJ148: 1 | BK148: =ROUND(I148*H148,2) -> 0 | BL148: 16 | BM148: -989490140
D149: VV | F149: 1 | H149: 1 | AT149: VV | AU149: 2 | AV149: 2 | AW149: True | AX149: 1 | AY149: ROZPOCET
C150: 28 | D150: K | E150: 721290111 | F150: Zkouška těsnosti potrubí kanalizace vodou do DN 125 | G150: m | H150: 6 | J150: =ROUND(I150*H150,2) -> 0 | K150: CS ÚRS 2017 01 | N150: základní | P150: =O150*H150 -> 0 | Q150: 0 | R150: =Q150*H150 -> 0 | S150: 0 | T150: =S150*H150 -> 0 | AR150: 16 | AT150: K | AU150: 2 | AY150: ROZPOCET | BE150: =IF(N150="základní",J150,0) -> 0 | BF150: =IF(N150="snížená",J150,0) -> 0 | BG150: =IF(N150="zákl. přenesená",J150,0) -> 0 | BH150: =IF(N150="sníž. přenesená",J150,0) -> 0 | BI150: =IF(N150="nulová",J150,0) -> 0 | BJ150: 1 | BK150: =ROUND(I150*H150,2) -> 0 | BL150: 16 | BM150: -1654842146
D151: VV | F151: 6 | H151: 6 | AT151: VV | AU151: 2 | AV151: 2 | AW151: True | AX151: 1 | AY151: ROZPOCET
C152: 29 | D152: K | E152: 721290112 | F152: Zkouška těsnosti potrubí kanalizace vodou do DN 200 | G152: m | H152: 27 | J152: =ROUND(I152*H152,2) -> 0 | K152: CS ÚRS 2017 01 | N152: základní | P152: =O152*H152 -> 0 | Q152: 0 | R152: =Q152*H152 -> 0 | S152: 0 | T152: =S152*H152 -> 0 | AR152: 16 | AT152: K | AU152: 2 | AY152: ROZPOCET | BE152: =IF(N152="základní",J152,0) -> 0 | BF152: =IF(N152="snížená",J152,0) -> 0 | BG152: =IF(N152="zákl. přenesená",J152,0) -> 0 | BH152: =IF(N152="sníž. přenesená",J152,0) -> 0 | BI152: =IF(N152="nulová",J152,0) -> 0 | BJ152: 1 | BK152: =ROUND(I152*H152,2) -> 0 | BL152: 16 | BM152: -672174658
D153: VV | F153: 27 | H153: 27 | AT153: VV | AU153: 2 | AV153: 2 | AW153: True | AX153: 1 | AY153: ROZPOCET
C154: 30 | D154: K | E154: 721290123 | F154: Zkouška těsnosti potrubí kanalizace kouřem do DN 300 | G154: m | H154: 32 | J154: =ROUND(I154*H154,2) -> 0 | K154: CS ÚRS 2017 01 | N154: základní | P154: =O154*H154 -> 0 | Q154: 0 | R154: =Q154*H154 -> 0 | S154: 0 | T154: =S154*H154 -> 0 | AR154: 16 | AT154: K | AU154: 2 | AY154: ROZPOCET | BE154: =IF(N154="základní",J154,0) -> 0 | BF154: =IF(N154="snížená",J154,0) -> 0 | BG154: =IF(N154="zákl. přenesená",J154,0) -> 0 | BH154: =IF(N154="sníž. přenesená",J154,0) -> 0 | BI154: =IF(N154="nulová",J154,0) -> 0 | BJ154: 1 | BK154: =ROUND(I154*H154,2) -> 0 | BL154: 16 | BM154: -1942573436
D155: VV | F155: 32 | H155: 32 | AT155: VV | AU155: 2 | AV155: 2 | AW155: True | AX155: 1 | AY155: ROZPOCET
C156: 31 | D156: K | E156: 998721101 | F156: Přesun hmot tonážní pro vnitřní kanalizace v objektech v do 6 m | G156: t | H156: 0.107 | J156: =ROUND(I156*H156,2) -> 0 | K156: CS ÚRS 2017 01 | N156: základní | P156: =O156*H156 -> 0 | Q156: 0 | R156: =Q156*H156 -> 0 | S156: 0 | T156: =S156*H156 -> 0 | AR156: 16 | AT156: K | AU156: 2 | AY156: ROZPOCET | BE156: =IF(N156="základní",J156,0) -> 0 | BF156: =IF(N156="snížená",J156,0) -> 0 | BG156: =IF(N156="zákl. přenesená",J156,0) -> 0 | BH156: =IF(N156="sníž. přenesená",J156,0) -> 0 | BI156: =IF(N156="nulová",J156,0) -> 0 | BJ156: 1 | BK156: =ROUND(I156*H156,2) -> 0 | BL156: 16 | BM156: -1176555096
D157: D | E157: 722 | F157: Zdravotechnika - vnitřní vodovod | J157: =BK157 -> 0 | P157: =SUM(P158:P194) -> 0 | R157: =SUM(R158:R194) -> 0.06004 | T157: =SUM(T158:T194) -> 0 | AR157: 2 | AT157: D | AU157: 1 | AY157: ROZPOCET | BK157: =SUM(BK158:BK194) -> 0
C158: 32 | D158: K | E158: 722174001 | F158: Potrubí vodovodní plastové PPR svar polyfuze PN 16 D 16 x 2,2 mm | G158: m | H158: 9 | J158: =ROUND(I158*H158,2) -> 0 | K158: CS ÚRS 2017 01 | N158: základní | P158: =O158*H158 -> 0 | Q158: 0.0004 | R158: =Q158*H158 -> 0.0036 | S158: 0 | T158: =S158*H158 -> 0 | AR158: 16 | AT158: K | AU158: 2 | AY158: ROZPOCET | BE158: =IF(N158="základní",J158,0) -> 0 | BF158: =IF(N158="snížená",J158,0) -> 0 | BG158: =IF(N158="zákl. přenesená",J158,0) -> 0 | BH158: =IF(N158="sníž. přenesená",J158,0) -> 0 | BI158: =IF(N158="nulová",J158,0) -> 0 | BJ158: 1 | BK158: =ROUND(I158*H158,2) -> 0 | BL158: 16 | BM158: -1356945991
D159: VV | F159: 9 | H159: 9 | AT159: VV | AU159: 2 | AV159: 2 | AW159: True | AX159: 1 | AY159: ROZPOCET
C160: 33 | D160: K | E160: 722174002 | F160: Potrubí vodovodní plastové PPR svar polyfuze PN 16 D 20 x 2,8 mm | G160: m | H160: 23 | J160: =ROUND(I160*H160,2) -> 0 | K160: CS ÚRS 2017 01 | N160: základní | P160: =O160*H160 -> 0 | Q160: 0.00066 | R160: =Q160*H160 -> 0.01518 | S160: 0 | T160: =S160*H160 -> 0 | AR160: 16 | AT160: K | AU160: 2 | AY160: ROZPOCET | BE160: =IF(N160="základní",J160,0) -> 0 | BF160: =IF(N160="snížená",J160,0) -> 0 | BG160: =IF(N160="zákl. přenesená",J160,0) -> 0 | BH160: =IF(N160="sníž. přenesená",J160,0) -> 0 | BI160: =IF(N160="nulová",J160,0) -> 0 | BJ160: 1 | BK160: =ROUND(I160*H160,2) -> 0 | BL160: 16 | BM160: 1095319152
D161: VV | F161: 23 | H161: 23 | AT161: VV | AU161: 2 | AV161: 2 | AW161: True | AX161: 1 | AY161: ROZPOCET
C162: 34 | D162: K | E162: 722174003 | F162: Potrubí vodovodní plastové PPR svar polyfuze PN 16 D 25 x 3,5 mm | G162: m | H162: 15 | J162: =ROUND(I162*H162,2) -> 0 | K162: CS ÚRS 2017 01 | N162: základní | P162: =O162*H162 -> 0 | Q162: 0.00091 | R162: =Q162*H162 -> 0.01365 | S162: 0 | T162: =S162*H162 -> 0 | AR162: 16 | AT162: K | AU162: 2 | AY162: ROZPOCET | BE162: =IF(N162="základní",J162,0) -> 0 | BF162: =IF(N162="snížená",J162,0) -> 0 | BG162: =IF(N162="zákl. přenesená",J162,0) -> 0 | BH162: =IF(N162="sníž. přenesená",J162,0) -> 0 | BI162: =IF(N162="nulová",J162,0) -> 0 | BJ162: 1 | BK162: =ROUND(I162*H162,2) -> 0 | BL162: 16 | BM162: -410938904
D163: VV | F163: 15 | H163: 15 | AT163: VV | AU163: 2 | AV163: 2 | AW163: True | AX163: 1 | AY163: ROZPOCET
C164: 35 | D164: K | E164: 722174004 | F164: Potrubí vodovodní plastové PPR svar polyfuze PN 16 D 32 x 4,4 mm | G164: m | H164: 7 | J164: =ROUND(I164*H164,2) -> 0 | K164: CS ÚRS 2017 01 | N164: základní | P164: =O164*H164 -> 0 | Q164: 0.00119 | R164: =Q164*H164 -> 0.00833 | S164: 0 | T164: =S164*H164 -> 0 | AR164: 16 | AT164: K | AU164: 2 | AY164: ROZPOCET | BE164: =IF(N164="základní",J164,0) -> 0 | BF164: =IF(N164="snížená",J164,0) -> 0 | BG164: =IF(N164="zákl. přenesená",J164,0) -> 0 | BH164: =IF(N164="sníž. přenesená",J164,0) -> 0 | BI164: =IF(N164="nulová",J164,0) -> 0 | BJ164: 1 | BK164: =ROUND(I164*H164,2) -> 0 | BL164: 16 | BM164: -1368321909
D165: VV | F165: 7 | H165: 7 | AT165: VV | AU165: 2 | AV165: 2 | AW165: True | AX165: 1 | AY165: ROZPOCET
C166: 36 | D166: K | E166: 722181231 | F166: Ochrana vodovodního potrubí přilepenými termoizolačními trubicemi z PE tl do 13 mm DN do 22 mm | G166: m | H166: 32 | J166: =ROUND(I166*H166,2) -> 0 | K166: CS ÚRS 2017 01 | N166: základní | P166: =O166*H166 -> 0 | Q166: 7e-05 | R166: =Q166*H166 -> 0.00224 | S166: 0 | T166: =S166*H166 -> 0 | AR166: 16 | AT166: K | AU166: 2 | AY166: ROZPOCET | BE166: =IF(N166="základní",J166,0) -> 0 | BF166: =IF(N166="snížená",J166,0) -> 0 | BG166: =IF(N166="zákl. přenesená",J166,0) -> 0 | BH166: =IF(N166="sníž. přenesená",J166,0) -> 0 | BI166: =IF(N166="nulová",J166,0) -> 0 | BJ166: 1 | BK166: =ROUND(I166*H166,2) -> 0 | BL166: 16 | BM166: -515143037
D167: VV | F167: 9+23 | H167: 32 | AT167: VV | AU167: 2 | AV167: 2 | AW167: True | AX167: 1 | AY167: ROZPOCET
C168: 37 | D168: K | E168: 722181232 | F168: Ochrana vodovodního potrubí přilepenými termoizolačními trubicemi z PE tl do 13 mm DN do 45 mm | G168: m | H168: 22 | J168: =ROUND(I168*H168,2) -> 0 | K168: CS ÚRS 2017 01 | N168: základní | P168: =O168*H168 -> 0 | Q168: 9e-05 | R168: =Q168*H168 -> 0.00198 | S168: 0 | T168: =S168*H168 -> 0 | AR168: 16 | AT168: K | AU168: 2 | AY168: ROZPOCET | BE168: =IF(N168="základní",J168,0) -> 0 | BF168: =IF(N168="snížená",J168,0) -> 0 | BG168: =IF(N168="zákl. přenesená",J168,0) -> 0 | BH168: =IF(N168="sníž. přenesená",J168,0) -> 0 | BI168: =IF(N168="nulová",J168,0) -> 0 | BJ168: 1 | BK168: =ROUND(I168*H168,2) -> 0 | BL168: 16 | BM168: -3123164
D169: VV | F169: 15+7 | H169: 22 | AT169: VV | AU169: 2 | AV169: 2 | AW169: True | AX169: 1 | AY169: ROZPOCET
C170: 38 | D170: K | E170: 722190401 | F170: Vyvedení a upevnění výpustku do DN 25 | G170: kus | H170: 20 | J170: =ROUND(I170*H170,2) -> 0 | K170: CS ÚRS 2017 01 | N170: základní | P170: =O170*H170 -> 0 | Q170: 0 | R170: =Q170*H170 -> 0 | S170: 0 | T170: =S170*H170 -> 0 | AR170: 16 | AT170: K | AU170: 2 | AY170: ROZPOCET | BE170: =IF(N170="základní",J170,0) -> 0 | BF170: =IF(N170="snížená",J170,0) -> 0 | BG170: =IF(N170="zákl. přenesená",J170,0) -> 0 | BH170: =IF(N170="sníž. přenesená",J170,0) -> 0 | BI170: =IF(N170="nulová",J170,0) -> 0 | BJ170: 1 | BK170: =ROUND(I170*H170,2) -> 0 | BL170: 16 | BM170: -1309938819
D171: VV | F171: 20 | H171: 20 | AT171: VV | AU171: 2 | AV171: 2 | AW171: True | AX171: 1 | AY171: ROZPOCET
C172: 39 | D172: K | E172: 722224115 | F172: Kohout plnicí nebo vypouštěcí G 1/2 PN 10 s jedním závitem | G172: kus | H172: 1 | J172: =ROUND(I172*H172,2) -> 0 | K172: CS ÚRS 2017 01 | N172: základní | P172: =O172*H172 -> 0 | Q172: 0.00022 | R172: =Q172*H172 -> 0.00022 | S172: 0 | T172: =S172*H172 -> 0 | AR172: 16 | AT172: K | AU172: 2 | AY172: ROZPOCET | BE172: =IF(N172="základní",J172,0) -> 0 | BF172: =IF(N172="snížená",J172,0) -> 0 | BG172: =IF(N172="zákl. přenesená",J172,0) -> 0 | BH172: =IF(N172="sníž. přenesená",J172,0) -> 0 | BI172: =IF(N172="nulová",J172,0) -> 0 | BJ172: 1 | BK172: =ROUND(I172*H172,2) -> 0 | BL172: 16 | BM172: -1619612407
D173: VV | F173: 1 | H173: 1 | AT173: VV | AU173: 2 | AV173: 2 | AW173: True | AX173: 1 | AY173: ROZPOCET
C174: 40 | D174: K | E174: 722231073 | F174: Ventil zpětný G 3/4 PN 10 do 110°C se dvěma závity | G174: kus | H174: 1 | J174: =ROUND(I174*H174,2) -> 0 | K174: CS ÚRS 2017 01 | N174: základní | P174: =O174*H174 -> 0 | Q174: 0.00017 | R174: =Q174*H174 -> 0.00017 | S174: 0 | T174: =S174*H174 -> 0 | AR174: 16 | AT174: K | AU174: 2 | AY174: ROZPOCET | BE174: =IF(N174="základní",J174,0) -> 0 | BF174: =IF(N174="snížená",J174,0) -> 0 | BG174: =IF(N174="zákl. přenesená",J174,0) -> 0 | BH174: =IF(N174="sníž. přenesená",J174,0) -> 0 | BI174: =IF(N174="nulová",J174,0) -> 0 | BJ174: 1 | BK174: =ROUND(I174*H174,2) -> 0 | BL174: 16 | BM174: -1499251917
D175: VV | F175: 1 | H175: 1 | AT175: VV | AU175: 2 | AV175: 2 | AW175: True | AX175: 1 | AY175: ROZPOCET
C176: 41 | D176: K | E176: 722231221 | F176: Ventil pojistný mosazný G 1/2 PN 6 do 100°C k bojleru s vnitřním x vnějším závitem | G176: kus | H176: 1 | J176: =ROUND(I176*H176,2) -> 0 | K176: CS ÚRS 2017 01 | N176: základní | P176: =O176*H176 -> 0 | Q176: 3e-05 | R176: =Q176*H176 -> 3e-05 | S176: 0 | T176: =S176*H176 -> 0 | AR176: 16 | AT176: K | AU176: 2 | AY176: ROZPOCET | BE176: =IF(N176="základní",J176,0) -> 0 | BF176: =IF(N176="snížená",J176,0) -> 0 | BG176: =IF(N176="zákl. přenesená",J176,0) -> 0 | BH176: =IF(N176="sníž. přenesená",J176,0) -> 0 | BI176: =IF(N176="nulová",J176,0) -> 0 | BJ176: 1 | BK176: =ROUND(I176*H176,2) -> 0 | BL176: 16 | BM176: 486030716
D177: VV | F177: 1 | H177: 1 | AT177: VV | AU177: 2 | AV177: 2 | AW177: True | AX177: 1 | AY177: ROZPOCET
C178: 42 | D178: K | E178: 722232044 | F178: Kohout kulový přímý G 3/4 PN 42 do 185°C vnitřní závit | G178: kus | H178: 2 | J178: =ROUND(I178*H178,2) -> 0 | K178: CS ÚRS 2017 01 | N178: základní | P178: =O178*H178 -> 0 | Q178: 0.00034 | R178: =Q178*H178 -> 0.00068 | S178: 0 | T178: =S178*H178 -> 0 | AR178: 16 | AT178: K | AU178: 2 | AY178: ROZPOCET | BE178: =IF(N178="základní",J178,0) -> 0 | BF178: =IF(N178="snížená",J178,0) -> 0 | BG178: =IF(N178="zákl. přenesená",J178,0) -> 0 | BH178: =IF(N178="sníž. přenesená",J178,0) -> 0 | BI178: =IF(N178="nulová",J178,0) -> 0 | BJ178: 1 | BK178: =ROUND(I178*H178,2) -> 0 | BL178: 16 | BM178: 69426423
D179: VV | F179: 2 | H179: 2 | AT179: VV | AU179: 2 | AV179: 2 | AW179: True | AX179: 1 | AY179: ROZPOCET
C180: 43 | D180: K | E180: 722239101 | F180: Montáž armatur vodovodních se dvěma závity G 1/2 | G180: kus | H180: 7 | J180: =ROUND(I180*H180,2) -> 0 | K180: CS ÚRS 2017 01 | N180: základní | P180: =O180*H180 -> 0 | Q180: 2e-05 | R180: =Q180*H180 -> 0.00014 | S180: 0 | T180: =S180*H180 -> 0 | AR180: 16 | AT180: K | AU180: 2 | AY180: ROZPOCET | BE180: =IF(N180="základní",J180,0) -> 0 | BF180: =IF(N180="snížená",J180,0) -> 0 | BG180: =IF(N180="zákl. přenesená",J180,0) -> 0 | BH180: =IF(N180="sníž. přenesená",J180,0) -> 0 | BI180: =IF(N180="nulová",J180,0) -> 0 | BJ180: 1 | BK180: =ROUND(I180*H180,2) -> 0 | BL180: 16 | BM180: 2044127911
D181: VV | F181: 7 | H181: 7 | AT181: VV | AU181: 2 | AV181: 2 | AW181: True | AX181: 1 | AY181: ROZPOCET
C182: 44 | D182: M | E182: 551119920R | F182: ventil rohový 1/2" x 3/8" | G182: kus | H182: 5 | J182: =ROUND(I182*H182,2) -> 0 | K182: vlastní | N182: základní | P182: =O182*H182 -> 0 | Q182: 0.00017 | R182: =Q182*H182 -> 0.00085 | S182: 0 | T182: =S182*H182 -> 0 | AR182: 32 | AT182: M | AU182: 2 | AY182: ROZPOCET | BE182: =IF(N182="základní",J182,0) -> 0 | BF182: =IF(N182="snížená",J182,0) -> 0 | BG182: =IF(N182="zákl. přenesená",J182,0) -> 0 | BH182: =IF(N182="sníž. přenesená",J182,0) -> 0 | BI182: =IF(N182="nulová",J182,0) -> 0 | BJ182: 1 | BK182: =ROUND(I182*H182,2) -> 0 | BL182: 16 | BM182: 673121834
D183: VV | F183: 5 | H183: 5 | AT183: VV | AU183: 2 | AV183: 2 | AW183: True | AX183: 1 | AY183: ROZPOCET
C184: 45 | D184: M | E184: 551119840R | F184: baterie nástěnná páková na jednu vodu DN15 1/2" | G184: kus | H184: 2 | J184: =ROUND(I184*H184,2) -> 0 | K184: vlastní | N184: základní | P184: =O184*H184 -> 0 | Q184: 0.001 | R184: =Q184*H184 -> 0.002 | S184: 0 | T184: =S184*H184 -> 0 | AR184: 32 | AT184: M | AU184: 2 | AY184: ROZPOCET | BE184: =IF(N184="základní",J184,0) -> 0 | BF184: =IF(N184="snížená",J184,0) -> 0 | BG184: =IF(N184="zákl. přenesená",J184,0) -> 0 | BH184: =IF(N184="sníž. přenesená",J184,0) -> 0 | BI184: =IF(N184="nulová",J184,0) -> 0 | BJ184: 1 | BK184: =ROUND(I184*H184,2) -> 0 | BL184: 16 | BM184: -911713454
D185: VV | F185: 2 | H185: 2 | AT185: VV | AU185: 2 | AV185: 2 | AW185: True | AX185: 1 | AY185: ROZPOCET
C186: 46 | D186: K | E186: 734209124 | F186: Montáž armatury závitové s třemi závity G 3/4 | G186: kus | H186: 1 | J186: =ROUND(I186*H186,2) -> 0 | K186: CS ÚRS 2017 01 | N186: základní | P186: =O186*H186 -> 0 | Q186: 0.00016 | R186: =Q186*H186 -> 0.00016 | S186: 0 | T186: =S186*H186 -> 0 | AR186: 16 | AT186: K | AU186: 2 | AY186: ROZPOCET | BE186: =IF(N186="základní",J186,0) -> 0 | BF186: =IF(N186="snížená",J186,0) -> 0 | BG186: =IF(N186="zákl. přenesená",J186,0) -> 0 | BH186: =IF(N186="sníž. přenesená",J186,0) -> 0 | BI186: =IF(N186="nulová",J186,0) -> 0 | BJ186: 1 | BK186: =ROUND(I186*H186,2) -> 0 | BL186: 16 | BM186: 2118659409
D187: VV | F187: 1 | H187: 1 | AT187: VV | AU187: 2 | AV187: 2 | AW187: True | AX187: 1 | AY187: ROZPOCET
C188: 47 | D188: M | E188: 551119811R | F188: Termostatický směšovací ventil pro pitnou vodu G 3/4" | G188: kus | H188: 1 | J188: =ROUND(I188*H188,2) -> 0 | K188: vlastní | N188: základní | P188: =O188*H188 -> 0 | Q188: 1e-05 | R188: =Q188*H188 -> 1e-05 | S188: 0 | T188: =S188*H188 -> 0 | AR188: 32 | AT188: M | AU188: 2 | AY188: ROZPOCET | BE188: =IF(N188="základní",J188,0) -> 0 | BF188: =IF(N188="snížená",J188,0) -> 0 | BG188: =IF(N188="zákl. přenesená",J188,0) -> 0 | BH188: =IF(N188="sníž. přenesená",J188,0) -> 0 | BI188: =IF(N188="nulová",J188,0) -> 0 | BJ188: 1 | BK188: =ROUND(I188*H188,2) -> 0 | BL188: 16 | BM188: 665936686
D189: VV | F189: 1 | H189: 1 | AT189: VV | AU189: 2 | AV189: 2 | AW189: True | AX189: 1 | AY189: ROZPOCET
C190: 48 | D190: K | E190: 722290226R | F190: Zkouška těsnosti vodovodního potrubí do DN 50 | G190: m | H190: 54 | J190: =ROUND(I190*H190,2) -> 0 | K190: vlastní | N190: základní | P190: =O190*H190 -> 0 | Q190: 0.00019 | R190: =Q190*H190 -> 0.01026 | S190: 0 | T190: =S190*H190 -> 0 | AR190: 16 | AT190: K | AU190: 2 | AY190: ROZPOCET | BE190: =IF(N190="základní",J190,0) -> 0 | BF190: =IF(N190="snížená",J190,0) -> 0 | BG190: =IF(N190="zákl. přenesená",J190,0) -> 0 | BH190: =IF(N190="sníž. přenesená",J190,0) -> 0 | BI190: =IF(N190="nulová",J190,0) -> 0 | BJ190: 1 | BK190: =ROUND(I190*H190,2) -> 0 | BL190: 16 | BM190: -594456897
D191: VV | F191: 9+23+15+7 | H191: 54 | AT191: VV | AU191: 2 | AV191: 2 | AW191: True | AX191: 1 | AY191: ROZPOCET
C192: 49 | D192: K | E192: 722290234 | F192: Proplach a dezinfekce vodovodního potrubí do DN 80 | G192: m | H192: 54 | J192: =ROUND(I192*H192,2) -> 0 | K192: CS ÚRS 2017 01 | N192: základní | P192: =O192*H192 -> 0 | Q192: 1e-05 | R192: =Q192*H192 -> 0.00054 | S192: 0 | T192: =S192*H192 -> 0 | AR192: 16 | AT192: K | AU192: 2 | AY192: ROZPOCET | BE192: =IF(N192="základní",J192,0) -> 0 | BF192: =IF(N192="snížená",J192,0) -> 0 | BG192: =IF(N192="zákl. přenesená",J192,0) -> 0 | BH192: =IF(N192="sníž. přenesená",J192,0) -> 0 | BI192: =IF(N192="nulová",J192,0) -> 0 | BJ192: 1 | BK192: =ROUND(I192*H192,2) -> 0 | BL192: 16 | BM192: 201776931
D193: VV | F193: 9+23+15+7 | H193: 54 | AT193: VV | AU193: 2 | AV193: 2 | AW193: True | AX193: 1 | AY193: ROZPOCET
C194: 50 | D194: K | E194: 998722101 | F194: Přesun hmot tonážní pro vnitřní vodovod v objektech v do 6 m | G194: t | H194: 0.06 | J194: =ROUND(I194*H194,2) -> 0 | K194: CS ÚRS 2017 01 | N194: základní | P194: =O194*H194 -> 0 | Q194: 0 | R194: =Q194*H194 -> 0 | S194: 0 | T194: =S194*H194 -> 0 | AR194: 16 | AT194: K | AU194: 2 | AY194: ROZPOCET | BE194: =IF(N194="základní",J194,0) -> 0 | BF194: =IF(N194="snížená",J194,0) -> 0 | BG194: =IF(N194="zákl. přenesená",J194,0) -> 0 | BH194: =IF(N194="sníž. přenesená",J194,0) -> 0 | BI194: =IF(N194="nulová",J194,0) -> 0 | BJ194: 1 | BK194: =ROUND(I194*H194,2) -> 0 | BL194: 16 | BM194: -597546607
D195: D | E195: 725 | F195: Zdravotechnika - zařizovací předměty | J195: =BK195 -> 0 | P195: =SUM(P196:P240) -> 0 | R195: =SUM(R196:R240) -> 0.21176 | T195: =SUM(T196:T240) -> 0 | AR195: 2 | AT195: D | AU195: 1 | AY195: ROZPOCET | BK195: =SUM(BK196:BK240) -> 0
C196: 51 | D196: K | E196: 725119125 | F196: Montáž klozetových mís závěsných na nosné stěny | G196: kus | H196: 3 | J196: =ROUND(I196*H196,2) -> 0 | K196: CS ÚRS 2017 01 | N196: základní | P196: =O196*H196 -> 0 | Q196: 0.00242 | R196: =Q196*H196 -> 0.00726 | S196: 0 | T196: =S196*H196 -> 0 | AR196: 16 | AT196: K | AU196: 2 | AY196: ROZPOCET | BE196: =IF(N196="základní",J196,0) -> 0 | BF196: =IF(N196="snížená",J196,0) -> 0 | BG196: =IF(N196="zákl. přenesená",J196,0) -> 0 | BH196: =IF(N196="sníž. přenesená",J196,0) -> 0 | BI196: =IF(N196="nulová",J196,0) -> 0 | BJ196: 1 | BK196: =ROUND(I196*H196,2) -> 0 | BL196: 16 | BM196: -1079368746
D197: VV | F197: 3 | H197: 3 | AT197: VV | AU197: 2 | AV197: 2 | AW197: True | AX197: 1 | AY197: ROZPOCET
C198: 52 | D198: K | E198: 725112016R | F198: Klozet keramický dětský závěsný s hlubokým splachováním odpad vodorovný, včetně sedátka | G198: soubor | H198: 2 | J198: =ROUND(I198*H198,2) -> 0 | K198: vlastní | N198: základní | P198: =O198*H198 -> 0 | Q198: 0.01023 | R198: =Q198*H198 -> 0.02046 | S198: 0 | T198: =S198*H198 -> 0 | AR198: 16 | AT198: K | AU198: 2 | AY198: ROZPOCET | BE198: =IF(N198="základní",J198,0) -> 0 | BF198: =IF(N198="snížená",J198,0) -> 0 | BG198: =IF(N198="zákl. přenesená",J198,0) -> 0 | BH198: =IF(N198="sníž. přenesená",J198,0) -> 0 | BI198: =IF(N198="nulová",J198,0) -> 0 | BJ198: 1 | BK198: =ROUND(I198*H198,2) -> 0 | BL198: 16 | BM198: 1370113315
D199: VV | F199: 2 | H199: 2 | AT199: VV | AU199: 2 | AV199: 2 | AW199: True | AX199: 1 | AY199: ROZPOCET
C200: 53 | D200: K | E200: 725112022 | F200: Klozet keramický závěsný na nosné stěny s hlubokým splachováním odpad vodorovný, včetně sedátka | G200: soubor | H200: 1 | J200: =ROUND(I200*H200,2) -> 0 | K200: CS ÚRS 2017 01 | N200: základní | P200: =O200*H200 -> 0 | Q200: 0.01692 | R200: =Q200*H200 -> 0.01692 | S200: 0 | T200: =S200*H200 -> 0 | AR200: 16 | AT200: K | AU200: 2 | AY200: ROZPOCET | BE200: =IF(N200="základní",J200,0) -> 0 | BF200: =IF(N200="snížená",J200,0) -> 0 | BG200: =IF(N200="zákl. přenesená",J200,0) -> 0 | BH200: =IF(N200="sníž. přenesená",J200,0) -> 0 | BI200: =IF(N200="nulová",J200,0) -> 0 | BJ200: 1 | BK200: =ROUND(I200*H200,2) -> 0 | BL200: 16 | BM200: 1107984733
D201: VV | F201: 1 | H201: 1 | AT201: VV | AU201: 2 | AV201: 2 | AW201: True | AX201: 1 | AY201: ROZPOCET
C202: 54 | D202: K | E202: 725219102 | F202: Montáž umyvadla připevněného na šrouby do zdiva | G202: soubor | H202: 4 | J202: =ROUND(I202*H202,2) -> 0 | K202: CS ÚRS 2017 01 | N202: základní | P202: =O202*H202 -> 0 | Q202: 0.00186 | R202: =Q202*H202 -> 0.00744 | S202: 0 | T202: =S202*H202 -> 0 | AR202: 16 | AT202: K | AU202: 2 | AY202: ROZPOCET | BE202: =IF(N202="základní",J202,0) -> 0 | BF202: =IF(N202="snížená",J202,0) -> 0 | BG202: =IF(N202="zákl. přenesená",J202,0) -> 0 | BH202: =IF(N202="sníž. přenesená",J202,0) -> 0 | BI202: =IF(N202="nulová",J202,0) -> 0 | BJ202: 1 | BK202: =ROUND(I202*H202,2) -> 0 | BL202: 16 | BM202: -161714661
D203: VV | F203: 4 | H203: 4 | AT203: VV | AU203: 2 | AV203: 2 | AW203: True | AX203: 1 | AY203: ROZPOCET
C204: 55 | D204: K | E204: 7252116R1 | F204: Umyvadlo keramické na desku, rozměr 55x43 cm, otvor pro baterii uprostřed, vč. sifonu | G204: soubor | H204: 1 | J204: =ROUND(I204*H204,2) -> 0 | K204: vlastní | N204: základní | P204: =O204*H204 -> 0 | Q204: 0.01476 | R204: =Q204*H204 -> 0.01476 | S204: 0 | T204: =S204*H204 -> 0 | AR204: 16 | AT204: K | AU204: 2 | AY204: ROZPOCET | BE204: =IF(N204="základní",J204,0) -> 0 | BF204: =IF(N204="snížená",J204,0) -> 0 | BG204: =IF(N204="zákl. přenesená",J204,0) -> 0 | BH204: =IF(N204="sníž. přenesená",J204,0) -> 0 | BI204: =IF(N204="nulová",J204,0) -> 0 | BJ204: 1 | BK204: =ROUND(I204*H204,2) -> 0 | BL204: 16 | BM204: -591270107
D205: VV | F205: 1 | H205: 1 | AT205: VV | AU205: 2 | AV205: 2 | AW205: True | AX205: 1 | AY205: ROZPOCET
C206: 56 | D206: K | E206: 725211602 | F206: Umyvadlo keramické připevněné na stěnu šrouby bílé bez krytu na sifon 550 mm, vč. sifonu | G206: soubor | H206: 2 | J206: =ROUND(I206*H206,2) -> 0 | K206: CS ÚRS 2017 01 | N206: základní | P206: =O206*H206 -> 0 | Q206: 0.01476 | R206: =Q206*H206 -> 0.02952 | S206: 0 | T206: =S206*H206 -> 0 | AR206: 16 | AT206: K | AU206: 2 | AY206: ROZPOCET | BE206: =IF(N206="základní",J206,0) -> 0 | BF206: =IF(N206="snížená",J206,0) -> 0 | BG206: =IF(N206="zákl. přenesená",J206,0) -> 0 | BH206: =IF(N206="sníž. přenesená",J206,0) -> 0 | BI206: =IF(N206="nulová",J206,0) -> 0 | BJ206: 1 | BK206: =ROUND(I206*H206,2) -> 0 | BL206: 16 | BM206: -742814781
D207: VV | F207: 2 | H207: 2 | AT207: VV | AU207: 2 | AV207: 2 | AW207: True | AX207: 1 | AY207: ROZPOCET
C208: 57 | D208: K | E208: 725211691R | F208: Umyvadlo dětské keramické šíře 450 mm, vč. sifonu | G208: soubor | H208: 1 | J208: =ROUND(I208*H208,2) -> 0 | K208: vlastní | N208: základní | P208: =O208*H208 -> 0 | Q208: 0.01276 | R208: =Q208*H208 -> 0.01276 | S208: 0 | T208: =S208*H208 -> 0 | AR208: 16 | AT208: K | AU208: 2 | AY208: ROZPOCET | BE208: =IF(N208="základní",J208,0) -> 0 | BF208: =IF(N208="snížená",J208,0) -> 0 | BG208: =IF(N208="zákl. přenesená",J208,0) -> 0 | BH208: =IF(N208="sníž. přenesená",J208,0) -> 0 | BI208: =IF(N208="nulová",J208,0) -> 0 | BJ208: 1 | BK208: =ROUND(I208*H208,2) -> 0 | BL208: 16 | BM208: 1987537048
D209: VV | F209: 1 | H209: 1 | AT209: VV | AU209: 2 | AV209: 2 | AW209: True | AX209: 1 | AY209: ROZPOCET
C210: 58 | D210: K | E210: 725829131 | F210: Montáž baterie umyvadlové stojánkové G 1/2 ostatní typ | G210: kus | H210: 2 | J210: =ROUND(I210*H210,2) -> 0 | K210: CS ÚRS 2017 01 | N210: základní | P210: =O210*H210 -> 0 | Q210: 4e-05 | R210: =Q210*H210 -> 8e-05 | S210: 0 | T210: =S210*H210 -> 0 | AR210: 16 | AT210: K | AU210: 2 | AY210: ROZPOCET | BE210: =IF(N210="základní",J210,0) -> 0 | BF210: =IF(N210="snížená",J210,0) -> 0 | BG210: =IF(N210="zákl. přenesená",J210,0) -> 0 | BH210: =IF(N210="sníž. přenesená",J210,0) -> 0 | BI210: =IF(N210="nulová",J210,0) -> 0 | BJ210: 1 | BK210: =ROUND(I210*H210,2) -> 0 | BL210: 16 | BM210: 974431127
D211: VV | F211: 2 | H211: 2 | AT211: VV | AU211: 2 | AV211: 2 | AW211: True | AX211: 1 | AY211: ROZPOCET
C212: 59 | D212: K | E212: 725822612 | F212: Baterie umyvadlové stojánkové pákové s výpustí | G212: soubor | H212: 2 | J212: =ROUND(I212*H212,2) -> 0 | K212: CS ÚRS 2017 01 | N212: základní | P212: =O212*H212 -> 0 | Q212: 0.00184 | R212: =Q212*H212 -> 0.00368 | S212: 0 | T212: =S212*H212 -> 0 | AR212: 16 | AT212: K | AU212: 2 | AY212: ROZPOCET | BE212: =IF(N212="základní",J212,0) -> 0 | BF212: =IF(N212="snížená",J212,0) -> 0 | BG212: =IF(N212="zákl. přenesená",J212,0) -> 0 | BH212: =IF(N212="sníž. přenesená",J212,0) -> 0 | BI212: =IF(N212="nulová",J212,0) -> 0 | BJ212: 1 | BK212: =ROUND(I212*H212,2) -> 0 | BL212: 16 | BM212: 591718156
D213: VV | F213: 2 | H213: 2 | AT213: VV | AU213: 2 | AV213: 2 | AW213: True | AX213: 1 | AY213: ROZPOCET
C214: 60 | D214: K | E214: 725249101 | F214: Montáž vaničky sprchové | G214: soubor | H214: 1 | J214: =ROUND(I214*H214,2) -> 0 | K214: CS ÚRS 2017 01 | N214: základní | P214: =O214*H214 -> 0 | Q214: 0.00088 | R214: =Q214*H214 -> 0.00088 | S214: 0 | T214: =S214*H214 -> 0 | AR214: 16 | AT214: K | AU214: 2 | AY214: ROZPOCET | BE214: =IF(N214="základní",J214,0) -> 0 | BF214: =IF(N214="snížená",J214,0) -> 0 | BG214: =IF(N214="zákl. přenesená",J214,0) -> 0 | BH214: =IF(N214="sníž. přenesená",J214,0) -> 0 | BI214: =IF(N214="nulová",J214,0) -> 0 | BJ214: 1 | BK214: =ROUND(I214*H214,2) -> 0 | BL214: 16 | BM214: 740995061
D215: VV | F215: 1 | H215: 1 | AT215: VV | AU215: 2 | AV215: 2 | AW215: True | AX215: 1 | AY215: ROZPOCET
C216: 61 | D216: K | E216: 725241223 | F216: Vanička sprchová z litého polymermramoru čtvrtkruhová 900x900 mm | G216: soubor | H216: 1 | J216: =ROUND(I216*H216,2) -> 0 | K216: CS ÚRS 2017 01 | N216: základní | P216: =O216*H216 -> 0 | Q216: 0.03088 | R216: =Q216*H216 -> 0.03088 | S216: 0 | T216: =S216*H216 -> 0 | AR216: 16 | AT216: K | AU216: 2 | AY216: ROZPOCET | BE216: =IF(N216="základní",J216,0) -> 0 | BF216: =IF(N216="snížená",J216,0) -> 0 | BG216: =IF(N216="zákl. přenesená",J216,0) -> 0 | BH216: =IF(N216="sníž. přenesená",J216,0) -> 0 | BI216: =IF(N216="nulová",J216,0) -> 0 | BJ216: 1 | BK216: =ROUND(I216*H216,2) -> 0 | BL216: 16 | BM216: -1973317163
D217: VV | F217: 1 | H217: 1 | AT217: VV | AU217: 2 | AV217: 2 | AW217: True | AX217: 1 | AY217: ROZPOCET
C218: 62 | D218: K | E218: 725245131 | F218: Zástěna sprchová dvoukřídlá do výšky 2000 mm a šířky 900 mm pro vaničky čtvrtkruhové | G218: soubor | H218: 1 | J218: =ROUND(I218*H218,2) -> 0 | K218: CS ÚRS 2017 01 | N218: základní | P218: =O218*H218 -> 0 | Q218: 0.04 | R218: =Q218*H218 -> 0.04 | S218: 0 | T218: =S218*H218 -> 0 | AR218: 16 | AT218: K | AU218: 2 | AY218: ROZPOCET | BE218: =IF(N218="základní",J218,0) -> 0 | BF218: =IF(N218="snížená",J218,0) -> 0 | BG218: =IF(N218="zákl. přenesená",J218,0) -> 0 | BH218: =IF(N218="sníž. přenesená",J218,0) -> 0 | BI218: =IF(N218="nulová",J218,0) -> 0 | BJ218: 1 | BK218: =ROUND(I218*H218,2) -> 0 | BL218: 16 | BM218: -1363806100
D219: VV | F219: 1 | H219: 1 | AT219: VV | AU219: 2 | AV219: 2 | AW219: True | AX219: 1 | AY219: ROZPOCET
C220: 63 | D220: K | E220: 725339111 | F220: Montáž výlevky | G220: soubor | H220: 1 | J220: =ROUND(I220*H220,2) -> 0 | K220: CS ÚRS 2017 01 | N220: základní | P220: =O220*H220 -> 0 | Q220: 0.00059 | R220: =Q220*H220 -> 0.00059 | S220: 0 | T220: =S220*H220 -> 0 | AR220: 16 | AT220: K | AU220: 2 | AY220: ROZPOCET | BE220: =IF(N220="základní",J220,0) -> 0 | BF220: =IF(N220="snížená",J220,0) -> 0 | BG220: =IF(N220="zákl. přenesená",J220,0) -> 0 | BH220: =IF(N220="sníž. přenesená",J220,0) -> 0 | BI220: =IF(N220="nulová",J220,0) -> 0 | BJ220: 1 | BK220: =ROUND(I220*H220,2) -> 0 | BL220: 16 | BM220: -1466892299
D221: VV | F221: 1 | H221: 1 | AT221: VV | AU221: 2 | AV221: 2 | AW221: True | AX221: 1 | AY221: ROZPOCET
C222: 64 | D222: K | E222: 725331111 | F222: Výlevka bez výtokových armatur keramická se sklopnou plastovou mřížkou 425 mm | G222: soubor | H222: 1 | J222: =ROUND(I222*H222,2) -> 0 | K222: CS ÚRS 2017 01 | N222: základní | P222: =O222*H222 -> 0 | Q222: 0.0147 | R222: =Q222*H222 -> 0.0147 | S222: 0 | T222: =S222*H222 -> 0 | AR222: 16 | AT222: K | AU222: 2 | AY222: ROZPOCET | BE222: =IF(N222="základní",J222,0) -> 0 | BF222: =IF(N222="snížená",J222,0) -> 0 | BG222: =IF(N222="zákl. přenesená",J222,0) -> 0 | BH222: =IF(N222="sníž. přenesená",J222,0) -> 0 | BI222: =IF(N222="nulová",J222,0) -> 0 | BJ222: 1 | BK222: =ROUND(I222*H222,2) -> 0 | BL222: 16 | BM222: 1492363431
D223: VV | F223: 1 | H223: 1 | AT223: VV | AU223: 2 | AV223: 2 | AW223: True | AX223: 1 | AY223: ROZPOCET
C224: 65 | D224: K | E224: 725111132 | F224: Splachovač nádržkový plastový nízkopoložený | G224: soubor | H224: 1 | J224: =ROUND(I224*H224,2) -> 0 | K224: CS ÚRS 2017 01 | N224: základní | P224: =O224*H224 -> 0 | Q224: 0.00382 | R224: =Q224*H224 -> 0.00382 | S224: 0 | T224: =S224*H224 -> 0 | AR224: 16 | AT224: K | AU224: 2 | AY224: ROZPOCET | BE224: =IF(N224="základní",J224,0) -> 0 | BF224: =IF(N224="snížená",J224,0) -> 0 | BG224: =IF(N224="zákl. přenesená",J224,0) -> 0 | BH224: =IF(N224="sníž. přenesená",J224,0) -> 0 | BI224: =IF(N224="nulová",J224,0) -> 0 | BJ224: 1 | BK224: =ROUND(I224*H224,2) -> 0 | BL224: 16 | BM224: 2065761997
D225: VV | F225: 1 | H225: 1 | AT225: VV | AU225: 2 | AV225: 2 | AW225: True | AX225: 1 | AY225: ROZPOCET
C226: 66 | D226: K | E226: 725829103R | F226: Montáž baterie nástěnné pákové a klasické | G226: kus | H226: 1 | J226: =ROUND(I226*H226,2) -> 0 | K226: vlastní | N226: základní | P226: =O226*H226 -> 0 | Q226: 0.00016 | R226: =Q226*H226 -> 0.00016 | S226: 0 | T226: =S226*H226 -> 0 | AR226: 16 | AT226: K | AU226: 2 | AY226: ROZPOCET | BE226: =IF(N226="základní",J226,0) -> 0 | BF226: =IF(N226="snížená",J226,0) -> 0 | BG226: =IF(N226="zákl. přenesená",J226,0) -> 0 | BH226: =IF(N226="sníž. přenesená",J226,0) -> 0 | BI226: =IF(N226="nulová",J226,0) -> 0 | BJ226: 1 | BK226: =ROUND(I226*H226,2) -> 0 | BL226: 16 | BM226: 2113942291
D227: VV | F227: 1 | H227: 1 | AT227: VV | AU227: 2 | AV227: 2 | AW227: True | AX227: 1 | AY227: ROZPOCET
C228: 67 | D228: K | E228: 725821312R | F228: Baterie nástěnné pákové s otáčivým kulatým ústím a délkou ramínka 300 mm | G228: soubor | H228: 1 | J228: =ROUND(I228*H228,2) -> 0 | K228: vlastní | N228: základní | P228: =O228*H228 -> 0 | Q228: 0.00196 | R228: =Q228*H228 -> 0.00196 | S228: 0 | T228: =S228*H228 -> 0 | AR228: 16 | AT228: K | AU228: 2 | AY228: ROZPOCET | BE228: =IF(N228="základní",J228,0) -> 0 | BF228: =IF(N228="snížená",J228,0) -> 0 | BG228: =IF(N228="zákl. přenesená",J228,0) -> 0 | BH228: =IF(N228="sníž. přenesená",J228,0) -> 0 | BI228: =IF(N228="nulová",J228,0) -> 0 | BJ228: 1 | BK228: =ROUND(I228*H228,2) -> 0 | BL228: 16 | BM228: -1387785520
D229: VV | F229: 1 | H229: 1 | AT229: VV | AU229: 2 | AV229: 2 | AW229: True | AX229: 1 | AY229: ROZPOCET
C230: 68 | D230: K | E230: 725829101 | F230: Montáž baterie nástěnné dřezové pákové a klasické | G230: kus | H230: 1 | J230: =ROUND(I230*H230,2) -> 0 | K230: CS ÚRS 2017 01 | N230: základní | P230: =O230*H230 -> 0 | Q230: 0.00016 | R230: =Q230*H230 -> 0.00016 | S230: 0 | T230: =S230*H230 -> 0 | AR230: 16 | AT230: K | AU230: 2 | AY230: ROZPOCET | BE230: =IF(N230="základní",J230,0) -> 0 | BF230: =IF(N230="snížená",J230,0) -> 0 | BG230: =IF(N230="zákl. přenesená",J230,0) -> 0 | BH230: =IF(N230="sníž. přenesená",J230,0) -> 0 | BI230: =IF(N230="nulová",J230,0) -> 0 | BJ230: 1 | BK230: =ROUND(I230*H230,2) -> 0 | BL230: 16 | BM230: -613460326
D231: VV | F231: 1 | H231: 1 | AT231: VV | AU231: 2 | AV231: 2 | AW231: True | AX231: 1 | AY231: ROZPOCET
... 13 more rows

Sheet D1_01_4g - Silnoproudá el...
D1: List obsahuje: | F1: 1) Krycí list soupisu | G1: 2) Rekapitulace | J1: 3) Soupis prací | K1: Zpět na list: | L1: Rekapitulace stavby
L2: >> skryté sloupce << | AT2: {217ca5bb-dc22-4cf8-89d5-86d11a16be5a}
AT3: 2
D4: KRYCÍ LIST SOUPISU | M4: v --- níže se nacházejí doplnkové a pomocné údaje k sestavám --- v | AT4: False
D6: Stavba:
E7: ='Rekapitulace stavby'!K6 -> Přístavba a stavební úpravy víceúčelového objektu ve Vadíně č.p. 11
D8: Objekt:
E9: D1_01 - Přístavba
D10: Soupis:
E11: D1_01_4g - Silnoproudá elektrotechnika
D13: KSO: | I13: CC-CZ:
D14: Místo: | F14: Vadín | I14: Datum: | J14: ='Rekapitulace stavby'!AN8 -> 3. 9. 2017
D16: Zadavatel: | I16: IČ:
E17: Obec Okrouhlice | I17: DIČ:
D19: Uchazeč: | I19: IČ: | J19: =IF('Rekapitulace stavby'!AN13="Vyplň údaj","",IF('Rekapitulace stavby'!AN13="","",'Rekapitulace stavby'!AN13)) -> 
E20: =IF('Rekapitulace stavby'!E14="Vyplň údaj","",IF('Rekapitulace stavby'!E14="","",'Rekapitulace stavby'!E14)) ->  | I20: DIČ: | J20: =IF('Rekapitulace stavby'!AN14="Vyplň údaj","",IF('Rekapitulace stavby'!AN14="","",'Rekapitulace stavby'!AN14)) -> 
D22: Projektant: | I22: IČ:
E23: Ing. Suk - EREKTA | I23: DIČ:
D25: Poznámka:
D29: Cena bez DPH | J29: =ROUND(J92,2) -> 0
F31: Základ daně | I31: Sazba daně | J31: Výše daně
D32: DPH | E32: základní | F32: =ROUND(SUM(BE92:BE175), 2) -> 0 | I32: 0.21 | J32: =ROUND(ROUND((SUM(BE92:BE175)), 2)*I32, 2) -> 0
E33: snížená | F33: =ROUND(SUM(BF92:BF175), 2) -> 0 | I33: 0.15 | J33: =ROUND(ROUND((SUM(BF92:BF175)), 2)*I33, 2) -> 0
E34: zákl. přenesená | F34: =ROUND(SUM(BG92:BG175), 2) -> 0 | I34: 0.21 | J34: 0
E35: sníž. přenesená | F35: =ROUND(SUM(BH92:BH175), 2) -> 0 | I35: 0.15 | J35: 0
E36: nulová | F36: =ROUND(SUM(BI92:BI175), 2) -> 0 | I36: 0 | J36: 0
D38: Cena s DPH | G38: v | H38: CZK | J38: =SUM(J29:J36) -> 0
C44: REKAPITULACE ČLENĚNÍ SOUPISU PRACÍ
C46: Stavba:
E47: =E7 -> Přístavba a stavební úpravy víceúčelového objektu ve Vadíně č.p. 11
C48: Objekt:
E49: D1_01 - Přístavba
C50: Soupis:
E51: =E11 -> D1_01_4g - Silnoproudá elektrotechnika
C53: Místo: | F53: =F14 -> Vadín | I53: Datum: | J53: =IF(J14="","",J14) -> 3. 9. 2017
C55: Zadavatel: | F55: =E17 -> Obec Okrouhlice | I55: Projektant: | J55: =E23 -> Ing. Suk - EREKTA
C56: Uchazeč: | F56: =IF(E20="","",E20) -> 
C58: Kód dílu - Popis | J58: Cena celkem [CZK]
C60: Náklady soupisu celkem | J60: =J92 -> 0 | AU60: -1
D61: 741 - Elektroinstalace - silnoproud + slaboproud | J61: =J93 -> 0
D62: 743 - Elektromontáže - Rozvaděče | J62: =J94 -> 0
D63: 748 - Elektromontáže - osvětlovací zařízení a svítidla | J63: =J97 -> 0
D64: 744 - Elektromontáže - Přístroje | J64: =J105 -> 0
D65: 745 - Elektromontáže - Kabelové trasy | J65: =J112 -> 0
D66: 746 - Elektromontáže - ostatní silnoproud + slaboproud | J66: =J125 -> 0
D67: 747 - Elektromontáže - datové rozvody | J67: =J137 -> 0
D68: 749 - Elektromontáže - EZS | J68: =J146 -> 0
D69: 755a - Elektroinstalace - Vstupní zvonek | J69: =J161 -> 0
D70: 751 - Elektroinstalace Ostatní slaboproud | J70: =J166 -> 0
C77: SOUPIS PRACÍ
C79: Stavba:
E80: =E7 -> Přístavba a stavební úpravy víceúčelového objektu ve Vadíně č.p. 11
C81: Objekt:
E82: D1_01 - Přístavba
C83: Soupis:
E84: =E11 -> D1_01_4g - Silnoproudá elektrotechnika
C86: Místo: | F86: =F14 -> Vadín | I86: Datum: | J86: =IF(J14="","",J14) -> 3. 9. 2017
C88: Zadavatel: | F88: =E17 -> Obec Okrouhlice | I88: Projektant: | J88: =E23 -> Ing. Suk - EREKTA
C89: Uchazeč: | F89: =IF(E20="","",E20) -> 
C91: PČ | D91: Typ | E91: Kód | F91: Popis | G91: MJ | H91: Množství | I91: J.cena [CZK] | J91: Cena celkem [CZK] | K91: Cenová soustava | M91: Poznámka | N91: DPH | O91: J. Nh [h] | P91: Nh celkem [h] | Q91: J. hmotnost [t] | R91: Hmotnost celkem [t] | S91: J. suť [t] | T91: Suť Celkem [t]
C92: Náklady soupisu celkem | J92: =BK92 -> 0 | P92: =P93 -> 0 | R92: =R93 -> 6.85904 | T92: =T93 -> 0 | AT92: D | AU92: -1 | BK92: =BK93 -> 0
D93: D | E93: 741 | F93: Elektroinstalace - silnoproud + slaboproud | J93: =BK93 -> 0 | P93: =P94+P97+P105+P112+P125+P137+P146+P161+P166 -> 0 | R93: =R94+R97+R105+R112+R125+R137+R146+R161+R166 -> 6.85904 | T93: =T94+T97+T105+T112+T125+T137+T146+T161+T166 -> 0 | AR93: 2 | AT93: D | AU93: 0 | AY93: ROZPOCET | BK93: =BK94+BK97+BK105+BK112+BK125+BK137+BK146+BK161+BK166 -> 0
D94: D | E94: 743 | F94: Elektromontáže - Rozvaděče | J94: =BK94 -> 0 | P94: =SUM(P95:P96) -> 0 | R94: =SUM(R95:R96) -> 0 | T94: =SUM(T95:T96) -> 0 | AR94: 2 | AT94: D | AU94: 1 | AY94: ROZPOCET | BK94: =SUM(BK95:BK96) -> 0
C95: 1 | D95: M | E95: 357115003 | F95: Hlavní rozvaděč - rozměry a velikost dle projektové dokumentace | G95: kpl | H95: 1 | J95: =ROUND(I95*H95,2) -> 0 | K95: vlastní | N95: základní | P95: =O95*H95 -> 0 | Q95: 0 | R95: =Q95*H95 -> 0 | S95: 0 | T95: =S95*H95 -> 0 | AR95: 32 | AT95: M | AU95: 2 | AY95: ROZPOCET | BE95: =IF(N95="základní",J95,0) -> 0 | BF95: =IF(N95="snížená",J95,0) -> 0 | BG95: =IF(N95="zákl. přenesená",J95,0) -> 0 | BH95: =IF(N95="sníž. přenesená",J95,0) -> 0 | BI95: =IF(N95="nulová",J95,0) -> 0 | BJ95: 1 | BK95: =ROUND(I95*H95,2) -> 0 | BL95: 16 | BM95: -1154574560
C96: 2 | D96: M | E96: 3571150001 | F96: Rozvaděč dle projektové dokumentace | G96: kpl | H96: 1 | J96: =ROUND(I96*H96,2) -> 0 | K96: vlastní | N96: základní | P96: =O96*H96 -> 0 | Q96: 0 | R96: =Q96*H96 -> 0 | S96: 0 | T96: =S96*H96 -> 0 | AR96: 32 | AT96: M | AU96: 2 | AY96: ROZPOCET | BE96: =IF(N96="základní",J96,0) -> 0 | BF96: =IF(N96="snížená",J96,0) -> 0 | BG96: =IF(N96="zákl. přenesená",J96,0) -> 0 | BH96: =IF(N96="sníž. přenesená",J96,0) -> 0 | BI96: =IF(N96="nulová",J96,0) -> 0 | BJ96: 1 | BK96: =ROUND(I96*H96,2) -> 0 | BL96: 16 | BM96: 1840246447
D97: D | E97: 748 | F97: Elektromontáže - osvětlovací zařízení a svítidla | J97: =BK97 -> 0 | P97: =SUM(P98:P104) -> 0 | R97: =SUM(R98:R104) -> 0 | T97: =SUM(T98:T104) -> 0 | AR97: 2 | AT97: D | AU97: 1 | AY97: ROZPOCET | BK97: =SUM(BK98:BK104) -> 0
C98: 3 | D98: M | E98: 348121120000 | F98: L1 - LED svítidlo přisazené 26W, 3300 lm , 4000K , IP40 | G98: ks | H98: 8 | J98: =ROUND(I98*H98,2) -> 0 | K98: vlastní | N98: základní | P98: =O98*H98 -> 0 | Q98: 0 | R98: =Q98*H98 -> 0 | S98: 0 | T98: =S98*H98 -> 0 | AR98: 32 | AT98: M | AU98: 2 | AY98: ROZPOCET | BE98: =IF(N98="základní",J98,0) -> 0 | BF98: =IF(N98="snížená",J98,0) -> 0 | BG98: =IF(N98="zákl. přenesená",J98,0) -> 0 | BH98: =IF(N98="sníž. přenesená",J98,0) -> 0 | BI98: =IF(N98="nulová",J98,0) -> 0 | BJ98: 1 | BK98: =ROUND(I98*H98,2) -> 0 | BL98: 16 | BM98: 803078242
C99: 4 | D99: M | E99: 3481211200001 | F99: L2 - LED svítidlo přisazené 14W , 1300lm, 4000K, IP44 | G99: ks | H99: 4 | J99: 0 | K99: vlastní | N99: základní | P99: 0 | Q99: 0 | R99: 0 | S99: 0 | T99: 0 | AR99: 32 | AT99: M | AU99: 2 | AY99: ROZPOCET | BE99: 0 | BF99: 0 | BG99: 0 | BH99: 0 | BI99: 0 | BJ99: 1 | BK99: 0 | BL99: 16 | BM99: 801681597
C100: 5 | D100: M | E100: 348121120004 | F100: L3- LED svítidlo přisazené 27W,2400lm, 4000K,IP44 | G100: ks | H100: 5 | J100: 0 | K100: vlastní | N100: základní | P100: 0 | Q100: 0 | R100: 0 | S100: 0 | T100: 0 | AR100: 32 | AT100: M | AU100: 2 | AY100: ROZPOCET | BE100: 0 | BF100: 0 | BG100: 0 | BH100: 0 | BI100: 0 | BJ100: 1 | BK100: 0 | BL100: 16 | BM100: -475480615
C101: 6 | D101: M | E101: 348121120005 | F101: L4- LED svítidlo přisazené 61W, 74700lm,4000K, IP65 | G101: ks | H101: 3 | J101: 0 | K101: vlastní | N101: základní | P101: 0 | Q101: 0 | R101: 0 | S101: 0 | T101: 0 | AR101: 32 | AT101: M | AU101: 2 | AY101: ROZPOCET | BE101: 0 | BF101: 0 | BG101: 0 | BH101: 0 | BI101: 0 | BJ101: 1 | BK101: 0 | BL101: 16 | BM101: 240220171
C102: 7 | D102: M | E102: 348121120006 | F102: L5-LED svítidlo s čidlem, přisazené, venkovní, 30W | G102: ks | H102: 1 | J102: 0 | K102: vlastní | N102: základní | P102: 0 | Q102: 0 | R102: 0 | S102: 0 | T102: 0 | AR102: 32 | AT102: M | AU102: 2 | AY102: ROZPOCET | BE102: 0 | BF102: 0 | BG102: 0 | BH102: 0 | BI102: 0 | BJ102: 1 | BK102: 0 | BL102: 16 | BM102: 1738018128
C103: 8 | D103: M | E103: 348121120007 | F103: LED svítidlo nouzové -3W | G103: ks | H103: 2 | J103: 0 | K103: vlastní | N103: základní | P103: 0 | Q103: 0 | R103: 0 | S103: 0 | T103: 0 | AR103: 32 | AT103: M | AU103: 2 | AY103: ROZPOCET | BE103: 0 | BF103: 0 | BG103: 0 | BH103: 0 | BI103: 0 | BJ103: 1 | BK103: 0 | BL103: 16 | BM103: 1638021545
C104: 9 | D104: M | E104: 348121120008 | F104: LED svítidlo nouzové s piktogramem , 1.2W,IP65 | G104: ks | H104: 6 | J104: 0 | K104: vlastní | N104: základní | P104: 0 | Q104: 0 | R104: 0 | S104: 0 | T104: 0 | AR104: 32 | AT104: M | AU104: 2 | AY104: ROZPOCET | BE104: 0 | BF104: 0 | BG104: 0 | BH104: 0 | BI104: 0 | BJ104: 1 | BK104: 0 | BL104: 16 | BM104: 395478179
D105: D | E105: 744 | F105: Elektromontáže - Přístroje | J105: =BK105 -> 0 | P105: =SUM(P106:P111) -> 0 | R105: =SUM(R106:R111) -> 0 | T105: =SUM(T106:T111) -> 0 | AR105: 2 | AT105: D | AU105: 1 | AY105: ROZPOCET | BK105: =SUM(BK106:BK111) -> 0
C106: 10 | D106: M | E106: 358121003 | F106: Vypínač řazení 1,230V/10A,IP20 včetně rámečku a příslušenství | G106: ks | H106: 4 | J106: =ROUND(I106*H106,2) -> 0 | K106: vlastní | N106: základní | P106: =O106*H106 -> 0 | Q106: 0 | R106: =Q106*H106 -> 0 | S106: 0 | T106: =S106*H106 -> 0 | AR106: 8 | AT106: M | AU106: 2 | AY106: ROZPOCET | BE106: =IF(N106="základní",J106,0) -> 0 | BF106: =IF(N106="snížená",J106,0) -> 0 | BG106: =IF(N106="zákl. přenesená",J106,0) -> 0 | BH106: =IF(N106="sníž. přenesená",J106,0) -> 0 | BI106: =IF(N106="nulová",J106,0) -> 0 | BJ106: 1 | BK106: =ROUND(I106*H106,2) -> 0 | BL106: 4 | BM106: 2067026207
C107: 11 | D107: M | E107: 358121002 | F107: Vypínač řazení 6 ,230V/10A,IP20 včetně rámečku a příslušenství | G107: ks | H107: 8 | J107: 0 | K107: vlastní | N107: základní | P107: 0 | Q107: 0 | R107: 0 | S107: 0 | T107: 0 | AR107: 8 | AT107: M | AU107: 2 | AY107: ROZPOCET | BE107: 0 | BF107: 0 | BG107: 0 | BH107: 0 | BI107: 0 | BJ107: 1 | BK107: 0 | BL107: 4 | BM107: -6480512
C108: 12 | D108: M | E108: 3581210021 | F108: Vypínač řazení 7,230V/10A,IP20 včetně rámečku a příslušenství | G108: ks | H108: 2 | J108: 0 | K108: vlastní | N108: základní | P108: 0 | Q108: 0 | R108: 0 | S108: 0 | T108: 0 | AR108: 8 | AT108: M | AU108: 2 | AY108: ROZPOCET | BE108: 0 | BF108: 0 | BG108: 0 | BH108: 0 | BI108: 0 | BJ108: 1 | BK108: 0 | BL108: 4 | BM108: 898486782
C109: 13 | D109: M | E109: A023299A-A32100 S2 | F109: Snímač pohybu úhel 180° , reléový výstup 6a/230V , IP20 | G109: ks | H109: 1 | J109: 0 | K109: vlastní | N109: základní | P109: 0 | Q109: 0 | R109: 0 | S109: 0 | T109: 0 | AR109: 8 | AT109: M | AU109: 2 | AY109: ROZPOCET | BE109: 0 | BF109: 0 | BG109: 0 | BH109: 0 | BI109: 0 | BJ109: 1 | BK109: 0 | BL109: 4 | BM109: 1621031533
C110: 14 | D110: M | E110: S02WDE000680 | F110: Zásuvka 230V 16A a spínač jednopólový ř.1, šedá, SE.WDE000680 | G110: ks | H110: 31 | J110: 0 | K110: vlastní | N110: základní | P110: 0 | Q110: 0 | R110: 0 | S110: 0 | T110: 0 | AR110: 8 | AT110: M | AU110: 2 | AY110: ROZPOCET | BE110: 0 | BF110: 0 | BG110: 0 | BH110: 0 | BI110: 0 | BJ110: 1 | BK110: 0 | BL110: 4 | BM110: 1623841959
C111: 15 | D111: M | E111: S02MGU8.601 | F111: Krabice instalační universální pro 1 modul, zapuštěná montáž | G111: ks | H111: 145 | J111: 0 | K111: vlastní | N111: základní | P111: 0 | Q111: 0 | R111: 0 | S111: 0 | T111: 0 | AR111: 8 | AT111: M | AU111: 2 | AY111: ROZPOCET | BE111: 0 | BF111: 0 | BG111: 0 | BH111: 0 | BI111: 0 | BJ111: 1 | BK111: 0 | BL111: 4 | BM111: 1469891113
D112: D | E112: 745 | F112: Elektromontáže - Kabelové trasy | J112: =BK112 -> 0 | P112: =SUM(P113:P124) -> 0 | R112: =SUM(R113:R124) -> 5.85795 | T112: =SUM(T113:T124) -> 0 | AR112: 2 | AT112: D | AU112: 1 | AY112: ROZPOCET | BK112: =SUM(BK113:BK124) -> 0
C113: 16 | D113: M | E113: S04CSKK065610 | F113: Příchytka kabelu do stropu/stěny | G113: ks | H113: 450 | J113: =ROUND(I113*H113,2) -> 0 | K113: vlastní | N113: základní | P113: =O113*H113 -> 0 | Q113: 0 | R113: =Q113*H113 -> 0 | S113: 0 | T113: =S113*H113 -> 0 | AR113: 32 | AT113: M | AU113: 2 | AY113: ROZPOCET | BE113: =IF(N113="základní",J113,0) -> 0 | BF113: =IF(N113="snížená",J113,0) -> 0 | BG113: =IF(N113="zákl. přenesená",J113,0) -> 0 | BH113: =IF(N113="sníž. přenesená",J113,0) -> 0 | BI113: =IF(N113="nulová",J113,0) -> 0 | BJ113: 1 | BK113: =ROUND(I113*H113,2) -> 0 | BL113: 16 | BM113: -854462875
C114: 17 | D114: K | E114: 340236212 | F114: Drážky pro kabeláž ve zdivu do 30x50mm , včetně zapravení | G114: kus | H114: 245 | J114: 0 | K114: CS ÚRS 2017 01 | N114: základní | P114: 0 | Q114: 0.02391 | R114: 5.85795 | S114: 0 | T114: 0 | AR114: 16 | AT114: K | AU114: 2 | AY114: ROZPOCET | BE114: 0 | BF114: 0 | BG114: 0 | BH114: 0 | BI114: 0 | BJ114: 1 | BK114: 0 | BL114: 16 | BM114: 348580427
C115: 18 | D115: M | E115: K11kk0423101 | F115: Chránička průměr 20mm | G115: m | H115: 84 | J115: 0 | K115: vlastní | N115: základní | P115: 0 | Q115: 0 | R115: 0 | S115: 0 | T115: 0 | AR115: 32 | AT115: M | AU115: 2 | AY115: ROZPOCET | BE115: 0 | BF115: 0 | BG115: 0 | BH115: 0 | BI115: 0 | BJ115: 1 | BK115: 0 | BL115: 16 | BM115: 498432654
C116: 19 | D116: M | E116: N01121 5 56201 | F116: Chránička průměr 50mm | G116: m | H116: 45 | J116: 0 | K116: vlastní | N116: základní | P116: 0 | Q116: 0 | R116: 0 | S116: 0 | T116: 0 | AR116: 32 | AT116: M | AU116: 2 | AY116: ROZPOCET | BE116: 0 | BF116: 0 | BG116: 0 | BH116: 0 | BI116: 0 | BJ116: 1 | BK116: 0 | BL116: 16 | BM116: 1095647997
C117: 20 | D117: M | E117: K05d0085 | F117: CYKY 5x6 | G117: m | H117: 78 | J117: 0 | K117: vlastní | N117: základní | P117: 0 | Q117: 0 | R117: 0 | S117: 0 | T117: 0 | AR117: 32 | AT117: M | AU117: 2 | AY117: ROZPOCET | BE117: 0 | BF117: 0 | BG117: 0 | BH117: 0 | BI117: 0 | BJ117: 1 | BK117: 0 | BL117: 16 | BM117: 361417418
C118: 21 | D118: M | E118: K05K05d042801c | F118: PraflaSave-J 5x4 | G118: m | H118: 26 | J118: 0 | K118: vlastní | N118: základní | P118: 0 | Q118: 0 | R118: 0 | S118: 0 | T118: 0 | AR118: 32 | AT118: M | AU118: 2 | AY118: ROZPOCET | BE118: 0 | BF118: 0 | BG118: 0 | BH118: 0 | BI118: 0 | BJ118: 1 | BK118: 0 | BL118: 16 | BM118: -1362937885
C119: 22 | D119: M | E119: K05d042801D | F119: PraflaSave-J 5x2,5 | G119: m | H119: 26 | J119: 0 | K119: vlastní | N119: základní | P119: 0 | Q119: 0 | R119: 0 | S119: 0 | T119: 0 | AR119: 32 | AT119: M | AU119: 2 | AY119: ROZPOCET | BE119: 0 | BF119: 0 | BG119: 0 | BH119: 0 | BI119: 0 | BJ119: 1 | BK119: 0 | BL119: 16 | BM119: 226861313
C120: 23 | D120: M | E120: K05do42801E | F120: PraflaSave-J 3x2,5 | G120: m | H120: 363 | J120: 0 | K120: vlastní | N120: základní | P120: 0 | Q120: 0 | R120: 0 | S120: 0 | T120: 0 | AR120: 32 | AT120: M | AU120: 2 | AY120: ROZPOCET | BE120: 0 | BF120: 0 | BG120: 0 | BH120: 0 | BI120: 0 | BJ120: 1 | BK120: 0 | BL120: 16 | BM120: -1659908153
C121: 24 | D121: M | E121: K05d042801F | F121: PraflaSave-J 3x1,5 | G121: m | H121: 361 | J121: 0 | K121: vlastní | N121: základní | P121: 0 | Q121: 0 | R121: 0 | S121: 0 | T121: 0 | AR121: 32 | AT121: M | AU121: 2 | AY121: ROZPOCET | BE121: 0 | BF121: 0 | BG121: 0 | BH121: 0 | BI121: 0 | BJ121: 1 | BK121: 0 | BL121: 16 | BM121: 1801012187
C122: 25 | D122: M | E122: K05d042801G | F122: PraflaSave-O 3x1,5 | G122: m | H122: 82 | J122: 0 | K122: vlastní | N122: základní | P122: 0 | Q122: 0 | R122: 0 | S122: 0 | T122: 0 | AR122: 32 | AT122: M | AU122: 2 | AY122: ROZPOCET | BE122: 0 | BF122: 0 | BG122: 0 | BH122: 0 | BI122: 0 | BJ122: 1 | BK122: 0 | BL122: 16 | BM122: 13923636
C123: 26 | D123: M | E123: K05d0031 | F123: CYA, H07V-K 10 | G123: m | H123: 69 | J123: 0 | K123: vlastní | N123: základní | P123: 0 | Q123: 0 | R123: 0 | S123: 0 | T123: 0 | AR123: 32 | AT123: M | AU123: 2 | AY123: ROZPOCET | BE123: 0 | BF123: 0 | BG123: 0 | BH123: 0 | BI123: 0 | BJ123: 1 | BK123: 0 | BL123: 16 | BM123: 1005643546
C124: 27 | D124: M | E124: K05d0030 | F124: CYA, H07V-K 6 | G124: m | H124: 123 | J124: 0 | K124: vlastní | N124: základní | P124: 0 | Q124: 0 | R124: 0 | S124: 0 | T124: 0 | AR124: 32 | AT124: M | AU124: 2 | AY124: ROZPOCET | BE124: 0 | BF124: 0 | BG124: 0 | BH124: 0 | BI124: 0 | BJ124: 1 | BK124: 0 | BL124: 16 | BM124: 1363127854
D125: D | E125: 746 | F125: Elektromontáže - ostatní silnoproud + slaboproud | J125: =BK125 -> 0 | P125: =SUM(P126:P136) -> 0 | R125: =SUM(R126:R136) -> 0 | T125: =SUM(T126:T136) -> 0 | AR125: 2 | AT125: D | AU125: 1 | AY125: ROZPOCET | BK125: =SUM(BK126:BK136) -> 0
C126: 28 | D126: M | E126: O024460701 | F126: Protipožární přepážky a ucpávky komplet | G126: kpl | H126: 1 | J126: =ROUND(I126*H126,2) -> 0 | K126: vlastní | N126: základní | P126: =O126*H126 -> 0 | Q126: 0 | R126: =Q126*H126 -> 0 | S126: 0 | T126: =S126*H126 -> 0 | AR126: 32 | AT126: M | AU126: 2 | AY126: ROZPOCET | BE126: =IF(N126="základní",J126,0) -> 0 | BF126: =IF(N126="snížená",J126,0) -> 0 | BG126: =IF(N126="zákl. přenesená",J126,0) -> 0 | BH126: =IF(N126="sníž. přenesená",J126,0) -> 0 | BI126: =IF(N126="nulová",J126,0) -> 0 | BJ126: 1 | BK126: =ROUND(I126*H126,2) -> 0 | BL126: 16 | BM126: -1471756249
C127: 29 | D127: M | E127: RT1001546 | F127: Zazdění (upevnění) rozvaděče | G127: ks | H127: 2 | J127: 0 | K127: vlastní | N127: základní | P127: 0 | Q127: 0 | R127: 0 | S127: 0 | T127: 0 | AR127: 32 | AT127: M | AU127: 2 | AY127: ROZPOCET | BE127: 0 | BF127: 0 | BG127: 0 | BH127: 0 | BI127: 0 | BJ127: 1 | BK127: 0 | BL127: 16 | BM127: -1218159768
C128: 30 | D128: M | E128: M01188 72.31 | F128: Prostupy konstrukcemi (sekání, vrtání,bourání) | G128: kpl | H128: 1 | J128: 0 | K128: vlastní | N128: základní | P128: 0 | Q128: 0 | R128: 0 | S128: 0 | T128: 0 | AR128: 32 | AT128: M | AU128: 2 | AY128: ROZPOCET | BE128: 0 | BF128: 0 | BG128: 0 | BH128: 0 | BI128: 0 | BJ128: 1 | BK128: 0 | BL128: 16 | BM128: 988759640
C129: 31 | D129: M | E129: A010.115.5001a01 | F129: Koordinace s dodavatelem stavby | G129: kpl | H129: 1 | J129: 0 | K129: vlastní | N129: základní | P129: 0 | Q129: 0 | R129: 0 | S129: 0 | T129: 0 | AR129: 32 | AT129: M | AU129: 2 | AY129: ROZPOCET | BE129: 0 | BF129: 0 | BG129: 0 | BH129: 0 | BI129: 0 | BJ129: 1 | BK129: 0 | BL129: 16 | BM129: -1854257107
C130: 32 | D130: K | E130: 3325640C | F130: Pomocné práce | G130: kpl | H130: 1 | J130: 0 | K130: vlastní | N130: základní | P130: 0 | Q130: 0 | R130: 0 | S130: 0 | T130: 0 | AR130: 16 | AT130: K | AU130: 2 | AY130: ROZPOCET | BE130: 0 | BF130: 0 | BG130: 0 | BH130: 0 | BI130: 0 | BJ130: 1 | BK130: 0 | BL130: 16 | BM130: 1681106099
C131: 33 | D131: M | E131: 3325640 Ab | F131: Pomocný materiál | G131: kpl | H131: 1 | J131: 0 | K131: vlastní | N131: základní | P131: 0 | Q131: 0 | R131: 0 | S131: 0 | T131: 0 | AR131: 32 | AT131: M | AU131: 2 | AY131: ROZPOCET | BE131: 0 | BF131: 0 | BG131: 0 | BH131: 0 | BI131: 0 | BJ131: 1 | BK131: 0 | BL131: 16 | BM131: 884407547
C132: 34 | D132: M | E132: 345755667 | F132: Doprava , veškerá mechanizace | G132: kpl | H132: 0.7 | J132: 0 | K132: vlastní | N132: základní | P132: 0 | Q132: 0 | R132: 0 | S132: 0 | T132: 0 | AR132: 1024 | AT132: M | AU132: 2 | AY132: ROZPOCET | BE132: 0 | BF132: 0 | BG132: 0 | BH132: 0 | BI132: 0 | BJ132: 1 | BK132: 0 | BL132: 1024 | BM132: -1291347921
C133: 35 | D133: K | E133: 01158901 C | F133: Komplexní zkoušky a zkušební provoz | G133: kpl | H133: 1 | J133: 0 | K133: vlastní | N133: základní | P133: 0 | Q133: 0 | R133: 0 | S133: 0 | T133: 0 | AR133: 16 | AT133: K | AU133: 2 | AY133: ROZPOCET | BE133: 0 | BF133: 0 | BG133: 0 | BH133: 0 | BI133: 0 | BJ133: 1 | BK133: 0 | BL133: 16 | BM133: -869829643
C134: 36 | D134: M | E134: 345755662 | F134: Ostatní režijní a vedlejší náklady | G134: kpl | H134: 1 | J134: 0 | K134: vlastní | N134: základní | P134: 0 | Q134: 0 | R134: 0 | S134: 0 | T134: 0 | AR134: 1024 | AT134: M | AU134: 2 | AY134: ROZPOCET | BE134: 0 | BF134: 0 | BG134: 0 | BH134: 0 | BI134: 0 | BJ134: 1 | BK134: 0 | BL134: 1024 | BM134: 556097715
C135: 37 | D135: K | E135: 044002_R1 | F135: Revize | G135: kpl | H135: 1 | J135: 0 | K135: vlastní | N135: základní | P135: 0 | Q135: 0 | R135: 0 | S135: 0 | T135: 0 | AR135: 16 | AT135: K | AU135: 2 | AY135: ROZPOCET | BE135: 0 | BF135: 0 | BG135: 0 | BH135: 0 | BI135: 0 | BJ135: 1 | BK135: 0 | BL135: 16 | BM135: 1551392678
C136: 38 | D136: K | E136: 011464_R1 | F136: Měření (monitoring) úrovně osvětlení | G136: kpl | H136: 1 | J136: 0 | K136: vlastní | N136: základní | P136: 0 | Q136: 0 | R136: 0 | S136: 0 | T136: 0 | AR136: 16 | AT136: K | AU136: 2 | AY136: ROZPOCET | BE136: 0 | BF136: 0 | BG136: 0 | BH136: 0 | BI136: 0 | BJ136: 1 | BK136: 0 | BL136: 16 | BM136: -1568241954
P137: =SUM(P138:P145) -> 0 | R137: =SUM(R138:R145) -> 0 | T137: =SUM(T138:T145) -> 0 | AR137: 2 | AT137: D | AU137: 1 | AY137: ROZPOCET | BK137: =SUM(BK138:BK145) -> 0
N138: základní | P138: =O138*H138 -> 0 | Q138: 0 | R138: =Q138*H138 -> 0 | S138: 0 | T138: =S138*H138 -> 0 | AR138: 32 | AT138: M | AU138: 2 | AY138: ROZPOCET | BE138: =IF(N138="základní",J138,0) -> 0 | BF138: =IF(N138="snížená",J138,0) -> 0 | BG138: =IF(N138="zákl. přenesená",J138,0) -> 0 | BH138: =IF(N138="sníž. přenesená",J138,0) -> 0 | BI138: =IF(N138="nulová",J138,0) -> 0 | BJ138: 1 | BK138: =ROUND(I138*H138,2) -> 0 | BL138: 16 | BM138: -1336952280
N139: základní | P139: 0 | Q139: 0 | R139: 0 | S139: 0 | T139: 0 | AR139: 32 | AT139: M | AU139: 2 | AY139: ROZPOCET | BE139: 0 | BF139: 0 | BG139: 0 | BH139: 0 | BI139: 0 | BJ139: 1 | BK139: 0 | BL139: 16 | BM139: 1423172134
N140: základní | P140: 0 | Q140: 0 | R140: 0 | S140: 0 | T140: 0 | AR140: 32 | AT140: M | AU140: 2 | AY140: ROZPOCET | BE140: 0 | BF140: 0 | BG140: 0 | BH140: 0 | BI140: 0 | BJ140: 1 | BK140: 0 | BL140: 16 | BM140: 1419293605
N141: základní | P141: 0 | Q141: 0 | R141: 0 | S141: 0 | T141: 0 | AR141: 32 | AT141: M | AU141: 2 | AY141: ROZPOCET | BE141: 0 | BF141: 0 | BG141: 0 | BH141: 0 | BI141: 0 | BJ141: 1 | BK141: 0 | BL141: 16 | BM141: -1713429624
N142: základní | P142: 0 | Q142: 0 | R142: 0 | S142: 0 | T142: 0 | AR142: 32 | AT142: M | AU142: 2 | AY142: ROZPOCET | BE142: 0 | BF142: 0 | BG142: 0 | BH142: 0 | BI142: 0 | BJ142: 1 | BK142: 0 | BL142: 16 | BM142: -1249686080
N143: základní | P143: 0 | Q143: 0 | R143: 0 | S143: 0 | T143: 0 | AR143: 32 | AT143: M | AU143: 2 | AY143: ROZPOCET | BE143: 0 | BF143: 0 | BG143: 0 | BH143: 0 | BI143: 0 | BJ143: 1 | BK143: 0 | BL143: 16 | BM143: -1484465922
N144: základní | P144: 0 | Q144: 0 | R144: 0 | S144: 0 | T144: 0 | AR144: 32 | AT144: M | AU144: 2 | AY144: ROZPOCET | BE144: 0 | BF144: 0 | BG144: 0 | BH144: 0 | BI144: 0 | BJ144: 1 | BK144: 0 | BL144: 16 | BM144: -694653015
N145: základní | P145: 0 | Q145: 0 | R145: 0 | S145: 0 | T145: 0 | AR145: 32 | AT145: M | AU145: 2 | AY145: ROZPOCET | BE145: 0 | BF145: 0 | BG145: 0 | BH145: 0 | BI145: 0 | BJ145: 1 | BK145: 0 | BL145: 16 | BM145: -921241148
P146: =SUM(P147:P160) -> 0 | R146: =SUM(R147:R160) -> 0 | T146: =SUM(T147:T160) -> 0 | AR146: 2 | AT146: D | AU146: 1 | AY146: ROZPOCET | BK146: =SUM(BK147:BK160) -> 0
N147: základní | P147: =O147*H147 -> 0 | Q147: 0 | R147: =Q147*H147 -> 0 | S147: 0 | T147: =S147*H147 -> 0 | AR147: 32 | AT147: M | AU147: 2 | AY147: ROZPOCET | BE147: =IF(N147="základní",J147,0) -> 0 | BF147: =IF(N147="snížená",J147,0) -> 0 | BG147: =IF(N147="zákl. přenesená",J147,0) -> 0 | BH147: =IF(N147="sníž. přenesená",J147,0) -> 0 | BI147: =IF(N147="nulová",J147,0) -> 0 | BJ147: 1 | BK147: =ROUND(I147*H147,2) -> 0 | BL147: 16 | BM147: 1487311591
N148: základní | P148: 0 | Q148: 0 | R148: 0 | S148: 0 | T148: 0 | AR148: 32 | AT148: M | AU148: 2 | AY148: ROZPOCET | BE148: 0 | BF148: 0 | BG148: 0 | BH148: 0 | BI148: 0 | BJ148: 1 | BK148: 0 | BL148: 16 | BM148: -567324170
N149: základní | P149: 0 | Q149: 0 | R149: 0 | S149: 0 | T149: 0 | AR149: 32 | AT149: M | AU149: 2 | AY149: ROZPOCET | BE149: 0 | BF149: 0 | BG149: 0 | BH149: 0 | BI149: 0 | BJ149: 1 | BK149: 0 | BL149: 16 | BM149: -1798209224
N150: základní | P150: 0 | Q150: 0 | R150: 0 | S150: 0 | T150: 0 | AR150: 32 | AT150: M | AU150: 2 | AY150: ROZPOCET | BE150: 0 | BF150: 0 | BG150: 0 | BH150: 0 | BI150: 0 | BJ150: 1 | BK150: 0 | BL150: 16 | BM150: -1309724950
N151: základní | P151: 0 | Q151: 0 | R151: 0 | S151: 0 | T151: 0 | AR151: 32 | AT151: M | AU151: 2 | AY151: ROZPOCET | BE151: 0 | BF151: 0 | BG151: 0 | BH151: 0 | BI151: 0 | BJ151: 1 | BK151: 0 | BL151: 16 | BM151: 1272383609
N152: základní | P152: 0 | Q152: 0 | R152: 0 | S152: 0 | T152: 0 | AR152: 32 | AT152: M | AU152: 2 | AY152: ROZPOCET | BE152: 0 | BF152: 0 | BG152: 0 | BH152: 0 | BI152: 0 | BJ152: 1 | BK152: 0 | BL152: 16 | BM152: 110561853
N153: základní | P153: 0 | Q153: 0 | R153: 0 | S153: 0 | T153: 0 | AR153: 32 | AT153: M | AU153: 2 | AY153: ROZPOCET | BE153: 0 | BF153: 0 | BG153: 0 | BH153: 0 | BI153: 0 | BJ153: 1 | BK153: 0 | BL153: 16 | BM153: -1384100171
N154: základní | P154: 0 | Q154: 0 | R154: 0 | S154: 0 | T154: 0 | AR154: 32 | AT154: M | AU154: 2 | AY154: ROZPOCET | BE154: 0 | BF154: 0 | BG154: 0 | BH154: 0 | BI154: 0 | BJ154: 1 | BK154: 0 | BL154: 16 | BM154: -2125268505
N155: základní | P155: 0 | Q155: 0 | R155: 0 | S155: 0 | T155: 0 | AR155: 32 | AT155: M | AU155: 2 | AY155: ROZPOCET | BE155: 0 | BF155: 0 | BG155: 0 | BH155: 0 | BI155: 0 | BJ155: 1 | BK155: 0 | BL155: 16 | BM155: 708709543
N156: základní | P156: 0 | Q156: 0 | R156: 0 | S156: 0 | T156: 0 | AR156: 32 | AT156: M | AU156: 2 | AY156: ROZPOCET | BE156: 0 | BF156: 0 | BG156: 0 | BH156: 0 | BI156: 0 | BJ156: 1 | BK156: 0 | BL156: 16 | BM156: 1944946875
N157: základní | P157: 0 | Q157: 0 | R157: 0 | S157: 0 | T157: 0 | AR157: 32 | AT157: M | AU157: 2 | AY157: ROZPOCET | BE157: 0 | BF157: 0 | BG157: 0 | BH157: 0 | BI157: 0 | BJ157: 1 | BK157: 0 | BL157: 16 | BM157: 1854624751
N158: základní | P158: 0 | Q158: 0 | R158: 0 | S158: 0 | T158: 0 | AR158: 32 | AT158: M | AU158: 2 | AY158: ROZPOCET | BE158: 0 | BF158: 0 | BG158: 0 | BH158: 0 | BI158: 0 | BJ158: 1 | BK158: 0 | BL158: 16 | BM158: -1091351868
N159: základní | P159: 0 | Q159: 0 | R159: 0 | S159: 0 | T159: 0 | AR159: 32 | AT159: M | AU159: 2 | AY159: ROZPOCET | BE159: 0 | BF159: 0 | BG159: 0 | BH159: 0 | BI159: 0 | BJ159: 1 | BK159: 0 | BL159: 16 | BM159: 172000947
N160: základní | P160: 0 | Q160: 0 | R160: 0 | S160: 0 | T160: 0 | AR160: 32 | AT160: M | AU160: 2 | AY160: ROZPOCET | BE160: 0 | BF160: 0 | BG160: 0 | BH160: 0 | BI160: 0 | BJ160: 1 | BK160: 0 | BL160: 16 | BM160: -57404251
D161: D | E161: 755a | F161: Elektroinstalace - Vstupní zvonek | J161: =BK161 -> 0 | P161: =SUM(P162:P165) -> 0 | R161: =SUM(R162:R165) -> 0 | T161: =SUM(T162:T165) -> 0 | AR161: 2 | AT161: D | AU161: 1 | AY161: ROZPOCET | BK161: =SUM(BK162:BK165) -> 0
C162: 61 | D162: M | E162: S04BZ32657901 | F162: Zvonkové tlačítko venkovní , spínač 1/0, IP44, včetně krytu a rámečku | G162: ks | H162: 1 | J162: =ROUND(I162*H162,2) -> 0 | K162: vlastní | N162: základní | P162: =O162*H162 -> 0 | Q162: 0 | R162: =Q162*H162 -> 0 | S162: 0 | T162: =S162*H162 -> 0 | AR162: 32 | AT162: M | AU162: 2 | AY162: ROZPOCET | BE162: =IF(N162="základní",J162,0) -> 0 | BF162: =IF(N162="snížená",J162,0) -> 0 | BG162: =IF(N162="zákl. přenesená",J162,0) -> 0 | BH162: =IF(N162="sníž. přenesená",J162,0) -> 0 | BI162: =IF(N162="nulová",J162,0) -> 0 | BJ162: 1 | BK162: =ROUND(I162*H162,2) -> 0 | BL162: 16 | BM162: 1233391978
C163: 62 | D163: M | E163: S04BZ926338045 | F163: Zvonek domovní drátový | G163: ks | H163: 1 | J163: =ROUND(I163*H163,2) -> 0 | K163: vlastní | N163: základní | P163: =O163*H163 -> 0 | Q163: 0 | R163: =Q163*H163 -> 0 | S163: 0 | T163: =S163*H163 -> 0 | AR163: 32 | AT163: M | AU163: 2 | AY163: ROZPOCET | BE163: =IF(N163="základní",J163,0) -> 0 | BF163: =IF(N163="snížená",J163,0) -> 0 | BG163: =IF(N163="zákl. přenesená",J163,0) -> 0 | BH163: =IF(N163="sníž. přenesená",J163,0) -> 0 | BI163: =IF(N163="nulová",J163,0) -> 0 | BJ163: 1 | BK163: =ROUND(I163*H163,2) -> 0 | BL163: 16 | BM163: 1068255261
C164: 63 | D164: M | E164: K05K05d042801Fa | F164: PraflaSave-O 2x1,5 | H164: 31 | J164: =ROUND(I164*H164,2) -> 0 | K164: vlastní | N164: základní | P164: =O164*H164 -> 0 | Q164: 0 | R164: =Q164*H164 -> 0 | S164: 0 | T164: =S164*H164 -> 0 | AR164: 32 | AT164: M | AU164: 2 | AY164: ROZPOCET | BE164: =IF(N164="základní",J164,0) -> 0 | BF164: =IF(N164="snížená",J164,0) -> 0 | BG164: =IF(N164="zákl. přenesená",J164,0) -> 0 | BH164: =IF(N164="sníž. přenesená",J164,0) -> 0 | BI164: =IF(N164="nulová",J164,0) -> 0 | BJ164: 1 | BK164: =ROUND(I164*H164,2) -> 0 | BL164: 16 | BM164: -952372553
C165: 64 | D165: M | E165: D03920389aa | F165: Zapojení systému - zámek | G165: ks | H165: 1 | J165: =ROUND(I165*H165,2) -> 0 | K165: vlastní | N165: základní | P165: =O165*H165 -> 0 | Q165: 0 | R165: =Q165*H165 -> 0 | S165: 0 | T165: =S165*H165 -> 0 | AR165: 32 | AT165: M | AU165: 2 | AY165: ROZPOCET | BE165: =IF(N165="základní",J165,0) -> 0 | BF165: =IF(N165="snížená",J165,0) -> 0 | BG165: =IF(N165="zákl. přenesená",J165,0) -> 0 | BH165: =IF(N165="sníž. přenesená",J165,0) -> 0 | BI165: =IF(N165="nulová",J165,0) -> 0 | BJ165: 1 | BK165: =ROUND(I165*H165,2) -> 0 | BL165: 16 | BM165: -1878927128
D166: D | E166: 751 | F166: Elektroinstalace Ostatní slaboproud | J166: =BK166 -> 0 | P166: =SUM(P167:P175) -> 0 | R166: =SUM(R167:R175) -> 1.00109 | T166: =SUM(T167:T175) -> 0 | AR166: 2 | AT166: D | AU166: 1 | AY166: ROZPOCET | BK166: =SUM(BK167:BK175) -> 0
C167: 65 | D167: M | E167: M018A62.55/0001F01a | F167: Prostupy stěnou,včetně začistění | G167: kpl | H167: 1 | J167: =ROUND(I167*H167,2) -> 0 | K167: vlastní | N167: základní | P167: =O167*H167 -> 0 | Q167: 0 | R167: =Q167*H167 -> 0 | S167: 0 | T167: =S167*H167 -> 0 | AR167: 32 | AT167: M | AU167: 2 | AY167: ROZPOCET | BE167: =IF(N167="základní",J167,0) -> 0 | BF167: =IF(N167="snížená",J167,0) -> 0 | BG167: =IF(N167="zákl. přenesená",J167,0) -> 0 | BH167: =IF(N167="sníž. přenesená",J167,0) -> 0 | BI167: =IF(N167="nulová",J167,0) -> 0 | BJ167: 1 | BK167: =ROUND(I167*H167,2) -> 0 | BL167: 16 | BM167: 1596075936
C168: 66 | D168: M | E168: S02NSYIN241a | F168: Drážkování (sekání, frézování) | G168: m | H168: 250 | J168: 0 | K168: vlastní | N168: základní | P168: 0 | Q168: 0 | R168: 0 | S168: 0 | T168: 0 | AR168: 32 | AT168: M | AU168: 2 | AY168: ROZPOCET | BE168: 0 | BF168: 0 | BG168: 0 | BH168: 0 | BI168: 0 | BJ168: 1 | BK168: 0 | BL168: 16 | BM168: 426085811
C169: 67 | D169: M | E169: 5895181 61 | F169: Zapravení po drážkování | G169: m | H169: 250 | J169: 0 | K169: vlastní | N169: základní | P169: 0 | Q169: 0 | R169: 0 | S169: 0 | T169: 0 | AR169: 32 | AT169: M | AU169: 2 | AY169: ROZPOCET | BE169: 0 | BF169: 0 | BG169: 0 | BH169: 0 | BI169: 0 | BJ169: 1 | BK169: 0 | BL169: 16 | BM169: -46104444
C170: 68 | D170: M | E170: 59244042001 | F170: Svorky a příslušenství | G170: kpl | H170: 1 | J170: 0 | K170: vlastní | N170: základní | P170: 0 | Q170: 0.0002 | R170: 0.0002 | S170: 0 | T170: 0 | AR170: 32 | AT170: M | AU170: 2 | AY170: ROZPOCET | BE170: 0 | BF170: 0 | BG170: 0 | BH170: 0 | BI170: 0 | BJ170: 1 | BK170: 0 | BL170: 16 | BM170: 696605044
C171: 69 | D171: M | E171: S04ST37040--- | F171: Popis prvků | G171: kpl | H171: 1 | J171: 0 | K171: vlastní | N171: základní | P171: 0 | Q171: 0 | R171: 0 | S171: 0 | T171: 0 | AR171: 32 | AT171: M | AU171: 2 | AY171: ROZPOCET | BE171: 0 | BF171: 0 | BG171: 0 | BH171: 0 | BI171: 0 | BJ171: 1 | BK171: 0 | BL171: 16 | BM171: -1497741496
C172: 70 | D172: M | E172: S04MM21640601 | F172: Bezpečnostní tabulky | G172: kpl | H172: 1 | J172: 0 | K172: vlastní | N172: základní | P172: 0 | Q172: 0 | R172: 0 | S172: 0 | T172: 0 | AR172: 32 | AT172: M | AU172: 2 | AY172: ROZPOCET | BE172: 0 | BF172: 0 | BG172: 0 | BH172: 0 | BI172: 0 | BJ172: 1 | BK172: 0 | BL172: 16 | BM172: 514527921
C173: 71 | D173: M | E173: 585412_R1 | F173: sádra | G173: kpl | H173: 1 | J173: 0 | K173: vlastní | N173: základní | P173: 0 | Q173: 1 | R173: 1 | S173: 0 | T173: 0 | AR173: 32 | AT173: M | AU173: 2 | AY173: ROZPOCET | BE173: 0 | BF173: 0 | BG173: 0 | BH173: 0 | BI173: 0 | BJ173: 1 | BK173: 0 | BL173: 16 | BM173: 110421273
C174: 72 | D174: M | E174: 590711_R2 | F174: pěna polyuretanová montážní jednosložková trubičková 750 ml | G174: KPL | H174: 1 | J174: 0 | K174: vlastní | N174: základní | P174: 0 | Q174: 0.00089 | R174: 0.00089 | S174: 0 | T174: 0 | AR174: 32 | AT174: M | AU174: 2 | AY174: ROZPOCET | BE174: 0 | BF174: 0 | BG174: 0 | BH174: 0 | BI174: 0 | BJ174: 1 | BK174: 0 | BL174: 16 | BM174: 1103708113
C175: 73 | D175: M | E175: T01VS085A01ANBa | F175: Výchozí revize, nepředvídatelné okolnosti v průběhu realizace, zařízení staveniště + podíl ostatních profesí | G175: kpl | H175: 1 | J175: 0 | K175: vlastní | N175: základní | P175: 0 | Q175: 0 | R175: 0 | S175: 0 | T175: 0 | AR175: 32 | AT175: M | AU175: 2 | AY175: ROZPOCET | BE175: 0 | BF175: 0 | BG175: 0 | BH175: 0 | BI175: 0 | BJ175: 1 | BK175: 0 | BL175: 16 | BM175: 271028767
H677: 8.93

Sheet OVN - Ostatní a vedlejší ...
D1: List obsahuje: | F1: 1) Krycí list soupisu | G1: 2) Rekapitulace | J1: 3) Soupis prací | K1: Zpět na list: | L1: Rekapitulace stavby
L2: >> skryté sloupce << | AT2: {1c0a6da4-04a7-4028-8558-5eebb0c7e849}
AT3: 2
D4: KRYCÍ LIST SOUPISU | M4: v --- níže se nacházejí doplnkové a pomocné údaje k sestavám --- v | AT4: False
D6: Stavba:
E7: ='Rekapitulace stavby'!K6 -> Přístavba a stavební úpravy víceúčelového objektu ve Vadíně č.p. 11
D8: Objekt:
E9: OVN - Ostatní a vedlejší náklady
D11: KSO: | I11: CC-CZ:
D12: Místo: | F12: Vadín | I12: Datum: | J12: ='Rekapitulace stavby'!AN8 -> 3. 9. 2017
D14: Zadavatel: | I14: IČ:
E15: Obec Okrouhlice | I15: DIČ:
D17: Uchazeč: | I17: IČ: | J17: =IF('Rekapitulace stavby'!AN13="Vyplň údaj","",IF('Rekapitulace stavby'!AN13="","",'Rekapitulace stavby'!AN13)) -> 
E18: =IF('Rekapitulace stavby'!E14="Vyplň údaj","",IF('Rekapitulace stavby'!E14="","",'Rekapitulace stavby'!E14)) ->  | I18: DIČ: | J18: =IF('Rekapitulace stavby'!AN14="Vyplň údaj","",IF('Rekapitulace stavby'!AN14="","",'Rekapitulace stavby'!AN14)) -> 
D20: Projektant: | I20: IČ:
E21: Ing. Suk - EREKTA | I21: DIČ:
D23: Poznámka:
D27: Cena bez DPH | J27: =ROUND(J79,2) -> 0
F29: Základ daně | I29: Sazba daně | J29: Výše daně
D30: DPH | E30: základní | F30: =ROUND(SUM(BE79:BE96), 2) -> 0 | I30: 0.21 | J30: =ROUND(ROUND((SUM(BE79:BE96)), 2)*I30, 2) -> 0
E31: snížená | F31: =ROUND(SUM(BF79:BF96), 2) -> 0 | I31: 0.15 | J31: =ROUND(ROUND((SUM(BF79:BF96)), 2)*I31, 2) -> 0
E32: zákl. přenesená | F32: =ROUND(SUM(BG79:BG96), 2) -> 0 | I32: 0.21 | J32: 0
E33: sníž. přenesená | F33: =ROUND(SUM(BH79:BH96), 2) -> 0 | I33: 0.15 | J33: 0
E34: nulová | F34: =ROUND(SUM(BI79:BI96), 2) -> 0 | I34: 0 | J34: 0
D36: Cena s DPH | G36: v | H36: CZK | J36: =SUM(J27:J34) -> 0
C42: REKAPITULACE ČLENĚNÍ SOUPISU PRACÍ
C44: Stavba:
E45: =E7 -> Přístavba a stavební úpravy víceúčelového objektu ve Vadíně č.p. 11
C46: Objekt:
E47: =E9 -> OVN - Ostatní a vedlejší náklady
C49: Místo: | F49: =F12 -> Vadín | I49: Datum: | J49: =IF(J12="","",J12) -> 3. 9. 2017
C51: Zadavatel: | F51: =E15 -> Obec Okrouhlice | I51: Projektant: | J51: =E21 -> Ing. Suk - EREKTA
C52: Uchazeč: | F52: =IF(E18="","",E18) -> 
C54: Kód dílu - Popis | J54: Cena celkem [CZK]
C56: Náklady soupisu celkem | J56: =J79 -> 0 | AU56: -1
D57: VRN - Vedlejší rozpočtové náklady | J57: =J80 -> 0
D58: 001 - Projektová dokumentace | J58: =J81 -> 0
D59: 003 - Zařízení staveniště | J59: =J88 -> 0
C66: SOUPIS PRACÍ
C68: Stavba:
E69: =E7 -> Přístavba a stavební úpravy víceúčelového objektu ve Vadíně č.p. 11
C70: Objekt:
E71: =E9 -> OVN - Ostatní a vedlejší náklady
C73: Místo: | F73: =F12 -> Vadín | I73: Datum: | J73: =IF(J12="","",J12) -> 3. 9. 2017
C75: Zadavatel: | F75: =E15 -> Obec Okrouhlice | I75: Projektant: | J75: =E21 -> Ing. Suk - EREKTA
C76: Uchazeč: | F76: =IF(E18="","",E18) -> 
C78: PČ | D78: Typ | E78: Kód | F78: Popis | G78: MJ | H78: Množství | I78: J.cena [CZK] | J78: Cena celkem [CZK] | K78: Cenová soustava | M78: Poznámka | N78: DPH | O78: J. Nh [h] | P78: Nh celkem [h] | Q78: J. hmotnost [t] | R78: Hmotnost celkem [t] | S78: J. suť [t] | T78: Suť Celkem [t]
C79: Náklady soupisu celkem | J79: =BK79 -> 0 | P79: =P80 -> 0 | R79: =R80 -> 0 | T79: =T80 -> 0 | AT79: D | AU79: -1 | BK79: =BK80 -> 0
D80: D | E80: VRN | F80: Vedlejší rozpočtové náklady | J80: =BK80 -> 0 | P80: =P81+P88 -> 0 | R80: =R81+R88 -> 0 | T80: =T81+T88 -> 0 | AR80: 5 | AT80: D | AU80: 0 | AY80: ROZPOCET | BK80: =BK81+BK88 -> 0
D81: D | E81: 001 | F81: Projektová dokumentace | J81: =BK81 -> 0 | P81: =SUM(P82:P87) -> 0 | R81: =SUM(R82:R87) -> 0 | T81: =SUM(T82:T87) -> 0 | AR81: 5 | AT81: D | AU81: 1 | AY81: ROZPOCET | BK81: =SUM(BK82:BK87) -> 0
C82: 1 | D82: K | E82: VRN1001-R | F82: Dokumentace skutečného provedení stavby | G82: Kč | H82: 1 | J82: =ROUND(I82*H82,2) -> 0 | N82: základní | P82: =O82*H82 -> 0 | Q82: 0 | R82: =Q82*H82 -> 0 | S82: 0 | T82: =S82*H82 -> 0 | AR82: 1024 | AT82: K | AU82: 2 | AY82: ROZPOCET | BE82: =IF(N82="základní",J82,0) -> 0 | BF82: =IF(N82="snížená",J82,0) -> 0 | BG82: =IF(N82="zákl. přenesená",J82,0) -> 0 | BH82: =IF(N82="sníž. přenesená",J82,0) -> 0 | BI82: =IF(N82="nulová",J82,0) -> 0 | BJ82: 1 | BK82: =ROUND(I82*H82,2) -> 0 | BL82: 1024 | BM82: 259560913
D83: VV | F83: 1 | H83: 1 | AT83: VV | AU83: 2 | AV83: 2 | AW83: True | AX83: 0 | AY83: ROZPOCET
C84: 2 | D84: K | E84: VRN1002-R | F84: Dílenská dokumentace | G84: Kč | H84: 1 | J84: =ROUND(I84*H84,2) -> 0 | N84: základní | P84: =O84*H84 -> 0 | Q84: 0 | R84: =Q84*H84 -> 0 | S84: 0 | T84: =S84*H84 -> 0 | AR84: 1024 | AT84: K | AU84: 2 | AY84: ROZPOCET | BE84: =IF(N84="základní",J84,0) -> 0 | BF84: =IF(N84="snížená",J84,0) -> 0 | BG84: =IF(N84="zákl. přenesená",J84,0) -> 0 | BH84: =IF(N84="sníž. přenesená",J84,0) -> 0 | BI84: =IF(N84="nulová",J84,0) -> 0 | BJ84: 1 | BK84: =ROUND(I84*H84,2) -> 0 | BL84: 1024 | BM84: 530138560
D85: VV | F85: Její zpracování a předání projektantovi | AT85: VV | AU85: 2 | AV85: 1 | AW85: True | AX85: 0 | AY85: ROZPOCET
D86: VV | F86: k odsouhlasení | AT86: VV | AU86: 2 | AV86: 1 | AW86: True | AX86: 0 | AY86: ROZPOCET
D87: VV | F87: 1 | H87: 1 | AT87: VV | AU87: 2 | AV87: 2 | AW87: True | AX87: 0 | AY87: ROZPOCET
D88: D | E88: 003 | F88: Zařízení staveniště | J88: =BK88 -> 0 | P88: =SUM(P89:P96) -> 0 | R88: =SUM(R89:R96) -> 0 | T88: =SUM(T89:T96) -> 0 | AR88: 5 | AT88: D | AU88: 1 | AY88: ROZPOCET | BK88: =SUM(BK89:BK96) -> 0
C89: 3 | D89: K | E89: VRN3001-R | F89: Náklady na veškeré energie spojené s realizací stavebních objektů | G89: Kč | H89: 1 | J89: =ROUND(I89*H89,2) -> 0 | N89: základní | P89: =O89*H89 -> 0 | Q89: 0 | R89: =Q89*H89 -> 0 | S89: 0 | T89: =S89*H89 -> 0 | AR89: 1024 | AT89: K | AU89: 2 | AY89: ROZPOCET | BE89: =IF(N89="základní",J89,0) -> 0 | BF89: =IF(N89="snížená",J89,0) -> 0 | BG89: =IF(N89="zákl. přenesená",J89,0) -> 0 | BH89: =IF(N89="sníž. přenesená",J89,0) -> 0 | BI89: =IF(N89="nulová",J89,0) -> 0 | BJ89: 1 | BK89: =ROUND(I89*H89,2) -> 0 | BL89: 1024 | BM89: 1548822207
D90: VV | F90: 1 | H90: 1 | AT90: VV | AU90: 2 | AV90: 2 | AW90: True | AX90: 0 | AY90: ROZPOCET
C91: 4 | D91: K | E91: VRN3003-R | F91: Náklady na zařízení staveniště - buňkoviště, oplocení, rozvaděče včetně demontáží, vybavení BOZP, provizorní dopravní značení, označení stavby a díla stálou pamětní deskou o dotační podpoře, úklid | G91: Kč | H91: 1 | J91: =ROUND(I91*H91,2) -> 0 | N91: základní | P91: =O91*H91 -> 0 | Q91: 0 | R91: =Q91*H91 -> 0 | S91: 0 | T91: =S91*H91 -> 0 | AR91: 1024 | AT91: K | AU91: 2 | AY91: ROZPOCET | BE91: =IF(N91="základní",J91,0) -> 0 | BF91: =IF(N91="snížená",J91,0) -> 0 | BG91: =IF(N91="zákl. přenesená",J91,0) -> 0 | BH91: =IF(N91="sníž. přenesená",J91,0) -> 0 | BI91: =IF(N91="nulová",J91,0) -> 0 | BJ91: 1 | BK91: =ROUND(I91*H91,2) -> 0 | BL91: 1024 | BM91: -245829063
D92: VV | F92: 1 | H92: 1 | AT92: VV | AU92: 2 | AV92: 2 | AW92: True | AX92: 0 | AY92: ROZPOCET
C93: 5 | D93: K | E93: VRN3004-R | F93: Opatření k zajištění bezpečnosti účastníků realizace stavby a veřejnosti (bezpečnostní tabulky, úklid příjezdových komunikací atd.) | G93: Kč | H93: 1 | J93: =ROUND(I93*H93,2) -> 0 | N93: základní | P93: =O93*H93 -> 0 | Q93: 0 | R93: =Q93*H93 -> 0 | S93: 0 | T93: =S93*H93 -> 0 | AR93: 1024 | AT93: K | AU93: 2 | AY93: ROZPOCET | BE93: =IF(N93="základní",J93,0) -> 0 | BF93: =IF(N93="snížená",J93,0) -> 0 | BG93: =IF(N93="zákl. přenesená",J93,0) -> 0 | BH93: =IF(N93="sníž. přenesená",J93,0) -> 0 | BI93: =IF(N93="nulová",J93,0) -> 0 | BJ93: 1 | BK93: =ROUND(I93*H93,2) -> 0 | BL93: 1024 | BM93: -482135159
D94: VV | F94: 1 | H94: 1 | AT94: VV | AU94: 2 | AV94: 2 | AW94: True | AX94: 0 | AY94: ROZPOCET
C95: 6 | D95: K | E95: VRN3005-R | F95: Provoz investora, třetích osob | G95: Kč | H95: 1 | J95: =ROUND(I95*H95,2) -> 0 | N95: základní | P95: =O95*H95 -> 0 | Q95: 0 | R95: =Q95*H95 -> 0 | S95: 0 | T95: =S95*H95 -> 0 | AR95: 1024 | AT95: K | AU95: 2 | AY95: ROZPOCET | BE95: =IF(N95="základní",J95,0) -> 0 | BF95: =IF(N95="snížená",J95,0) -> 0 | BG95: =IF(N95="zákl. přenesená",J95,0) -> 0 | BH95: =IF(N95="sníž. přenesená",J95,0) -> 0 | BI95: =IF(N95="nulová",J95,0) -> 0 | BJ95: 1 | BK95: =ROUND(I95*H95,2) -> 0 | BL95: 1024 | BM95: 1306109109
D96: VV | F96: 1 | H96: 1 | AT96: VV | AU96: 2 | AV96: 2 | AW96: True | AX96: 0 | AY96: ROZPOCET
H677: 8.93

Sheet Pokyny pro vyplnění
C3: Struktura údajů, formát souboru a metodika pro zpracování
C4: Struktura
C6: Soubor je složen ze záložky Rekapitulace stavby a záložek s názvem soupisu prací pro jednotlivé objekty ve formátu XLSX. Každá ze záložek přitom obsahuje
C7: ještě samostatné sestavy vymezené orámovaním a nadpisem sestavy.
C9: Rekapitulace stavby obsahuje sestavu Rekapitulace stavby a Rekapitulace objektů stavby a soupisů prací.
D10: V sestavě Rekapitulace stavby jsou uvedeny informace identifikující předmět veřejné zakázky na stavební práce, KSO, CC-CZ, CZ-CPV, CZ-CPA a rekapitulaci
D11: celkové nabídkové ceny uchazeče.
D13: V sestavě Rekapitulace objektů stavby a soupisů prací je uvedena rekapitulace stavebních objektů, inženýrských objektů, provozních souborů,
D14: vedlejších a ostatních nákladů a ostatních nákladů s rekapitulací nabídkové ceny za jednotlivé soupisy prací. Na základě údaje Typ je možné
D15: identifikovat, zda se jedná o objekt nebo soupis prací pro daný objekt:
E16: STA | F16: Stavební objekt pozemní
E17: ING | F17: Stavební objekt inženýrský
E18: PRO | F18: Provozní soubor
E19: VON | F19: Vedlejší a ostatní náklady
E20: OST | F20: Ostatní
E21: Soupis | F21: Soupis prací pro daný typ objektu
C23: Soupis prací pro jednotlivé objekty obsahuje sestavy Krycí list soupisu, Rekapitulace členění soupisu prací, Soupis prací. Za soupis prací může být považován
C24: i objekt stavby v případě, že neobsahuje podřízenou zakázku.
D25: Krycí list soupisu obsahuje rekapitulaci informací o předmětu veřejné zakázky ze sestavy Rekapitulace stavby, informaci o zařazení objektu do KSO,
D26: CC-CZ, CZ-CPV, CZ-CPA a rekapitulaci celkové nabídkové ceny uchazeče za aktuální soupis prací.
D28: Rekapitulace členění soupisu prací obsahuje rekapitulaci soupisu prací ve všech úrovních členění soupisu tak, jak byla tato členění použita (např.
D29: stavební díly, funkční díly, případně jiné členění) s rekapitulací nabídkové ceny.
D31: Soupis prací obsahuje položky veškerých stavebních nebo montážních prací, dodávek materiálů a služeb nezbytných pro zhotovení stavebního objektu,
D32: inženýrského objektu, provozního souboru, vedlejších a ostatních nákladů.
D33: Pro položky soupisu prací se zobrazují následující informace:
E34: PČ | G34: Pořadové číslo položky v aktuálním soupisu
E35: TYP | G35: Typ položky: K - konstrukce, M - materiál, PP - plný popis, PSC - poznámka k souboru cen, P - poznámka k položce, VV - výkaz výměr
E36: Kód | G36: Kód položky
E37: Popis | G37: Zkrácený popis položky
E38: MJ | G38: Měrná jednotka položky
E39: Množství | G39: Množství v měrné jednotce
E40: J.cena | G40: Jednotková cena položky. Zadaní může obsahovat namísto J.ceny sloupce J.materiál a J.montáž, jejichž součet definuje
G41: J.cenu položky.
E42: Cena celkem | G42: Celková cena položky daná jako součin množství a j.ceny
E43: Cenová soustava | G43: Příslušnost položky do cenové soustavy
D45: Ke každé položce soupisu prací se na samostatných řádcích může zobrazovat:
E46: Plný popis položky
E47: Poznámka k souboru cen a poznámka zadavatele
E48: Výkaz výměr
D49: Pokud je k řádku výkazu výměr evidovaný údaj ve sloupci Kód, jedná se o definovaný odkaz, na který se může odvolávat výkaz výměr z jiné položky.
C50: Metodika pro zpracování
C52: Jednotlivé sestavy jsou v souboru provázány. Editovatelné pole jsou zvýrazněny žlutým podbarvením, ostatní pole neslouží k editaci a nesmí být jakkoliv
C53: modifikovány.
C55: Uchazeč je pro podání nabídky povinen vyplnit žlutě podbarvená pole:
D56: Pole Uchazeč v sestavě Rekapitulace stavby - zde uchazeč vyplní svůj název (název subjektu)
D57: Pole IČ a DIČ v sestavě Rekapitulace stavby - zde uchazeč vyplní svoje IČ a DIČ
D58: Datum v sestavě Rekapitulace stavby - zde uchazeč vyplní datum vytvoření nabídky
D59: J.cena = jednotková cena v sestavě Soupis prací o maximálním počtu desetinných míst uvedených v poli
D60: - pokud sestavy soupisů prací obsahují pole J.cena, musí být všechna tato pole vyplněna nenulovými kladnými číslicemi
D61: Poznámka - nepovinný údaj pro položku soupisu
D63: V případě, že sestavy soupisů prací neobsahují pole J.cena, potom ve všech soupisech prací obsahují pole:
D64: - J.materiál - jednotková cena materiálu
D65: - J.montáž - jednotková cena montáže
D66: Uchazeč je v tomto případě povinen vyplnit všechna pole J.materiál a pole J.montáž nenulovými kladnými číslicemi. V případech, kdy položka
D67: neobsahuje žádný materiál je přípustné, aby pole J.materiál bylo vyplněno nulou. V případech, kdy položka neobsahuje žádnou montáž je přípustné,
D68: aby pole J.montáž bylo vyplněno nulou. Není však přípustné, aby obě pole - J.materiál, J.Montáž byly u jedné položky vyplněny nulou.
C73: Rekapitulace stavby
C74: Název | F74: Povinný | H74: Popis | I74: Typ | J74: Max. počet
C75: atributu | F75: (A/N) | J75: znaků
C77: Kód | F77: A | H77: Kód stavby | I77: String | J77: 20
C78: Stavba | F78: A | H78: Název stavby | I78: String | J78: 120
C79: Místo | F79: N | H79: Místo stavby | I79: String | J79: 50
C80: Datum | F80: A | H80: Datum vykonaného exportu | I80: Date
C81: KSO | F81: N | H81: Klasifikace stavebního objektu | I81: String | J81: 15
C82: CC-CZ | F82: N | H82: Klasifikace stavbeních děl | I82: String | J82: 15
C83: CZ-CPV | F83: N | H83: Společný slovník pro veřejné zakázky | I83: String | J83: 20
C84: CZ-CPA | F84: N | H84: Klasifikace produkce podle činností | I84: String | J84: 20
C85: Zadavatel | F85: N | H85: Zadavatel zadaní | I85: String | J85: 50
C86: IČ | F86: N | H86: IČ zadavatele zadaní | I86: String | J86: 20
C87: DIČ | F87: N | H87: DIČ zadavatele zadaní | I87: String | J87: 20
C88: Uchazeč | F88: N | H88: Uchazeč veřejné zakázky | I88: String | J88: 50
C89: Projektant | F89: N | H89: Projektant | I89: String | J89: 50
C90: Poznámka | F90: N | H90: Poznámka k zadání | I90: String | J90: 255
C91: Sazba DPH | F91: A | H91: Rekapitulace sazeb DPH u položek soupisů | I91: eGSazbaDph
C92: Základna DPH | F92: A | H92: Základna DPH určena součtem celkové ceny z položek soupisů | I92: Double
C93: Hodnota DPH | F93: A | H93: Hodnota DPH | I93: Double
C94: Cena bez DPH | F94: A | H94: Celková cena bez DPH za celou stavbu. Sčítává se ze všech listů. | I94: Double
C95: Cena s DPH | F95: A | H95: Celková cena s DPH za celou stavbu | I95: Double
C100: Rekapitulace objektů stavby a soupisů prací
C101: Název | F101: Povinný | H101: Popis | I101: Typ | J101: Max. počet
C102: atributu | F102: (A/N) | J102: znaků
C104: Kód | F104: A | H104: Přebírá se z Rekapitulace stavby | I104: String | J104: 20
C105: Stavba | F105: A | H105: Přebírá se z Rekapitulace stavby | I105: String | J105: 120
C106: Místo | F106: N | H106: Přebírá se z Rekapitulace stavby | I106: String | J106: 50
C107: Datum | F107: A | H107: Přebírá se z Rekapitulace stavby | I107: Date
C108: Zadavatel | F108: N | H108: Přebírá se z Rekapitulace stavby | I108: String | J108: 50
C109: Projektant | F109: N | H109: Přebírá se z Rekapitulace stavby | I109: String | J109: 50
C110: Uchazeč | F110: N | H110: Přebírá se z Rekapitulace stavby | I110: String | J110: 50
C111: Kód | F111: A | H111: Kód objektu | I111: String | J111: 20
C112: Objektu, Soupis prací | F112: A | H112: Název objektu | I112: String | J112: 120
C113: Cena bez DPH | F113: A | H113: Cena bez DPH za daný objekt | I113: Double
C114: Cena s DPH | F114: A | H114: Cena spolu s DPH za daný objekt | I114: Double
C115: Typ | F115: A | H115: Typ zakázky | I115: eGTypZakazky
C120: Krycí list soupisu
C121: Název | F121: Povinný | H121: Popis | I121: Typ | J121: Max. počet
C122: atributu | F122: (A/N) | J122: znaků
C124: Stavba | F124: A | H124: Přebírá se z Rekapitulace stavby | I124: String | J124: 120
C125: Objekt | F125: A | H125: Kód a název objektu | I125: String | J125: 20 + 120
C126: Soupis | F126: A | H126: Kód a název soupisu | I126: String | J126: 20 + 120
C127: KSO | F127: N | H127: Klasifikace stavebního objektu | I127: String | J127: 15
C128: CC-CZ | F128: N | H128: Klasifikace stavbeních děl | I128: String | J128: 15
C129: CZ-CPV | F129: N | H129: Společný slovník pro veřejné zakázky | I129: String | J129: 20
C130: CZ-CPA | F130: N | H130: Klasifikace produkce podle činností | I130: String | J130: 20
C131: Místo | F131: N | H131: Přebírá se z Rekapitulace stavby | I131: String | J131: 50
C132: Zadavatel | F132: N | H132: Přebírá se z Rekapitulace stavby | I132: String | J132: 50
C133: Uchazeč | F133: N | H133: Přebírá se z Rekapitulace stavby | I133: String | J133: 50
C134: Projektant | F134: N | H134: Přebírá se z Rekapitulace stavby | I134: String | J134: 50
C135: Poznámka | F135: N | H135: Poznámka k soupisu prací | I135: String | J135: 255
C136: Sazba DPH | F136: A | H136: Rekapitulace sazeb DPH na položkách aktuálního soupisu | I136: eGSazbaDph
C137: Základna DPH | F137: A | H137: Základna DPH určena součtem celkové ceny z položek aktuálního soupisu | I137: Double
C138: Hodnota DPH | F138: A | H138: Hodnota DPH | I138: Double
C139: Cena bez DPH | F139: A | H139: Cena bez DPH za daný soupis | I139: Double
C140: Cena s DPH | F140: A | H140: Cena s DPH za daný soupis | I140: Double
C145: Rekapitulace členění soupisu prací
C146: Název | F146: Povinný | H146: Popis | I146: Typ | J146: Max. počet
C147: atributu | F147: (A/N) | J147: znaků
C149: Stavba | F149: A | H149: Přebírá se z Rekapitulace stavby | I149: String | J149: 120
C150: Objekt | F150: A | H150: Kód a název objektu, přebírá se z Krycího listu soupisu | I150: String | J150: 20 + 120
C151: Soupis | F151: A | H151: Kód a název objektu, přebírá se z Krycího listu soupisu | I151: String | J151: 20 + 120
C152: Místo | F152: N | H152: Přebírá se z Rekapitulace stavby | I152: String | J152: 50
C153: Datum | F153: A | H153: Přebírá se z Rekapitulace stavby | I153: Date
C154: Zadavatel | F154: N | H154: Přebírá se z Rekapitulace stavby | I154: String | J154: 50
C155: Projektant | F155: N | H155: Přebírá se z Rekapitulace stavby | I155: String | J155: 50
C156: Uchazeč | F156: N | H156: Přebírá se z Rekapitulace stavby | I156: String | J156: 50
C157: Kód dílu - Popis | F157: A | H157: Kód a název dílu ze soupisu | I157: String | J157: 20 + 100
C158: Cena celkem | F158: A | H158: Cena celkem za díl ze soupisu | I158: Double
C163: Soupis prací
C164: Název | F164: Povinný | H164: Popis | I164: Typ | J164: Max. počet
C165: atributu | F165: (A/N) | J165: znaků
C167: Stavba | F167: A | H167: Přebírá se z Rekapitulace stavby | I167: String | J167: 120
C168: Objekt | F168: A | H168: Kód a název objektu | I168: String | J168: 20 + 120
C169: Soupis | F169: A | H169: Přebírá se z Krycího listu soupisu | I169: String | J169: 20 + 120
C170: Místo | F170: N | H170: Přebírá se z Krycího listu soupisu | I170: String | J170: 50
C171: Datum | F171: A | H171: Přebírá se z Krycího listu soupisu | I171: Date
C172: Zadavatel | F172: N | H172: Přebírá se z Krycího listu soupisu | I172: String | J172: 50
C173: Projektant | F173: N | H173: Přebírá se z Krycího listu soupisu | I173: String | J173: 50
C174: Uchazeč | F174: N | H174: Přebírá se z Krycího listu soupisu | I174: String | J174: 50
C175: PČ | F175: A | H175: Pořadové číslo položky soupisu | I175: Long
C176: Typ | F176: A | H176: Typ položky soupisu | I176: eGTypPolozky | J176: 1
C177: Kód | F177: A | H177: Kód položky ze soupisu | I177: String | J177: 20
C178: Popis | F178: A | H178: Popis položky ze soupisu | I178: String | J178: 255
C179: MJ | F179: A | H179: Měrná jednotka položky | I179: String | J179: 10
C180: Množství | F180: A | H180: Množství položky soupisu | I180: Double
C181: J.Cena | F181: A | H181: Jednotková cena položky | I181: Double
C182: Cena celkem | F182: A | H182: Cena celkem vyčíslena jako J.Cena * Množství | I182: Double
C183: Cenová soustava | F183: N | H183: Zařazení položky do cenové soustavy | I183: String | J183: 50
C184: p | F184: N | H184: Poznámka položky ze soupisu | I184: Memo
C185: psc | F185: N | H185: Poznámka k souboru cen ze soupisu | I185: Memo
C186: pp | F186: N | H186: Plný popis položky ze soupisu | I186: Memo
C187: vv | F187: N | H187: Výkaz výměr (figura, výraz, výměra) ze soupisu | I187: Text,Text,Double | J187: 20, 150
C188: DPH | F188: A | H188: Sazba DPH pro položku | I188: eGSazbaDPH
C189: Hmotnost | F189: A | H189: Hmotnost položky ze soupisu | I189: Double
C190: Suť | F190: A | H190: Suť položky ze soupisu | I190: Double
C191: Nh | F191: N | H191: Normohodiny položky ze soupisu | I191: Double
C197: Datová věta
C198: Typ věty | F198: Hodnota | H198: Význam
C200: eGSazbaDPH | F200: základní | H200: Základní sazba DPH
F201: snížená | H201: Snížená sazba DPH
F202: nulová | H202: Nulová sazba DPH
F203: zákl. přenesená | H203: Základní sazba DPH přenesená
F204: sníž. přenesená | H204: Snížená sazba DPH přenesená
C206: eGTypZakazky | F206: STA | H206: Stavební objekt
F207: PRO | H207: Provozní soubor
F208: ING | H208: Inženýrský objekt
F209: VON | H209: Vedlejší a ostatní náklady
F210: OST | H210: Ostatní náklady
C212: eGTypPolozky | F212: 1 | H212: Položka typu HSV
F213: 2 | H213: Položka typu PSV
F214: 3 | H214: Položka typu M
F215: 4 | H215: Položka typu OST
